Workbook

Sheet Directions
A1: Directions for LW Stability Analysis Tool
A3: This design tool may be used by practitioners if they cite the developer on each sheet.
A5: Disclaimer:
A6: This Microsoft Excel 2010 spreadsheet tool is provided free of charge. Use this tool at your own risk. In offering this tool, the author and Colorado State University do not accept any responsibility or liability for the tool's use by third parties. This tool has specific uses and limits of applicability. Design practitioners shall take full responsibility for the final large wood structure design and performance. Designers are expected to verify the calculated values and validity of the design method. Designers should be qualified to work in river environments, and depending on the State, they may be required to be licensed as a professional engineer to design large wood structures. You cannot be sure the tool is authentic and unmolested unless downloaded from the following website:
A14: www.engr.colostate.edu/~bbledsoe/streamtools/
A16: DATA INPUT
A18: Order of Input
B19: Update the worksheets from "left to right"
B20: Update the spreadsheet cells from "left to right" and "top to bottom"
A22: IMPORTANT - User should only edit the following cells:
B24: Cell Format | D24: Directions
B25: Dropdown List | D25: Select value from dropdown list
B27: User Input | D27: Type value into cell
B29: User Verify | D29: Verify value in cell (edit if necessary)
A31: User should verify, but not edit the following cells because these cells contain formulas or headings:
B33: Cell Format | D33: Directions
B34: Heading | D34: Table Heading (Scroll over sample heading for description of comments)
B36: Automatic Value | D36: Verify value in cell which is automatically calculated by formulas
B38: Key Value | D38: Verify value of force calculation
B40: Solution | D40: Verify value of force balance or factor of safety calculation
B42: Background Value | D42: Optional - Verify value of background calculation (outside of print area)
A44: The "Single Log" and "Multi-Log" spreadsheets have several built-in error messages (in column 'K'):
B46: Error Message
B47: "CHECK" | D47: Prompts user to check a specific input
B49: "ERROR" | D49: Prompts user to change a specific input
A51: User Input Note 1 - Several worksheets have a built in "clear inputs" button linked to a macro (these are the only macros built into the tool). Be aware that you can't undo the "clear input" command.
A54: User Input Note 2 - User may enter a custom "bank soil type", "wood species", or "anchor type" by scrolling over to the right to find the lookup table and editing the "custom" cells.
A57: User Input Note 3 - The spreadsheet is not locked, and therefore every cell can be manually edited. However, the user is encouraged to exercise caution to avoid unintended consequences due to reference formulas.
A60: User Input Note 4 - User should also be very careful when removing or adding cells (at least scroll over and down to see what other cells may be impacted). Hiding unused rows or columns is recommended instead of deleting them. If the user needs to add cells on the "Single Log Design" spreadsheet, they should add a row of cells for all columns between 'A' and 'J'. Important: Adding cells will break the code in the "Clear Inputs" macro, and cause it to clear the wrong cells.
A66: User Input Note 5 - To avoid compounding potential errors, the user should use the original download version of the spreadsheet (without edits) at the beginning of each design.
A69: User Input Note 6 - Input values should be in English units, with one exception: D50 for the bed substrate gradation (mm).
A72: ANALYSIS OF MULTIPLE LOG STRUCTURES
A74: The LW Stability Analysis Tool can also be used to design multiple log structures. The user must manually translate the resulting vertical and horizontal forces from one log design sheet into another (or write their own formulas). This data should be entered in the "Interaction Forces with Adjacent Logs" section of the "Single Log Design" worksheet. In theory, there is no limit to the number of logs that can be considered, although the force balance accounting may become cumbersome beyond a few logs. The general procedure is as follows:
A79: Step 1 | B79: Begin by creating a preliminary structure layout (in AutoCAD or similar) to define the quantity of logs, locate intersect points, and identify key members. Key members are typically the largest logs (or the logs that are going to be have anchors attached).
A82: Step 2 | B82: Fill out Sheets 1 through 5 of this tool. Next, input the channel geometry in a blank "Single Log Design" worksheet (Sheet 6), and then make copies for analysis of each log.
L83: (Example) Required Resisting Forces for "Non-Key" Members (to be supplied by "Key" Members)
A84: Step 3 | B84: Complete a force balance analysis for each "non-key member" log, ignoring the "Interaction Forces with Adjacent Logs" and "Anchor Forces" sections. The user should manually record the resisting forces required to stabilize each "non-key member" in a table. The required vertical force can be found in cell 'K61' of the "Single Log Design" worksheet, and the required horizontal force can be found in cell 'K72'. If the log is already vertically or horizontally stable, record the excess force that may be applied to resist driving forces of the adjacent log(s). This information can be found in cell 'K62' and 'K73'. An example table is shown to the right of these directions →
L85: Log ID | M85: FV (lbf) | N85: FV (per "key log") | O85: FH (lbf) | P85: FH (per "key log")
L86: Top #1 | M86: 7278 | N86: =M86/2 -> 3639 | O86: 1872 | P86: =O86/2 -> 936
L87: Top #2 | M87: 7113 | N87: =M87/2 -> 3556.5 | O87: 1087 | P87: 543.5
L88: Top #3 | M88: 5323 | N88: 2661.5 | O88: -3547 | P88: -1773.5
L89: * In this example, the required resisting forces for the 3 "non-key" members are divided between 2 proposed "key" members. Note that the log identified as "Top #3" is horizontally stable (hence, listed as a negative number), with an excess resisting force of 3,547 lbf. This excess force may be applied to resist the driving horizontal forces of the "key" members, provided the logs are pinned together. These values in the columns highlighted in light yellow should be entered exactly as shown in the "Interaction Forces with Adjacent Logs" section of the "Single Log Design" worksheet for each "key" member.
A91: Step 4 | B91: Complete a force balance analysis for the "key members". In the "Interaction Forces with Adjacent Logs" section on the force balance sheet, enter the relative position of each adjacent log in contact with the key member, the connection type (gravity or pinned), the intersection point, and the required vertical and horizontal forces to achieve stability for each "non-key member". If the load from the adjacent logs is spread over multiple key members, divide the required forces by the number of key members sharing the load (note--these loads do not need to be evenly distributed between key members). If an adjacent log is either horizontally or vertically stable, then enter any excess force (see Step 3 above) value as a negative number in the "key member" design spreadsheet. The tool will automatically determine which loads are transferable to the next layer of logs. For instance, a non-pinned member situated above the key member will not transfer buoyancy force to the key member.
A101: Step 5 | B101: Add "Anchor Forces" as necessary to stabilize the key members.
A102: Step 6 | B102: Return to the "non-key member" log worksheets and in the "Interaction Forces with Adjacent Logs" section, input the forces that were resisted by the stability analysis of the key members. Add additional "Anchor Forces" as necessary to stabilize the forces that were not resisted by the design of the key members.
A106: Tip 1: It is recommended that the user creates a spreadsheet to tally the transferred forces for each log.
A107: Tip 2: The design of multiple log structures should initially focus on achieving vertical stability, before moving on to horizontal stability, and finally the moment analysis.
A109: Note 1: Most design procedures for larger wood jams (ELJ's) typically ignore the lift and moment forces, and the drag coefficient may be assumed to be between 0.6 and 0.7 for the entire structure (plus corrections for constriction, or blockage, of the channel). Therefore, the analysis procedure described above is likely conservative for larger structures.
A113: Note 2: The designer should also perform scour computations and consider the structure's potential to trap mobile wood. The design and/or factor of safety may need modified accordingly.
A116: TO PRINT WORKBOOK
A117: Highlight tabs numbered 1 through 7, and click "Print". Pages are pre-formatted except the "Anchors" Lookup sheet, which is not intended to be printed.
A120: User is encouraged to provide comments and feedback for:
A121: Suitability: Range of application or limitations
A122: Ease of use
A123: Results: Are they reasonable and verified?
A124: Any other comments for improvement
A125: E-mail comments to: | E125: michael.rafferty@otak.com

Sheet 1-Cover
A1: Project Name
A3: Large Wood Structure Stability Analysis
K7: ← (Optional - Change Photograph)
A17: TABLE OF CONTENTS
H18: Sheet
C19: Factors of Safety and Design Constants | H19: 2 | K19: ← (Note - Sheet names and numbering must be manually updated)
C20: Hydrologic and Hydraulic Inputs | H20: 3
C21: Stream Bed Substrate Properties | H21: 4
C22: Bank Soil Properties | H22: 5
C23: Wood Properties | H23: 6
C24: Single Log Stability Analysis | H24: 7 - 8
C25: Notation and List of Symbols | H25: 9 - 10
C28: Date of Last Revision: | D28: 2014-02-04
B30: Designer: | F30: Reviewed by:
B31: Name | F31: Not Applicable
K32: ← (Optional - Insert P.E. Stamp)
A38: Reference for Design Method of Large Wood Structures:
A39: NRCS NEH 654 Technical Supplement 14J (2007)
A41: Reference for Companion Paper:
A42: Rafferty, M. (2013). Development of a Computational Design Tool for Evaluating the Stability of Large Wood Structures Proposed for Stream Enhancement. Masters of Science Thesis, Colorado State University.
A45: Large Wood Structure Stability Analysis Spreadsheet was developed by Michael Rafferty, P.E. | K45: ← (Note - This design tool may be used by practitioners if they cite the developer on each sheet)
A46: Version 1.0

Sheet 2-Constants
A1: ='1-Cover'!A1 -> Project Name | C1: Spreadsheet developed by Michael Rafferty, P.E.
A2: Factors of Safety and Design Constants
A4: Symbol | B4: Description | C4: Value
A5: FSV | B5: Factor of Safety for Vertical Force Balance | C5: 1.5
A6: FSH | B6: Factor of Safety for Horizontal Force Balance | C6: 2
A7: FSM | B7: Factor of Safety for Moment Force Balance | C7: 2
A9: Symbol | B9: Description | C9: Units | D9: Value
A10: CLrock | B10: Coefficient of lift for submerged boulder (D’Aoust, 2000) | C10: - | D10: 0.17
A11: CDrock | B11: Coefficient of drag for submerged boulder (Schultz, 1954) | C11: - | D11: 0.85
A12: g | B12: Gravitational acceleration constant | C12: ft/s2 | D12: 32.174
A13: DFRW | B13: Diameter factor for rootwad (DFRW = DRW/DTS) | C13: - | D13: 3
A14: LFRW | B14: Length factor for rootwad (LFRW = LRW/DTS) | C14: - | D14: 1.5
A15: SGrock | B15: Specific gravity of quartz particles | C15: - | D15: 2.65
A16: grock | B16: Dry unit weight of boulders | C16: lb/ft3 | D16: 165
A17: gw | B17: Specific weight of water at 50⁰F | C17: lb/ft3 | D17: 62.4
A18: h | B18: Rootwad porosity from NRCS Tech Note 15 (2001) | C18: - | D18: 0.2
A19: n | B19: Kinematic viscosity of water at 50⁰F | C19: ft/s2 | D19: 1.41e-05

Sheet 3-H&H
A1: ='1-Cover'!A1 -> Project Name | F1: Spreadsheet developed by Michael Rafferty, P.E.
A2: Hydrologic and Hydraulic Inputs
A4: Average Return Interval (ARI) of Design Discharge: | G4: yr
A6: Site ID | B6: Proposed Station | C6: Design Discharge, Qdes (cfs) | D6: Maximum Depth, dw (ft) | E6: Average Velocity, uavg (ft/s) | F6: Bankfull Width, WBF (ft) | G6: Wetted Area, AW (ft2) | H6: Radius of Curvature, Rc (ft) | I6: Rc/WBF | J6: Velocity at Outer Meander Bend1, um (ft/s)
I9: =IF(OR($F9="",$H9=""),"",$H9/$F9) ->  | J9: =IF(OR(E9="",I9=""),"",IF(I9>26,E9,E9*(1.74-(0.52*LOG(I9))))) -> 
J29: 1 Meander velocity, um = | L29: uavg [for Rc/WBF > 26]
L30: uavg(1.74 - 0.52 log (Rc/WBF)) [for Rc/WBF < 26]
J31: Source for meander velocity in channel bends:
J32: US Dept of Transportation. (2009) Hydraulic Engineering Circular No. 23 v2: Bridge Scour and Stream Instability Countermeasures: Experience, Selection, and Design Guidance-Third Edition. Design Guideline 4 Riprap Revetment.

Sheet 4-Soil
C1: ='1-Cover'!A1 -> Project Name | G1: Spreadsheet developed by Michael Rafferty, P.E. | I1: ='1-Cover'!A1 -> Project Name | L1: Spreadsheet developed by Michael Rafferty, P.E.
C2: Stream Bed Substrate Properties | I2: Bank Soil Properties | P2: Substrate and Soil Properties Lookup Table | V2: Bank Soil Properties Lookup Table
P3: General Substrate and Soil Properties1 | V3: Bank Soil Properties1
A4: Site ID | B4: Proposed Station | C4: Stream bed D50 (mm) | D4: Stream Bed Substrate Grain Size Class | E4: Bed Soil Class | F4: Dry Unit Weight1, gbed (lb/ft3) | G4: Buoyant Unit Weight, g'bed (lb/ft3) | H4: Friction Angle, fbed (deg) | I4: Bank Soils (from field observations) | J4: Bank Soil Class | K4: Dry Unit Weight, gbank (lb/ft3) | L4: Buoyant Unit Weight, g'bank (lb/ft3) | M4: Friction Angle, fbank (deg) | P4: Grain size (mm) | Q4: Stream Substrate Sediment Class | R4: Average Dry Unit Weight, gs (lb/ft3) | S4: Internal Friction Angle, f (deg) | T4: Bed Soil Class | V4: Description (from field observations) | W4: Bank Soil Class | X4: Probe Value (in/lb) | Y4: Average Dry Unit Weight, gbank (lb/ft3) | Z4: Friction Angle, fbank (deg) | AA4: Void ratio2, e (Vv/Vs) | AB4: Porosity, po e/(1+e) | AC4: Saturated Unit Weight3, gbank,sat (lb/ft3) | AD4: Buoyant Unit Weight4, g'bank (lb/ft3)
A7: =IF('3-H&H'!A9="","",'3-H&H'!A9) ->  | B7: =IF('3-H&H'!B9="","",'3-H&H'!B9) ->  | D7: =IF(C7="","",IF(C7>2048,$Q$7,IF(C7>256,$Q$8,IF(C7>128,$Q$9,IF(C7>64,$Q$10,IF(C7>32,$Q$11,IF(C7>16,$Q$12,IF(C7>8,$Q$13,IF(C7>4,$Q$14,IF(C7>2,$Q$15,IF(C7>1,$Q$16,IF(C7>0.5,$Q$17,IF(C7>0.25,$Q$18,IF(C7>0.125,$Q$19,IF(C7>0.0625,$Q$20,IF(C7>0.004,$Q$21,$Q$22)))))))))))))))) ->  | E7: =IF(C7="","",VLOOKUP(D7,$Q$7:$T$22,4,0)) ->  | F7: =IF(C7="","",(1600+300*LOG(C7))*$E$30) ->  | G7: =IF(D7="","",(((SG+((SG*SWWater/F7)-1))*SWWater)/(1+((SG*SWWater/F7)-1)))-SWWater) ->  | H7: =IF(C7="","",VLOOKUP(D7,$Q$7:$T$22,3,0)) ->  | J7: =IF(I7="","",VLOOKUP(I7,$V$7:$Z$22,2,0)) ->  | K7: =IF(I7="","",VLOOKUP(I7,$V$7:$Z$22,4,0)) ->  | L7: =IF(I7="","",VLOOKUP(I7,$V$7:$AD$22,9,0)) ->  | M7: =IF(I7="","",VLOOKUP(I7,$V$7:$Z$22,5,0)) ->  | P7: Bedrock | Q7: Bedrock | R7: 165 | S7: - | T7: 1 | V7: Gravel/cobble | W7: 4 | X7: 400-500 | Y7: =R10 -> 137 | Z7: =S10 -> 41 | AA7: =((SG*SWWater)/Y7)-1 -> 0.2070072993 | AB7: =AA7/(1+AA7) -> 0.171504596 | AC7: =((SG+AA7)*SWWater)/(1+AA7) -> 147.7018868 | AD7: =AC7-SWWater -> 85.30188679
A8: =IF('3-H&H'!A10="","",'3-H&H'!A10) ->  | B8: =IF('3-H&H'!B10="","",'3-H&H'!B10) ->  | G8: =IF(D8="","",(((SG+((SG*SWWater/F8)-1))*SWWater)/(1+((SG*SWWater/F8)-1)))-SWWater) ->  | P8: 256-2048 | Q8: Boulder | R8: 146 | S8: 42 | T8: 4 | V8: Gravel, dense | W8: 4 | X8: 400-500 | Y8: 131.4 | Z8: 40 | AA8: =((SG*SWWater)/Y8)-1 -> 0.2584474886 | AB8: =AA8/(1+AA8) -> 0.2053701016 | AC8: =((SG+AA8)*SWWater)/(1+AA8) -> 144.2150943 | AD8: =AC8-SWWater -> 81.81509434
A9: =IF('3-H&H'!A11="","",'3-H&H'!A11) ->  | B9: =IF('3-H&H'!B11="","",'3-H&H'!B11) ->  | P9: 128-256 | Q9: Large Cobble | R9: 142.6 | S9: 42 | T9: 4 | V9: Gravel, loose | W9: 5 | X9: 300-400 | Y9: 125.7 | Z9: 36 | AA9: 0.3155131265 | AB9: 0.2398403483 | AC9: 140.6660377 | AD9: 78.26603774
A10: =IF('3-H&H'!A12="","",'3-H&H'!A12) ->  | B10: =IF('3-H&H'!B12="","",'3-H&H'!B12) ->  | P10: 64-128 | Q10: Small Cobble | R10: 137 | S10: 41 | T10: 4 | V10: Gravel/sand | W10: 5 | X10: 400-500 | Y10: 111.65 | Z10: 39 | AA10: 0.4810568742 | AB10: 0.3248064828 | AC10: 131.9179245 | AD10: 69.51792453
A11: =IF('3-H&H'!A13="","",'3-H&H'!A13) ->  | B11: =IF('3-H&H'!B13="","",'3-H&H'!B13) ->  | P11: 32-64 | Q11: Very coarse gravel | R11: 131.4 | S11: 40 | T11: 5 | V11: Coarse sand, dense | W11: 5 | X11: 300-400 | Y11: 120 | Z11: 43 | AA11: 0.378 | AB11: 0.2743105951 | AC11: 137.1169811 | AD11: 74.71698113
A12: =IF('3-H&H'!A14="","",'3-H&H'!A14) ->  | B12: =IF('3-H&H'!B14="","",'3-H&H'!B14) ->  | P12: 16-32 | Q12: Coarse gravel | R12: 125.7 | S12: 38 | T12: 5 | V12: Coarse sand, loose | W12: 6 | X12: 200-300 | Y12: 98 | Z12: 31 | AA12: 0.6873469388 | AB12: 0.4073536526 | AC12: 123.4188679 | AD12: 61.01886792
A13: =IF('3-H&H'!A15="","",'3-H&H'!A15) ->  | B13: =IF('3-H&H'!B15="","",'3-H&H'!B15) ->  | P13: 8-16 | Q13: Medium gravel | R13: 120.1 | S13: 36 | T13: 5 | V13: Fine sand, dense | W13: 6 | X13: 200-300 | Y13: 114 | Z13: 42 | AA13: 0.4505263158 | AB13: 0.3105950653 | AC13: 133.3811321 | AD13: 70.98113208
A14: =IF('3-H&H'!A16="","",'3-H&H'!A16) ->  | B14: =IF('3-H&H'!B16="","",'3-H&H'!B16) ->  | P14: 4-8 | Q14: Fine gravel | R14: 114.5 | S14: 35 | T14: 5 | V14: Fine sand, loose | W14: 7 | X14: 100-200 | Y14: 93 | Z14: 30 | AA14: 0.7780645161 | AB14: 0.4375907112 | AC14: 120.3056604 | AD14: 57.90566038
A15: =IF('3-H&H'!A17="","",'3-H&H'!A17) ->  | B15: =IF('3-H&H'!B17="","",'3-H&H'!B17) ->  | P15: 2-4 | Q15: Very fine gravel | R15: 108.8 | S15: 33 | T15: 6 | V15: Clay, firm | W15: 6 | X15: 200-300 | Y15: 90 | Z15: 27 | AA15: 0.8373333333 | AB15: 0.4557329463 | AC15: 118.4377358 | AD15: 56.03773585
A16: =IF('3-H&H'!A18="","",'3-H&H'!A18) ->  | B16: =IF('3-H&H'!B18="","",'3-H&H'!B18) ->  | P16: 1-2 | Q16: Very course sand | R16: 103.2 | S16: 32 | T16: 6 | V16: Clay, soft | W16: 7 | X16: 100-200 | Y16: 78 | Z16: 25 | AA16: 1.12 | AB16: 0.5283018868 | AC16: 110.9660377 | AD16: 48.56603774
A17: =IF('3-H&H'!A19="","",'3-H&H'!A19) ->  | B17: =IF('3-H&H'!B19="","",'3-H&H'!B19) ->  | P17: 0.5-1 | Q17: Coarse sand | R17: 98 | S17: 31 | T17: 6 | V17: Clayey silt | W17: 6 | X17: 200-300 | Y17: 84 | Z17: 27 | AA17: 0.9685714286 | AB17: 0.4920174165 | AC17: 114.7018868 | AD17: 52.30188679
A18: =IF('3-H&H'!A20="","",'3-H&H'!A20) ->  | B18: =IF('3-H&H'!B20="","",'3-H&H'!B20) ->  | P18: 0.25-0.5 | Q18: Medium sand | R18: 94 | S18: 30 | T18: 7 | V18: Silt, firm | W18: 6 | X18: 200-300 | Y18: 90 | Z18: 32 | AA18: 0.8373333333 | AB18: 0.4557329463 | AC18: 118.4377358 | AD18: 56.03773585
A19: =IF('3-H&H'!A21="","",'3-H&H'!A21) ->  | B19: =IF('3-H&H'!B21="","",'3-H&H'!B21) ->  | P19: 0.125-0.25 | Q19: Fine sand | R19: 93 | S19: 30 | T19: 7 | V19: Silt, soft | W19: 7 | X19: 100-200 | Y19: 82 | Z19: 30 | AA19: 1.016585366 | AB19: 0.50411224 | AC19: 113.4566038 | AD19: 51.05660377
A20: =IF('3-H&H'!A22="","",'3-H&H'!A22) ->  | B20: =IF('3-H&H'!B22="","",'3-H&H'!B22) ->  | P20: 0.063-0.125 | Q20: Very fine sand | R20: 92 | S20: 30 | T20: 7 | V20: Bedrock, solid | W20: 1 | X20: - | Y20: 165 | Z20: - | AA20: - | AB20: - | AC20: - | AD20: -
A21: =IF('3-H&H'!A23="","",'3-H&H'!A23) ->  | B21: =IF('3-H&H'!B23="","",'3-H&H'!B23) ->  | P21: 0.004-0.063 | Q21: Silt | R21: 82 | S21: 30 | T21: 7 | V21: Custom1 (optional) | W21: (input) | X21: (input) | Y21: (input) | Z21: (input) | AA21: =IF(Y21="(input)","",((SG*SWWater)/Y21)-1) ->  | AB21: =IF(Y21="(input)","",AA21/(1+AA21)) ->  | AC21: =IF(Y21="(input)","",((SG+AA21)*SWWater)/(1+AA21)) ->  | AD21: =IF(Y21="(input)","",AC21-SWWater) -> 
A22: =IF('3-H&H'!A24="","",'3-H&H'!A24) ->  | B22: =IF('3-H&H'!B24="","",'3-H&H'!B24) ->  | P22: < 0.004 | Q22: Clay | R22: 78 | S22: 25 | T22: 7 | V22: Custom2 (optional) | W22: (input) | X22: (input) | Y22: (input) | Z22: (input) | AA22: =IF(Y22="(input)","",((SG*SWWater)/Y22)-1) ->  | AB22: =IF(Y22="(input)","",AA22/(1+AA22)) ->  | AC22: =IF(Y22="(input)","",((SG+AA22)*SWWater)/(1+AA22)) ->  | AD22: =IF(Y22="(input)","",AC22-SWWater) -> 
A23: =IF('3-H&H'!A25="","",'3-H&H'!A25) ->  | B23: =IF('3-H&H'!B25="","",'3-H&H'!B25) ->  | P23: 1 Compiled from Julien (2010) and Shen and Julien (1993) | V23: 1 Compiled from NRCS Table TS14E–2 Soil classification and Bowles (2001)
A24: =IF('3-H&H'!A26="","",'3-H&H'!A26) ->  | B24: =IF('3-H&H'!B26="","",'3-H&H'!B26) ->  | V24: 2 Void ratio, e, is backcalculated using the following equation: e = (SGrock*gw/gbank) - 1
A25: =IF('3-H&H'!A27="","",'3-H&H'!A27) ->  | B25: =IF('3-H&H'!B27="","",'3-H&H'!B27) ->  | V25: 3 Saturated Unit Weight of soil, gbank,sat = ((SGrock+e)*gw)/(1+e)
A26: =IF('3-H&H'!A28="","",'3-H&H'!A28) ->  | B26: =IF('3-H&H'!B28="","",'3-H&H'!B28) ->  | V26: 4 Effective Buoyant Unit Weight of soil, g'bank = gbank,sat - gw
C27: Source: | D27: Compiled from Julien (2010) and Shen and Julien (1993); soil classes from NRCS Table TS14E–2 Soil classification
C29: 1 gbed (kg/m3) = 1,600 + 300 log D50 (mm) | G29: (from Julien 2010)
D30: 1 kg/m3 = | E30: 0.062428 | F30: 1 lb/ft3

Sheet 5-Wood
A1: ='1-Cover'!A1 -> Project Name | D1: Spreadsheet developed by Michael Rafferty, P.E. | N1: Common Trees in Great Plains Region | U1: Common Trees in Upper Midwest Region | AB1: Common Trees in New England Region
A2: Large Wood Properties | N2: Common Name | O2: Scientific Name | P2: Type | Q2: SGT | R2: gTd (lb/ft3) | S2: gTgr (lb/ft3) | U2: Common Name | V2: Scientific Name | W2: Type | X2: SGT | Y2: gTd (lb/ft3) | Z2: gTgr (lb/ft3) | AB2: Common Name | AC2: Scientific Name | AD2: Type | AE2: SGT | AF2: gTd (lb/ft3) | AG2: gTgr (lb/ft3)
N3: Ash, Black | O3: Fraxinus nigra | P3: Hardwood | Q3: 0.49 | R3: =Q3*62.4*1.12 -> 34.24512 | S3: 52 | U3: Ash, Black | V3: Fraxinus nigra | W3: Hardwood | X3: 0.49 | Y3: =X3*62.4*1.12 -> 34.24512 | Z3: 52 | AB3: Ash, Black | AC3: Fraxinus nigra | AD3: Hardwood | AE3: 0.49 | AF3: =AE3*62.4*1.12 -> 34.24512 | AG3: 52
A4: Project Location: | N4: Ash, Blue | O4: Fraxinus quadrangulata | P4: Hardwood | Q4: 0.58 | R4: 40.53504 | S4: 50 | U4: Ash, Blue | V4: Fraxinus quadrangulata | W4: Hardwood | X4: 0.58 | Y4: 40.53504 | Z4: 50 | AB4: Ash, Green | AC4: Fraxinus pennsylvanica | AD4: Hardwood | AE4: 0.56 | AF4: 39.13728 | AG4: 52
N5: Ash, Green | O5: Fraxinus pennsylvanica | P5: Hardwood | Q5: 0.56 | R5: 39.13728 | S5: 52 | U5: Ash, Green | V5: Fraxinus pennsylvanica | W5: Hardwood | X5: 0.56 | Y5: 39.13728 | Z5: 52 | AB5: Ash, White | AC5: Fraxinus americana | AD5: Hardwood | AE5: 0.6 | AF5: 41.9328 | AG5: 50
A6: Timber Unit Weights | D6: Air-dried1 gTd (lb/ft3) | E6: Green2 gTgr (lb/ft3) | N6: Ash, White | O6: Fraxinus americana | P6: Hardwood | Q6: 0.6 | R6: 41.9328 | S6: 50 | U6: Ash, White | V6: Fraxinus americana | W6: Hardwood | X6: 0.6 | Y6: 41.9328 | Z6: 50 | AB6: Aspen, Bigtooth | AC6: Populus grandidentata | AD6: Hardwood | AE6: 0.39 | AF6: 27.25632 | AG6: 43
A7: Selected Species | B7: Common Name | C7: Scientific Name | N7: Aspen, Bigtooth | O7: Populus grandidentata | P7: Hardwood | Q7: 0.39 | R7: 27.25632 | S7: 43 | U7: Aspen, Bigtooth | V7: Populus grandidentata | W7: Hardwood | X7: 0.39 | Y7: 27.25632 | Z7: 43 | AB7: Aspen, Quaking | AC7: Populus tremuloides | AD7: Hardwood | AE7: 0.38 | AF7: 26.55744 | AG7: 50
A8: Tree Type #1: | C8: =IF($B8="","",IF($B$4="West Coast",VLOOKUP($B8,WCTreesTable,2,0),IF($B$4="Mountain West",VLOOKUP($B8,MWTreesTable,2,0),IF($B$4="Great Plains",VLOOKUP($B8,GPTreesTable,2,0),IF($B$4="South Central",VLOOKUP($B8,SCTreesTable,2,0),IF($B$4="Upper Midwest",VLOOKUP($B8,UMWTreesTable,2,0),IF($B$4="Southeast",VLOOKUP($B8,SETreesTable,2,0),IF($B$4="New England",VLOOKUP($B8,NETreesTable,2,0),IF($B$4="Mid-Atlantic",VLOOKUP($B8,MATreesTable,2,0),""))))))))) ->  | D8: =IF($B8="","",IF($B$4="West Coast",VLOOKUP($B8,WCTreesTable,5,0),IF($B$4="Mountain West",VLOOKUP($B8,MWTreesTable,5,0),IF($B$4="Great Plains",VLOOKUP($B8,GPTreesTable,5,0),IF($B$4="South Central",VLOOKUP($B8,SCTreesTable,5,0),IF($B$4="Upper Midwest",VLOOKUP($B8,UMWTreesTable,5,0),IF($B$4="Southeast",VLOOKUP($B8,SETreesTable,5,0),IF($B$4="New England",VLOOKUP($B8,NETreesTable,5,0),IF($B$4="Mid-Atlantic",VLOOKUP($B8,MATreesTable,5,0),""))))))))) ->  | E8: =IF($B8="","",IF($B$4="West Coast",VLOOKUP($B8,WCTreesTable,6,0),IF($B$4="Mountain West",VLOOKUP($B8,MWTreesTable,6,0),IF($B$4="Great Plains",VLOOKUP($B8,GPTreesTable,6,0),IF($B$4="South Central",VLOOKUP($B8,SCTreesTable,6,0),IF($B$4="Upper Midwest",VLOOKUP($B8,UMWTreesTable,6,0),IF($B$4="Southeast",VLOOKUP($B8,SETreesTable,6,0),IF($B$4="New England",VLOOKUP($B8,NETreesTable,6,0),IF($B$4="Mid-Atlantic",VLOOKUP($B8,MATreesTable,6,0),""))))))))) ->  | N8: Aspen, Quaking | O8: Populus tremuloides | P8: Hardwood | Q8: 0.38 | R8: 26.55744 | S8: 50 | U8: Aspen, Quaking | V8: Populus tremuloides | W8: Hardwood | X8: 0.38 | Y8: 26.55744 | Z8: 50 | AB8: Balsam poplar (cottonwood) | AC8: Populus balsamifera | AD8: Hardwood | AE8: 0.34 | AF8: 23.76192 | AG8: 40
A9: Tree Type #2: | N9: Balsam poplar (cottonwood) | O9: Populus balsamifera | P9: Hardwood | Q9: 0.34 | R9: 23.76192 | S9: 40 | U9: Balsam poplar (cottonwood) | V9: Populus balsamifera | W9: Hardwood | X9: 0.34 | Y9: 23.76192 | Z9: 40 | AB9: Basswood, American | AC9: Tilia americana | AD9: Hardwood | AE9: 0.37 | AF9: 25.85856 | AG9: 41
A10: Tree Type #3: | N10: Basswood, American | O10: Tilia americana | P10: Hardwood | Q10: 0.37 | R10: 25.85856 | S10: 41 | U10: Basswood, American | V10: Tilia americana | W10: Hardwood | X10: 0.37 | Y10: 25.85856 | Z10: 41 | AB10: Beech, American | AC10: Fagus grandifolia | AD10: Hardwood | AE10: 0.64 | AF10: 44.72832 | AG10: 54
A11: Tree Type #4: | N11: Birch, Paper | O11: Betula papyrifera | P11: Hardwood | Q11: 0.55 | R11: 38.4384 | S11: 52 | U11: Beech, American | V11: Fagus grandifolia | W11: Hardwood | X11: 0.64 | Y11: 44.72832 | Z11: 54 | AB11: Birch, Paper | AC11: Betula papyrifera | AD11: Hardwood | AE11: 0.55 | AF11: 38.4384 | AG11: 52
A12: Tree Type #5: | N12: Birch, Yellow | O12: Betula alleghaniensis | P12: Hardwood | Q12: 0.62 | R12: 43.33056 | S12: 59 | U12: Birch, Paper | V12: Betula papyrifera | W12: Hardwood | X12: 0.55 | Y12: 38.4384 | Z12: 52 | AB12: Birch, Sweet | AC12: Betula lenta | AD12: Hardwood | AE12: 0.65 | AF12: 45.4272 | AG12: 65
A13: Tree Type #6: | N13: Butternut | O13: Juglans cinerea | P13: Hardwood | Q13: 0.38 | R13: 26.55744 | S13: 46 | U13: Birch, Sweet | V13: Betula lenta | W13: Hardwood | X13: 0.65 | Y13: 45.4272 | Z13: 65 | AB13: Birch, Yellow | AC13: Betula alleghaniensis | AD13: Hardwood | AE13: 0.62 | AF13: 43.33056 | AG13: 59
A14: Tree Type #7: | N14: Cedar, Eastern redcedar | O14: Juniperus virginiana | P14: Softwood | Q14: 0.47 | R14: 32.84736 | S14: 37 | U14: Birch, Yellow | V14: Betula alleghaniensis | W14: Hardwood | X14: 0.62 | Y14: 43.33056 | Z14: 59 | AB14: Butternut | AC14: Juglans cinerea | AD14: Hardwood | AE14: 0.38 | AF14: 26.55744 | AG14: 46
A15: Tree Type #8: | N15: Cedar, Northern white | O15: Thuja occidentalis | P15: Softwood | Q15: 0.31 | R15: 21.66528 | S15: 36 | U15: Butternut | V15: Juglans cinerea | W15: Hardwood | X15: 0.38 | Y15: 26.55744 | Z15: 46 | AB15: Cedar, Atlantic white | AC15: Chamaecyparis thyoides | AD15: Softwood | AE15: 0.32 | AF15: 22.36416 | AG15: 36
A16: Tree Type #9: | N16: Cherry, Black | O16: Prunus serotina | P16: Hardwood | Q16: 0.5 | R16: 34.944 | S16: 45 | U16: Cedar, Eastern redcedar | V16: Juniperus virginiana | W16: Softwood | X16: 0.47 | Y16: 32.84736 | Z16: 37 | AB16: Cedar, Eastern redcedar | AC16: Juniperus virginiana | AD16: Softwood | AE16: 0.47 | AF16: 32.84736 | AG16: 37
A17: Tree Type #10: | N17: Cottonwood, Eastern | O17: Populus deltoides | P17: Hardwood | Q17: 0.4 | R17: 27.9552 | S17: 50 | U17: Cedar, Northern white | V17: Thuja occidentalis | W17: Softwood | X17: 0.31 | Y17: 21.66528 | Z17: 36 | AB17: Cedar, Northern white | AC17: Thuja occidentalis | AD17: Softwood | AE17: 0.31 | AF17: 21.66528 | AG17: 36
A18: 1 Air-dried unit weight, gTd = Average unit weight of wood after exposure to air on a 12% moisture content volume basis. Air-dried unit weight is used in the force balance calculations for the portion of wood that is above the proposed thalweg elevation (assuming unsaturated conditions). | N18: Elm, American | O18: Ulmus americana | P18: Hardwood | Q18: 0.5 | R18: 34.944 | S18: 56 | U18: Cherry, Black | V18: Prunus serotina | W18: Hardwood | X18: 0.5 | Y18: 34.944 | Z18: 45 | AB18: Cherry, Black | AC18: Prunus serotina | AD18: Hardwood | AE18: 0.5 | AF18: 34.944 | AG18: 45
N19: Elm, Rock | O19: Ulmus thomasii | P19: Hardwood | Q19: 0.63 | R19: 44.02944 | S19: 54 | U19: Chestnut, American | V19: Castanea dentata | W19: Hardwood | X19: 0.43 | Y19: 30.05184 | Z19: 55 | AB19: Chestnut, American | AC19: Castanea dentata | AD19: Hardwood | AE19: 0.43 | AF19: 30.05184 | AG19: 55
N20: Elm, Slippery | O20: Ulmus rubra | P20: Hardwood | Q20: 0.53 | R20: 37.04064 | S20: 53 | U20: Cottonwood, Eastern | V20: Populus deltoides | W20: Hardwood | X20: 0.4 | Y20: 27.9552 | Z20: 50 | AB20: Cottonwood, Eastern | AC20: Populus deltoides | AD20: Hardwood | AE20: 0.4 | AF20: 27.9552 | AG20: 50
A21: 2 Green unit weight, gTgr = Average unit weight of freshly sawn wood when the cell walls are completely saturated with water. Green unit weight is used in the force balance calculations as a conservative estimate of the unit weight for the portion of wood that is below the proposed thalweg elevation (assuming saturated conditions). For comparison, Thevenet, Citterio, & Piegay (1998) determined wood unit weight typically increases by more than 100% after less than 24 hours exposure to water. | N21: Fir, Balsam | O21: Abies balsamea | P21: Softwood | Q21: 0.35 | R21: 24.4608 | S21: 45 | U21: Cucumbertree (magnolia) | V21: Magnolia acuminata | W21: Hardwood | X21: 0.48 | Y21: 33.54624 | Z21: 48 | AB21: Cucumbertree (magnolia) | AC21: Magnolia acuminata | AD21: Hardwood | AE21: 0.48 | AF21: 33.54624 | AG21: 48
N22: Hackberry | O22: Celtis occidentalis | P22: Hardwood | Q22: 0.53 | R22: 37.04064 | S22: 50 | U22: Elm, American | V22: Ulmus americana | W22: Hardwood | X22: 0.5 | Y22: 34.944 | Z22: 56 | AB22: Elm, American | AC22: Ulmus americana | AD22: Hardwood | AE22: 0.5 | AF22: 34.944 | AG22: 56
N23: Hickory, Bitternut | O23: Carya cordiformis | P23: Hardwood | Q23: 0.66 | R23: 46.12608 | S23: 64 | U23: Elm, Rock | V23: Ulmus thomasii | W23: Hardwood | X23: 0.63 | Y23: 44.02944 | Z23: 54 | AB23: Elm, Rock | AC23: Ulmus thomasii | AD23: Hardwood | AE23: 0.63 | AF23: 44.02944 | AG23: 54
N24: Hickory, Mockernut | O24: Carya tomentosa | P24: Hardwood | Q24: 0.72 | R24: 50.31936 | S24: 65 | U24: Elm, Slippery | V24: Ulmus rubra | W24: Hardwood | X24: 0.53 | Y24: 37.04064 | Z24: 53 | AB24: Elm, Slippery | AC24: Ulmus rubra | AD24: Hardwood | AE24: 0.53 | AF24: 37.04064 | AG24: 53
N25: Hickory, Pignut | O25: Carya glabra | P25: Hardwood | Q25: 0.75 | R25: 52.416 | S25: 68 | U25: Fir, Balsam | V25: Abies balsamea | W25: Softwood | X25: 0.35 | Y25: 24.4608 | Z25: 45 | AB25: Fir, Balsam | AC25: Abies balsamea | AD25: Softwood | AE25: 0.35 | AF25: 24.4608 | AG25: 45
G26: Common Trees in West Coast Region | N26: Hickory, Shagbark | O26: Carya ovata | P26: Hardwood | Q26: 0.72 | R26: 50.31936 | S26: 64 | U26: Hackberry | V26: Celtis occidentalis | W26: Hardwood | X26: 0.53 | Y26: 37.04064 | Z26: 50 | AB26: Hackberry | AC26: Celtis occidentalis | AD26: Hardwood | AE26: 0.53 | AF26: 37.04064 | AG26: 50
A27: Source for timber unit weights: | G27: Common Name | H27: Scientific Name | I27: Type | J27: SGT | K27: gTd (lb/ft3) | L27: gTgr (lb/ft3) | N27: Hickory, Shellbark | O27: Carya laciniosa | P27: Hardwood | Q27: 0.69 | R27: 48.22272 | S27: 64 | U27: Hemlock, Eastern | V27: Tsuga canadensis | W27: Softwood | X27: 0.4 | Y27: 27.9552 | Z27: 50 | AB27: Hemlock, Eastern | AC27: Tsuga canadensis | AD27: Softwood | AE27: 0.4 | AF27: 27.9552 | AG27: 50
A28: U.S. Department of Agriculture, U.S. Forest Service. (2009) Specific Gravity and Other Properties of Wood and Bark for 156 Tree Species Found in North America. Research Note NRS-38. Table 1A. | G28: Alder, Red | H28: Alnus rubra | I28: Hardwood | J28: 0.41 | K28: =J28*62.4*1.12 -> 28.65408 | L28: 46 | N28: Honey locust | O28: Gleditsia triacanthos | P28: Hardwood | Q28: 0.65 | R28: 45.4272 | S28: 60 | U28: Hickory, Bitternut | V28: Carya cordiformis | W28: Hardwood | X28: 0.66 | Y28: 46.12608 | Z28: 64 | AB28: Hickory, Bitternut | AC28: Carya cordiformis | AD28: Hardwood | AE28: 0.66 | AF28: 46.12608 | AG28: 64
G29: Ash, Oregon | H29: Fraxinus latifolia | I29: Hardwood | J29: 0.55 | K29: 38.4384 | L29: 50 | N29: Locust, Black | O29: Robinia pseudoacacia | P29: Hardwood | Q29: 0.69 | R29: 48.22272 | S29: 58 | U29: Hickory, Mockernut | V29: Carya tomentosa | W29: Hardwood | X29: 0.72 | Y29: 50.31936 | Z29: 65 | AB29: Hickory, Mockernut | AC29: Carya tomentosa | AD29: Hardwood | AE29: 0.72 | AF29: 50.31936 | AG29: 65
G30: Aspen, Quaking | H30: Populus tremuloides | I30: Hardwood | J30: 0.38 | K30: 26.55744 | L30: 50 | N30: Maple, Black | O30: Acer nigrum | P30: Hardwood | Q30: 0.57 | R30: 39.83616 | S30: 55 | U30: Hickory, Pignut | V30: Carya glabra | W30: Hardwood | X30: 0.75 | Y30: 52.416 | Z30: 68 | AB30: Hickory, Pignut | AC30: Carya glabra | AD30: Hardwood | AE30: 0.75 | AF30: 52.416 | AG30: 68
G31: Birch, Paper | H31: Betula papyrifera | I31: Hardwood | J31: 0.55 | K31: 38.4384 | L31: 52 | N31: Maple, Red | O31: Acer rubrum | P31: Hardwood | Q31: 0.54 | R31: 37.73952 | S31: 50 | U31: Hickory, Shagbark | V31: Carya ovata | W31: Hardwood | X31: 0.72 | Y31: 50.31936 | Z31: 64 | AB31: Hickory, Shagbark | AC31: Carya ovata | AD31: Hardwood | AE31: 0.72 | AF31: 50.31936 | AG31: 64
G32: Cedar, Alaska-yellow | H32: Cupressus nootkatensis | I32: Softwood | J32: 0.44 | K32: 30.75072 | L32: 45 | N32: Maple, Silver | O32: Acer saccharinum | P32: Hardwood | Q32: 0.47 | R32: 32.84736 | S32: 46 | U32: Hickory, Shellbark | V32: Carya laciniosa | W32: Hardwood | X32: 0.69 | Y32: 48.22272 | Z32: 64 | AB32: Hickory, Shellbark | AC32: Carya laciniosa | AD32: Hardwood | AE32: 0.69 | AF32: 48.22272 | AG32: 64
G33: Cedar, Incense | H33: Calocedrus decurrens | I33: Softwood | J33: 0.37 | K33: 25.85856 | L33: 45 | N33: Maple, Sugar | O33: Acer saccharum | P33: Hardwood | Q33: 0.63 | R33: 44.02944 | S33: 55 | U33: Honey locust | V33: Gleditsia triacanthos | W33: Hardwood | X33: 0.65 | Y33: 45.4272 | Z33: 60 | AB33: Honey locust | AC33: Gleditsia triacanthos | AD33: Hardwood | AE33: 0.65 | AF33: 45.4272 | AG33: 60
G34: Cedar, Port-Orford | H34: Chamaecyparis lawsoniana | I34: Softwood | J34: 0.43 | K34: 30.05184 | L34: 42 | N34: Oak, Black | O34: Quercus velutina | P34: Hardwood | Q34: 0.61 | R34: 42.63168 | S34: 64 | U34: Locust, Black | V34: Robinia pseudoacacia | W34: Hardwood | X34: 0.69 | Y34: 48.22272 | Z34: 58 | AB34: Locust, Black | AC34: Robinia pseudoacacia | AD34: Hardwood | AE34: 0.69 | AF34: 48.22272 | AG34: 58
G35: Cedar, Western redcedar | H35: Thuja plicata | I35: Softwood | J35: 0.32 | K35: 22.36416 | L35: 27 | N35: Oak, Bur | O35: Quercus macrocarpa | P35: Hardwood | Q35: 0.64 | R35: =Q35*62.4*1.12 -> 44.72832 | S35: 63 | U35: Maple, Black | V35: Acer nigrum | W35: Hardwood | X35: 0.57 | Y35: =X35*62.4*1.12 -> 39.83616 | Z35: 55 | AB35: Maple, Black | AC35: Acer nigrum | AD35: Hardwood | AE35: 0.57 | AF35: =AE35*62.4*1.12 -> 39.83616 | AG35: 55
G36: Cottonwood, Black | H36: Populus trichocarpa | I36: Hardwood | J36: 0.35 | K36: 24.4608 | L36: 46 | N36: Oak, Cherrybark | O36: Quercus pagoda | P36: Hardwood | Q36: 0.69 | R36: 48.22272 | S36: 64 | U36: Maple, Red | V36: Acer rubrum | W36: Hardwood | X36: 0.54 | Y36: 37.73952 | Z36: 50 | AB36: Maple, Red | AC36: Acer rubrum | AD36: Hardwood | AE36: 0.54 | AF36: 37.73952 | AG36: 50
G37: Douglas-fir, Coast | H37: Pseudotsuga menziesii var. menzi. | I37: Softwood | J37: 0.48 | K37: 33.54624 | L37: 38 | N37: Oak, Northern red | O37: Quercus rubra | P37: Hardwood | Q37: 0.63 | R37: 44.02944 | S37: 64 | U37: Maple, Silver | V37: Acer saccharinum | W37: Hardwood | X37: 0.47 | Y37: 32.84736 | Z37: 46 | AB37: Maple, Silver | AC37: Acer saccharinum | AD37: Hardwood | AE37: 0.47 | AF37: 32.84736 | AG37: 46
G38: Douglas-fir, Interior west | H38: Pseudotsuga menziesii var. glauca | I38: Softwood | J38: 0.5 | K38: 34.944 | L38: 39 | N38: Oak, Pin | O38: Quercus palustris | P38: Hardwood | Q38: 0.63 | R38: 44.02944 | S38: 64 | U38: Maple, Sugar | V38: Acer saccharum | W38: Hardwood | X38: 0.63 | Y38: 44.02944 | Z38: 55 | AB38: Maple, Sugar | AC38: Acer saccharum | AD38: Hardwood | AE38: 0.63 | AF38: 44.02944 | AG38: 55
G39: Fir, California red | H39: Abies magnifica | I39: Softwood | J39: 0.38 | K39: 26.55744 | L39: 48 | N39: Oak, Post | O39: Quercus stellata | P39: Hardwood | Q39: 0.67 | R39: 46.82496 | S39: 64 | U39: Oak, Black | V39: Quercus velutina | W39: Hardwood | X39: 0.61 | Y39: 42.63168 | Z39: 64 | AB39: Oak, Black | AC39: Quercus velutina | AD39: Hardwood | AE39: 0.61 | AF39: 42.63168 | AG39: 64
G40: Fir, Grand | H40: Abies grandis | I40: Softwood | J40: 0.37 | K40: 25.85856 | L40: 45 | N40: Oak, Scarlet | O40: Quercus coccinea | P40: Hardwood | Q40: 0.67 | R40: 46.82496 | S40: 64 | U40: Oak, Bur | V40: Quercus macrocarpa | W40: Hardwood | X40: 0.64 | Y40: 44.72832 | Z40: 63 | AB40: Oak, Bur | AC40: Quercus macrocarpa | AD40: Hardwood | AE40: 0.64 | AF40: 44.72832 | AG40: 63
G41: Fir, Noble | H41: Abies procera | I41: Softwood | J41: 0.39 | K41: 27.25632 | L41: 30 | N41: Oak, Southern red | O41: Quercus falcata | P41: Hardwood | Q41: 0.59 | R41: 41.23392 | S41: 64 | U41: Oak, Cherrybark | V41: Quercus pagoda | W41: Hardwood | X41: 0.69 | Y41: 48.22272 | Z41: 64 | AB41: Oak, Chestnut | AC41: Quercus prinus | AD41: Hardwood | AE41: 0.66 | AF41: 46.12608 | AG41: 63
G42: Fir, Pacific silver | H42: Abies amabilis | I42: Softwood | J42: 0.43 | K42: 30.05184 | L42: 42 | N42: Oak, Swamp white | O42: Quercus bicolor | P42: Hardwood | Q42: 0.72 | R42: 50.31936 | S42: 63 | U42: Oak, Chestnut | V42: Quercus prinus | W42: Hardwood | X42: 0.66 | Y42: 46.12608 | Z42: 63 | AB42: Oak, Northern red | AC42: Quercus rubra | AD42: Hardwood | AE42: 0.63 | AF42: 44.02944 | AG42: 64
G43: Fir, Subalpine | H43: Abies lasiocarpa | I43: Softwood | J43: 0.32 | K43: 22.36416 | L43: 28 | N43: Oak, White | O43: Quercus alba | P43: Hardwood | Q43: 0.68 | R43: 47.52384 | S43: 63 | U43: Oak, Northern red | V43: Quercus rubra | W43: Hardwood | X43: 0.63 | Y43: 44.02944 | Z43: 64 | AB43: Oak, Pin | AC43: Quercus palustris | AD43: Hardwood | AE43: 0.63 | AF43: 44.02944 | AG43: 64
G44: Fir, White | H44: Abies concolor | I44: Softwood | J44: 0.39 | K44: 27.25632 | L44: 47 | N44: Pecan (hickory) | O44: Carya illinoinensis | P44: Hardwood | Q44: 0.66 | R44: 46.12608 | S44: 62 | U44: Oak, Overcup | V44: Quercus lyrata | W44: Hardwood | X44: 0.63 | Y44: 44.02944 | Z44: 63 | AB44: Oak, Post | AC44: Quercus stellata | AD44: Hardwood | AE44: 0.67 | AF44: 46.82496 | AG44: 64
G45: Hemlock, Mountain | H45: Tsuga mertensiana | I45: Softwood | J45: 0.45 | K45: 31.4496 | L45: 44 | N45: Pine, Eastern white | O45: Pinus strobus | P45: Softwood | Q45: 0.35 | R45: 24.4608 | S45: 35 | U45: Oak, Pin | V45: Quercus palustris | W45: Hardwood | X45: 0.63 | Y45: 44.02944 | Z45: 64 | AB45: Oak, Scarlet | AC45: Quercus coccinea | AD45: Hardwood | AE45: 0.67 | AF45: 46.82496 | AG45: 64
G46: Hemlock, Western | H46: Tsuga heterophylla | I46: Softwood | J46: 0.45 | K46: 31.4496 | L46: 41 | N46: Pine, Jack | O46: Pinus banksiana | P46: Softwood | Q46: 0.43 | R46: 30.05184 | S46: 50 | U46: Oak, Post | V46: Quercus stellata | W46: Hardwood | X46: 0.67 | Y46: 46.82496 | Z46: 64 | AB46: Oak, Swamp white | AC46: Quercus bicolor | AD46: Hardwood | AE46: 0.72 | AF46: 50.31936 | AG46: 63
G47: Larch, Western | H47: Larix occidentalis | I47: Softwood | J47: 0.52 | K47: 36.34176 | L47: 48 | N47: Pine, Red | O47: Pinus resinosa | P47: Softwood | Q47: 0.46 | R47: 32.14848 | S47: 42 | U47: Oak, Scarlet | V47: Quercus coccinea | W47: Hardwood | X47: 0.67 | Y47: 46.82496 | Z47: 64 | AB47: Oak, White | AC47: Quercus alba | AD47: Hardwood | AE47: 0.68 | AF47: 47.52384 | AG47: 63
G48: Maple, Bigleaf | H48: Acer macrophyllum | I48: Hardwood | J48: 0.48 | K48: 33.54624 | L48: 47 | N48: Pine, Shortleaf | O48: Pinus echinata | P48: Softwood | Q48: 0.51 | R48: 35.64288 | S48: 52 | U48: Oak, Southern red | V48: Quercus falcata | W48: Hardwood | X48: 0.59 | Y48: 41.23392 | Z48: 64 | AB48: Pine, Eastern white | AC48: Pinus strobus | AD48: Softwood | AE48: 0.35 | AF48: 24.4608 | AG48: 35
G49: Pine, Lodgepole | H49: Pinus contorta | I49: Softwood | J49: 0.41 | K49: 28.65408 | L49: 39 | N49: Spruce, Black | O49: Picea mariana | P49: Softwood | Q49: 0.46 | R49: 32.14848 | S49: 35 | U49: Oak, Swamp chestnut | V49: Quercus michauxii | W49: Hardwood | X49: 0.67 | Y49: 46.82496 | Z49: 63 | AB49: Pine, Jack | AC49: Pinus banksiana | AD49: Softwood | AE49: 0.43 | AF49: 30.05184 | AG49: 50
G50: Pine, Ponderosa | H50: Pinus ponderosa | I50: Softwood | J50: 0.4 | K50: 27.9552 | L50: 45 | N50: Spruce, White | O50: Picea glauca | P50: Softwood | Q50: 0.4 | R50: 27.9552 | S50: 35 | U50: Oak, Swamp white | V50: Quercus bicolor | W50: Hardwood | X50: 0.72 | Y50: 50.31936 | Z50: 63 | AB50: Pine, Pitch | AC50: Pinus rigida | AD50: Softwood | AE50: 0.52 | AF50: 36.34176 | AG50: 50
G51: Pine, Sugar | H51: Pinus lambertiana | I51: Softwood | J51: 0.36 | K51: 25.15968 | L51: 49 | N51: Sycamore, American | O51: Platanus occidentalis | P51: Hardwood | Q51: 0.49 | R51: 34.24512 | S51: 52 | U51: Oak, White | V51: Quercus alba | W51: Hardwood | X51: 0.68 | Y51: 47.52384 | Z51: 63 | AB51: Pine, Red | AC51: Pinus resinosa | AD51: Softwood | AE51: 0.46 | AF51: 32.14848 | AG51: 42
G52: Pine, Western white | H52: Pinus monticola | I52: Softwood | J52: 0.38 | K52: 26.55744 | L52: 35 | N52: Tamarack | O52: Larix laricina | P52: Softwood | Q52: 0.53 | R52: 37.04064 | S52: 47 | U52: Pecan (hickory) | V52: Carya illinoinensis | W52: Hardwood | X52: 0.66 | Y52: 46.12608 | Z52: 62 | AB52: Pine, Shortleaf | AC52: Pinus echinata | AD52: Softwood | AE52: 0.51 | AF52: 35.64288 | AG52: 52
G53: Redwood, Coast (Old) | H53: Sequoia sempervirens | I53: Softwood | J53: 0.4 | K53: 27.9552 | L53: 50 | N53: Tupelo, Black | O53: Nyssa sylvatica | P53: Hardwood | Q53: 0.5 | R53: 34.944 | S53: 56 | U53: Pine, Eastern white | V53: Pinus strobus | W53: Softwood | X53: 0.35 | Y53: 24.4608 | Z53: 35 | AB53: Pine, Virginia | AC53: Pinus virginiana | AD53: Softwood | AE53: 0.48 | AF53: 33.54624 | AG53: 50
G54: Redwood, Coast (young) | H54: Sequoia sempervirens | I54: Softwood | J54: 0.35 | K54: 24.4608 | L54: 50 | N54: Walnut, Black | O54: Juglans nigra | P54: Hardwood | Q54: 0.55 | R54: 38.4384 | S54: 57 | U54: Pine, Jack | V54: Pinus banksiana | W54: Softwood | X54: 0.43 | Y54: 30.05184 | Z54: 50 | AB54: Spruce, Black | AC54: Picea mariana | AD54: Softwood | AE54: 0.46 | AF54: 32.14848 | AG54: 35
G55: Spruce, Engelmann | H55: Picea engelmannii | I55: Softwood | J55: 0.35 | K55: 24.4608 | L55: 39 | N55: Willow, Black | O55: Salix nigra | P55: Hardwood | Q55: 0.39 | R55: 27.25632 | S55: 51 | U55: Pine, Pitch | V55: Pinus rigida | W55: Softwood | X55: 0.52 | Y55: 36.34176 | Z55: 50 | AB55: Spruce, Red | AC55: Picea rubens | AD55: Softwood | AE55: 0.4 | AF55: 27.9552 | AG55: 34
G56: Spruce, Sitka | H56: Picea sitchensis | I56: Softwood | J56: 0.36 | K56: 25.15968 | L56: 33 | N56: Custom (optional) | O56: (user selection in input table) | P56: (input) | Q56: (input) | R56: (input) | S56: (input) | U56: Pine, Red | V56: Pinus resinosa | W56: Softwood | X56: 0.46 | Y56: 32.14848 | Z56: 42 | AB56: Spruce, White | AC56: Picea glauca | AD56: Softwood | AE56: 0.4 | AF56: 27.9552 | AG56: 35
G57: Tanoak | H57: Notholithocarpus densiflorus | I57: Hardwood | J57: 0.62 | K57: 43.33056 | L57: 65 | U57: Pine, Virginia | V57: Pinus virginiana | W57: Softwood | X57: 0.48 | Y57: 33.54624 | Z57: 50 | AB57: Sycamore, American | AC57: Platanus occidentalis | AD57: Hardwood | AE57: 0.49 | AF57: 34.24512 | AG57: 52
G58: Willow, Black | H58: Salix nigra | I58: Hardwood | J58: 0.39 | K58: 27.25632 | L58: 51 | U58: Spruce, Black | V58: Picea mariana | W58: Softwood | X58: 0.46 | Y58: 32.14848 | Z58: 35 | AB58: Tamarack | AC58: Larix laricina | AD58: Softwood | AE58: 0.53 | AF58: 37.04064 | AG58: 47
G59: Custom (optional) | H59: (user selection in input table) | I59: (input) | J59: (input) | K59: (input) | L59: (input) | N59: Common Trees in South Central Region | U59: Spruce, White | V59: Picea glauca | W59: Softwood | X59: 0.4 | Y59: 27.9552 | Z59: 35 | AB59: Tupelo, Black | AC59: Nyssa sylvatica | AD59: Hardwood | AE59: 0.5 | AF59: 34.944 | AG59: 56
N60: Common Name | O60: Scientific Name | P60: Type | Q60: SGT | R60: gTd (lb/ft3) | S60: gTgr (lb/ft3) | U60: Sweetgum, American | V60: Liquidambar styraciflua | W60: Hardwood | X60: 0.52 | Y60: 36.34176 | Z60: 50 | AB60: Walnut, Black | AC60: Juglans nigra | AD60: Hardwood | AE60: 0.55 | AF60: 38.4384 | AG60: 57
N61: Ash, Blue | O61: Fraxinus quadrangulata | P61: Hardwood | Q61: 0.58 | R61: =Q61*62.4*1.12 -> 40.53504 | S61: 50 | U61: Sycamore, American | V61: Platanus occidentalis | W61: Hardwood | X61: 0.49 | Y61: 34.24512 | Z61: 52 | AB61: Willow, Black | AC61: Salix nigra | AD61: Hardwood | AE61: 0.39 | AF61: 27.25632 | AG61: 51
G62: Common Trees in Mountain West Region | N62: Ash, Green | O62: Fraxinus pennsylvanica | P62: Hardwood | Q62: 0.56 | R62: 39.13728 | S62: 52 | U62: Tamarack | V62: Larix laricina | W62: Softwood | X62: 0.53 | Y62: 37.04064 | Z62: 47 | AB62: Custom (optional) | AC62: (user selection in input table) | AD62: (input) | AE62: (input) | AF62: (input) | AG62: (input)
G63: Common Name | H63: Scientific Name | I63: Type | J63: SGT | K63: gTd (lb/ft3) | L63: gTgr (lb/ft3) | N63: Ash, White | O63: Fraxinus americana | P63: Hardwood | Q63: 0.6 | R63: 41.9328 | S63: 50 | U63: Tupelo, Black | V63: Nyssa sylvatica | W63: Hardwood | X63: 0.5 | Y63: 34.944 | Z63: 56
G64: Ash, Green | H64: Fraxinus pennsylvanica | I64: Hardwood | J64: 0.56 | K64: =J64*62.4*1.12 -> 39.13728 | L64: 52 | N64: Aspen, Bigtooth | O64: Populus grandidentata | P64: Hardwood | Q64: 0.39 | R64: 27.25632 | S64: 43 | U64: Walnut, Black | V64: Juglans nigra | W64: Hardwood | X64: 0.55 | Y64: 38.4384 | Z64: 57
G65: Aspen, Quaking | H65: Populus tremuloides | I65: Hardwood | J65: 0.38 | K65: 26.55744 | L65: 50 | N65: Baldcypress | O65: Taxodium distichum | P65: Softwood | Q65: 0.46 | R65: 32.14848 | S65: 51 | U65: Willow, Black | V65: Salix nigra | W65: Hardwood | X65: 0.39 | Y65: 27.25632 | Z65: 51 | AB65: Common Trees in Mid-Atlantic Region
G66: Balsam poplar (cottonwood) | H66: Populus balsamifera | I66: Hardwood | J66: 0.34 | K66: 23.76192 | L66: 40 | N66: Basswood, American | O66: Tilia americana | P66: Hardwood | Q66: 0.37 | R66: 25.85856 | S66: 41 | U66: Custom (optional) | V66: (user selection in input table) | W66: (input) | X66: (input) | Y66: (input) | Z66: (input) | AB66: Common Name | AC66: Scientific Name | AD66: Type | AE66: SGT | AF66: gTd (lb/ft3) | AG66: gTgr (lb/ft3)
G67: Birch, Paper | H67: Betula papyrifera | I67: Hardwood | J67: 0.55 | K67: 38.4384 | L67: 52 | N67: Beech, American | O67: Fagus grandifolia | P67: Hardwood | Q67: 0.64 | R67: 44.72832 | S67: 54 | AB67: Ash, Green | AC67: Fraxinus pennsylvanica | AD67: Hardwood | AE67: 0.56 | AF67: =AE67*62.4*1.12 -> 39.13728 | AG67: 52
G68: Cedar, Western redcedar | H68: Thuja plicata | I68: Softwood | J68: 0.32 | K68: 22.36416 | L68: 27 | N68: Birch, Sweet | O68: Betula lenta | P68: Hardwood | Q68: 0.65 | R68: 45.4272 | S68: 65 | AB68: Ash, White | AC68: Fraxinus americana | AD68: Hardwood | AE68: 0.6 | AF68: 41.9328 | AG68: 50
G69: Cherry, Black | H69: Prunus serotina | I69: Hardwood | J69: 0.5 | K69: 34.944 | L69: 45 | N69: Birch, Yellow | O69: Betula alleghaniensis | P69: Hardwood | Q69: 0.62 | R69: 43.33056 | S69: 59 | U69: Common Trees in Southeast Region | AB69: Aspen, Bigtooth | AC69: Populus grandidentata | AD69: Hardwood | AE69: 0.39 | AF69: 27.25632 | AG69: 43
G70: Cottonwood, Black | H70: Populus trichocarpa | I70: Hardwood | J70: 0.35 | K70: 24.4608 | L70: 46 | N70: Butternut | O70: Juglans cinerea | P70: Hardwood | Q70: 0.38 | R70: 26.55744 | S70: 46 | U70: Common Name | V70: Scientific Name | W70: Type | X70: SGT | Y70: gTd (lb/ft3) | Z70: gTgr (lb/ft3) | AB70: Aspen, Quaking | AC70: Populus tremuloides | AD70: Hardwood | AE70: 0.38 | AF70: 26.55744 | AG70: 50
G71: Cottonwood, Eastern | H71: Populus deltoides | I71: Hardwood | J71: 0.4 | K71: 27.9552 | L71: 50 | N71: Cedar, Eastern redcedar | O71: Juniperus virginiana | P71: Softwood | Q71: 0.47 | R71: 32.84736 | S71: 37 | U71: Ash, Green | V71: Fraxinus pennsylvanica | W71: Hardwood | X71: 0.56 | Y71: =X71*62.4*1.12 -> 39.13728 | Z71: 52 | AB71: Baldcypress | AC71: Taxodium distichum | AD71: Softwood | AE71: 0.46 | AF71: 32.14848 | AG71: 51
G72: Douglas-fir, Interior north | H72: Pseudotsuga menziesii var. glauca | I72: Softwood | J72: 0.48 | K72: 33.54624 | L72: 38 | N72: Cherry, Black | O72: Prunus serotina | P72: Hardwood | Q72: 0.5 | R72: 34.944 | S72: 45 | U72: Ash, White | V72: Fraxinus americana | W72: Hardwood | X72: 0.6 | Y72: 41.9328 | Z72: 50 | AB72: Basswood, American | AC72: Tilia americana | AD72: Hardwood | AE72: 0.37 | AF72: 25.85856 | AG72: 41
G73: Douglas-fir, Interior south | H73: Pseudotsuga menziesii var. glauca | I73: Softwood | J73: 0.46 | K73: 32.14848 | L73: 37 | N73: Chestnut, American | O73: Castanea dentata | P73: Hardwood | Q73: 0.43 | R73: 30.05184 | S73: 55 | U73: Baldcypress | V73: Taxodium distichum | W73: Softwood | X73: 0.46 | Y73: 32.14848 | Z73: 51 | AB73: Beech, American | AC73: Fagus grandifolia | AD73: Hardwood | AE73: 0.64 | AF73: 44.72832 | AG73: 54
G74: Fir, Grand | H74: Abies grandis | I74: Softwood | J74: 0.37 | K74: 25.85856 | L74: 45 | N74: Cottonwood, Eastern | O74: Populus deltoides | P74: Hardwood | Q74: 0.4 | R74: 27.9552 | S74: 50 | U74: Basswood, American | V74: Tilia americana | W74: Hardwood | X74: 0.37 | Y74: 25.85856 | Z74: 41 | AB74: Birch, Sweet | AC74: Betula lenta | AD74: Hardwood | AE74: 0.65 | AF74: 45.4272 | AG74: 65
G75: Fir, Subalpine | H75: Abies lasiocarpa | I75: Softwood | J75: 0.32 | K75: 22.36416 | L75: 28 | N75: Cucumbertree (magnolia) | O75: Magnolia acuminata | P75: Hardwood | Q75: 0.48 | R75: 33.54624 | S75: 48 | U75: Beech, American | V75: Fagus grandifolia | W75: Hardwood | X75: 0.64 | Y75: 44.72832 | Z75: 54 | AB75: Birch, Yellow | AC75: Betula alleghaniensis | AD75: Hardwood | AE75: 0.62 | AF75: 43.33056 | AG75: 59
G76: Fir, White | H76: Abies concolor | I76: Softwood | J76: 0.39 | K76: 27.25632 | L76: 47 | N76: Elm, American | O76: Ulmus americana | P76: Hardwood | Q76: 0.5 | R76: 34.944 | S76: 56 | U76: Birch, Sweet | V76: Betula lenta | W76: Hardwood | X76: 0.65 | Y76: 45.4272 | Z76: 65 | AB76: Butternut | AC76: Juglans cinerea | AD76: Hardwood | AE76: 0.38 | AF76: 26.55744 | AG76: 46
G77: Hemlock, Mountain | H77: Tsuga mertensiana | I77: Softwood | J77: 0.45 | K77: 31.4496 | L77: 44 | N77: Elm, Rock | O77: Ulmus thomasii | P77: Hardwood | Q77: 0.63 | R77: 44.02944 | S77: 54 | U77: Birch, Yellow | V77: Betula alleghaniensis | W77: Hardwood | X77: 0.62 | Y77: 43.33056 | Z77: 59 | AB77: Cedar, Atlantic white | AC77: Chamaecyparis thyoides | AD77: Softwood | AE77: 0.32 | AF77: 22.36416 | AG77: 36
G78: Hemlock, Western | H78: Tsuga heterophylla | I78: Softwood | J78: 0.45 | K78: 31.4496 | L78: 41 | N78: Elm, Slippery | O78: Ulmus rubra | P78: Hardwood | Q78: 0.53 | R78: 37.04064 | S78: 53 | U78: Butternut | V78: Juglans cinerea | W78: Hardwood | X78: 0.38 | Y78: 26.55744 | Z78: 46 | AB78: Cedar, Eastern redcedar | AC78: Juniperus virginiana | AD78: Softwood | AE78: 0.47 | AF78: 32.84736 | AG78: 37
G79: Larch, Western | H79: Larix occidentalis | I79: Softwood | J79: 0.52 | K79: 36.34176 | L79: 48 | N79: Hackberry | O79: Celtis occidentalis | P79: Hardwood | Q79: 0.53 | R79: 37.04064 | S79: 50 | U79: Cedar, Atlantic white | V79: Chamaecyparis thyoides | W79: Softwood | X79: 0.32 | Y79: 22.36416 | Z79: 36 | AB79: Cherry, Black | AC79: Prunus serotina | AD79: Hardwood | AE79: 0.5 | AF79: 34.944 | AG79: 45
G80: Pine, Lodgepole | H80: Pinus contorta | I80: Softwood | J80: 0.41 | K80: 28.65408 | L80: 39 | N80: Hemlock, Eastern | O80: Tsuga canadensis | P80: Softwood | Q80: 0.4 | R80: 27.9552 | S80: 50 | U80: Cedar, Eastern redcedar | V80: Juniperus virginiana | W80: Softwood | X80: 0.47 | Y80: 32.84736 | Z80: 37 | AB80: Chestnut, American | AC80: Castanea dentata | AD80: Hardwood | AE80: 0.43 | AF80: 30.05184 | AG80: 55
G81: Pine, Ponderosa | H81: Pinus ponderosa | I81: Softwood | J81: 0.4 | K81: 27.9552 | L81: 45 | N81: Hickory, Bitternut | O81: Carya cordiformis | P81: Hardwood | Q81: 0.66 | R81: 46.12608 | S81: 64 | U81: Cherry, Black | V81: Prunus serotina | W81: Hardwood | X81: 0.5 | Y81: 34.944 | Z81: 45 | AB81: Cottonwood, Eastern | AC81: Populus deltoides | AD81: Hardwood | AE81: 0.4 | AF81: 27.9552 | AG81: 50
G82: Pine, Western white | H82: Pinus monticola | I82: Softwood | J82: 0.38 | K82: 26.55744 | L82: 35 | N82: Hickory, Mockernut | O82: Carya tomentosa | P82: Hardwood | Q82: 0.72 | R82: 50.31936 | S82: 65 | U82: Chestnut, American | V82: Castanea dentata | W82: Hardwood | X82: 0.43 | Y82: 30.05184 | Z82: 55 | AB82: Cucumbertree (magnolia) | AC82: Magnolia acuminata | AD82: Hardwood | AE82: 0.48 | AF82: 33.54624 | AG82: 48
G83: Spruce, Engelmann | H83: Picea engelmannii | I83: Softwood | J83: 0.35 | K83: 24.4608 | L83: 39 | N83: Hickory, Nutmeg | O83: Carya myristiciformis | P83: Hardwood | Q83: 0.6 | R83: 41.9328 | S83: 62 | U83: Cottonwood, Eastern | V83: Populus deltoides | W83: Hardwood | X83: 0.4 | Y83: 27.9552 | Z83: 50 | AB83: Elm, American | AC83: Ulmus americana | AD83: Hardwood | AE83: 0.5 | AF83: 34.944 | AG83: 56
G84: Willow, Black | H84: Salix nigra | I84: Hardwood | J84: 0.39 | K84: 27.25632 | L84: 51 | N84: Hickory, Pignut | O84: Carya glabra | P84: Hardwood | Q84: 0.75 | R84: 52.416 | S84: 68 | U84: Cucumbertree (magnolia) | V84: Magnolia acuminata | W84: Hardwood | X84: 0.48 | Y84: 33.54624 | Z84: 48 | AB84: Elm, Slippery | AC84: Ulmus rubra | AD84: Hardwood | AE84: 0.53 | AF84: 37.04064 | AG84: 53
G85: Custom (optional) | H85: (user selection in input table) | I85: (input) | J85: (input) | K85: (input) | L85: (input) | N85: Hickory, Shagbark | O85: Carya ovata | P85: Hardwood | Q85: 0.72 | R85: 50.31936 | S85: 64 | U85: Elm, American | V85: Ulmus americana | W85: Hardwood | X85: 0.5 | Y85: 34.944 | Z85: 56 | AB85: Hackberry | AC85: Celtis occidentalis | AD85: Hardwood | AE85: 0.53 | AF85: 37.04064 | AG85: 50
N86: Hickory, Shellbark | O86: Carya laciniosa | P86: Hardwood | Q86: 0.69 | R86: 48.22272 | S86: 64 | U86: Elm, Slippery | V86: Ulmus rubra | W86: Hardwood | X86: 0.53 | Y86: 37.04064 | Z86: 53 | AB86: Hemlock, Eastern | AC86: Tsuga canadensis | AD86: Softwood | AE86: 0.4 | AF86: 27.9552 | AG86: 50
N87: Hickory, Water | O87: Carya aquatica | P87: Hardwood | Q87: 0.62 | R87: 43.33056 | S87: 70 | U87: Hackberry | V87: Celtis occidentalis | W87: Hardwood | X87: 0.53 | Y87: 37.04064 | Z87: 50 | AB87: Hickory, Bitternut | AC87: Carya cordiformis | AD87: Hardwood | AE87: 0.66 | AF87: 46.12608 | AG87: 64
N88: Honey locust | O88: Gleditsia triacanthos | P88: Hardwood | Q88: 0.65 | R88: 45.4272 | S88: 60 | U88: Hemlock, Eastern | V88: Tsuga canadensis | W88: Softwood | X88: 0.4 | Y88: 27.9552 | Z88: 50 | AB88: Hickory, Mockernut | AC88: Carya tomentosa | AD88: Hardwood | AE88: 0.72 | AF88: 50.31936 | AG88: 65
N89: Locust, Black | O89: Robinia pseudoacacia | P89: Hardwood | Q89: 0.69 | R89: 48.22272 | S89: 58 | U89: Hickory, Bitternut | V89: Carya cordiformis | W89: Hardwood | X89: 0.66 | Y89: 46.12608 | Z89: 64 | AB89: Hickory, Pignut | AC89: Carya glabra | AD89: Hardwood | AE89: 0.75 | AF89: 52.416 | AG89: 68
N90: Magnolia, Southern | O90: Magnolia grandiflora | P90: Hardwood | Q90: 0.5 | R90: 34.944 | S90: 59 | U90: Hickory, Mockernut | V90: Carya tomentosa | W90: Hardwood | X90: 0.72 | Y90: 50.31936 | Z90: 65 | AB90: Hickory, Shagbark | AC90: Carya ovata | AD90: Hardwood | AE90: 0.72 | AF90: 50.31936 | AG90: 64
N91: Maple, Black | O91: Acer nigrum | P91: Hardwood | Q91: 0.57 | R91: 39.83616 | S91: 55 | U91: Hickory, Nutmeg | V91: Carya myristiciformis | W91: Hardwood | X91: 0.6 | Y91: 41.9328 | Z91: 62 | AB91: Locust, Black | AC91: Robinia pseudoacacia | AD91: Hardwood | AE91: 0.69 | AF91: 48.22272 | AG91: 58
N92: Maple, Red | O92: Acer rubrum | P92: Hardwood | Q92: 0.54 | R92: 37.73952 | S92: 50 | U92: Hickory, Pignut | V92: Carya glabra | W92: Hardwood | X92: 0.75 | Y92: 52.416 | Z92: 68 | AB92: Maple, Red | AC92: Acer rubrum | AD92: Hardwood | AE92: 0.54 | AF92: 37.73952 | AG92: 50
N93: Maple, Silver | O93: Acer saccharinum | P93: Hardwood | Q93: 0.47 | R93: =Q93*62.4*1.12 -> 32.84736 | S93: 46 | U93: Hickory, Shagbark | V93: Carya ovata | W93: Hardwood | X93: 0.72 | Y93: 50.31936 | Z93: 64 | AB93: Maple, Silver | AC93: Acer saccharinum | AD93: Hardwood | AE93: 0.47 | AF93: 32.84736 | AG93: 46
N94: Maple, Sugar | O94: Acer saccharum | P94: Hardwood | Q94: 0.63 | R94: 44.02944 | S94: 55 | U94: Hickory, Water | V94: Carya aquatica | W94: Hardwood | X94: 0.62 | Y94: 43.33056 | Z94: 70 | AB94: Maple, Sugar | AC94: Acer saccharum | AD94: Hardwood | AE94: 0.63 | AF94: 44.02944 | AG94: 55
N95: Oak, Black | O95: Quercus velutina | P95: Hardwood | Q95: 0.61 | R95: 42.63168 | S95: 64 | U95: Locust, Black | V95: Robinia pseudoacacia | W95: Hardwood | X95: 0.69 | Y95: 48.22272 | Z95: 58 | AB95: Oak, Black | AC95: Quercus velutina | AD95: Hardwood | AE95: 0.61 | AF95: 42.63168 | AG95: 64
N96: Oak, Bur | O96: Quercus macrocarpa | P96: Hardwood | Q96: 0.64 | R96: 44.72832 | S96: 63 | U96: Magnolia, Southern | V96: Magnolia grandiflora | W96: Hardwood | X96: 0.5 | Y96: 34.944 | Z96: 59 | AB96: Oak, Cherrybark | AC96: Quercus pagoda | AD96: Hardwood | AE96: 0.69 | AF96: 48.22272 | AG96: 64
N97: Oak, Cherrybark | O97: Quercus pagoda | P97: Hardwood | Q97: 0.69 | R97: 48.22272 | S97: 64 | U97: Maple, Red | V97: Acer rubrum | W97: Hardwood | X97: 0.54 | Y97: 37.73952 | Z97: 50 | AB97: Oak, Chestnut | AC97: Quercus prinus | AD97: Hardwood | AE97: 0.66 | AF97: 46.12608 | AG97: 63
N98: Oak, Chestnut | O98: Quercus prinus | P98: Hardwood | Q98: 0.66 | R98: 46.12608 | S98: 63 | U98: Maple, Silver | V98: Acer saccharinum | W98: Hardwood | X98: 0.47 | Y98: 32.84736 | Z98: 46 | AB98: Oak, Laurel | AC98: Quercus laurifolia | AD98: Hardwood | AE98: 0.63 | AF98: 44.02944 | AG98: 64
N99: Oak, Laurel | O99: Quercus laurifolia | P99: Hardwood | Q99: 0.63 | R99: 44.02944 | S99: 64 | U99: Oak, Black | V99: Quercus velutina | W99: Hardwood | X99: 0.61 | Y99: 42.63168 | Z99: 64 | AB99: Oak, Northern red | AC99: Quercus rubra | AD99: Hardwood | AE99: 0.63 | AF99: =AE99*62.4*1.12 -> 44.02944 | AG99: 64
N100: Oak, Northern red | O100: Quercus rubra | P100: Hardwood | Q100: 0.63 | R100: 44.02944 | S100: 64 | U100: Oak, Cherrybark | V100: Quercus pagoda | W100: Hardwood | X100: 0.69 | Y100: 48.22272 | Z100: 64 | AB100: Oak, Overcup | AC100: Quercus lyrata | AD100: Hardwood | AE100: 0.63 | AF100: 44.02944 | AG100: 63
N101: Oak, Overcup | O101: Quercus lyrata | P101: Hardwood | Q101: 0.63 | R101: 44.02944 | S101: 63 | U101: Oak, Chestnut | V101: Quercus prinus | W101: Hardwood | X101: 0.66 | Y101: 46.12608 | Z101: 63 | AB101: Oak, Pin | AC101: Quercus palustris | AD101: Hardwood | AE101: 0.63 | AF101: 44.02944 | AG101: 64
N102: Oak, Pin | O102: Quercus palustris | P102: Hardwood | Q102: 0.63 | R102: 44.02944 | S102: 64 | U102: Oak, Laurel | V102: Quercus laurifolia | W102: Hardwood | X102: 0.63 | Y102: 44.02944 | Z102: 64 | AB102: Oak, Post | AC102: Quercus stellata | AD102: Hardwood | AE102: 0.67 | AF102: 46.82496 | AG102: 64
N103: Oak, Post | O103: Quercus stellata | P103: Hardwood | Q103: 0.67 | R103: 46.82496 | S103: 64 | U103: Oak, Northern red | V103: Quercus rubra | W103: Hardwood | X103: 0.63 | Y103: =X103*62.4*1.12 -> 44.02944 | Z103: 64 | AB103: Oak, Scarlet | AC103: Quercus coccinea | AD103: Hardwood | AE103: 0.67 | AF103: 46.82496 | AG103: 64
N104: Oak, Scarlet | O104: Quercus coccinea | P104: Hardwood | Q104: 0.67 | R104: 46.82496 | S104: 64 | U104: Oak, Overcup | V104: Quercus lyrata | W104: Hardwood | X104: 0.63 | Y104: 44.02944 | Z104: 63 | AB104: Oak, Southern red | AC104: Quercus falcata | AD104: Hardwood | AE104: 0.59 | AF104: 41.23392 | AG104: 64
N105: Oak, Southern live | O105: Quercus virginiana | P105: Hardwood | Q105: 0.88 | R105: 61.50144 | S105: 76 | U105: Oak, Pin | V105: Quercus palustris | W105: Hardwood | X105: 0.63 | Y105: 44.02944 | Z105: 64 | AB105: Oak, Swamp chestnut | AC105: Quercus michauxii | AD105: Hardwood | AE105: 0.67 | AF105: 46.82496 | AG105: 63
N106: Oak, Southern red | O106: Quercus falcata | P106: Hardwood | Q106: 0.59 | R106: 41.23392 | S106: 64 | U106: Oak, Post | V106: Quercus stellata | W106: Hardwood | X106: 0.67 | Y106: 46.82496 | Z106: 64 | AB106: Oak, Swamp white | AC106: Quercus bicolor | AD106: Hardwood | AE106: 0.72 | AF106: 50.31936 | AG106: 63
N107: Oak, Swamp chestnut | O107: Quercus michauxii | P107: Hardwood | Q107: 0.67 | R107: 46.82496 | S107: 63 | U107: Oak, Scarlet | V107: Quercus coccinea | W107: Hardwood | X107: 0.67 | Y107: 46.82496 | Z107: 64 | AB107: Oak, Water | AC107: Quercus nigra | AD107: Hardwood | AE107: 0.63 | AF107: 44.02944 | AG107: 64
N108: Oak, Swamp white | O108: Quercus bicolor | P108: Hardwood | Q108: 0.72 | R108: 50.31936 | S108: 63 | U108: Oak, Southern live | V108: Quercus virginiana | W108: Hardwood | X108: 0.88 | Y108: 61.50144 | Z108: 76 | AB108: Oak, White | AC108: Quercus alba | AD108: Hardwood | AE108: 0.68 | AF108: 47.52384 | AG108: 63
N109: Oak, Water | O109: Quercus nigra | P109: Hardwood | Q109: 0.63 | R109: 44.02944 | S109: 64 | U109: Oak, Southern red | V109: Quercus falcata | W109: Hardwood | X109: 0.59 | Y109: 41.23392 | Z109: 64 | AB109: Oak, Willow | AC109: Quercus phellos | AD109: Hardwood | AE109: 0.69 | AF109: 48.22272 | AG109: 64
N110: Oak, White | O110: Quercus alba | P110: Hardwood | Q110: 0.68 | R110: 47.52384 | S110: 63 | U110: Oak, Swamp chestnut | V110: Quercus michauxii | W110: Hardwood | X110: 0.67 | Y110: 46.82496 | Z110: 63 | AB110: Pine, Eastern white | AC110: Pinus strobus | AD110: Softwood | AE110: 0.35 | AF110: 24.4608 | AG110: 35
N111: Oak, Willow | O111: Quercus phellos | P111: Hardwood | Q111: 0.69 | R111: 48.22272 | S111: 64 | U111: Oak, Water | V111: Quercus nigra | W111: Hardwood | X111: 0.63 | Y111: 44.02944 | Z111: 64 | AB111: Pine, Loblolly | AC111: Pinus taeda | AD111: Softwood | AE111: 0.51 | AF111: 35.64288 | AG111: 53
N112: Pecan (hickory) | O112: Carya illinoinensis | P112: Hardwood | Q112: 0.66 | R112: 46.12608 | S112: 62 | U112: Oak, White | V112: Quercus alba | W112: Hardwood | X112: 0.68 | Y112: 47.52384 | Z112: 63 | AB112: Pine, Pitch | AC112: Pinus rigida | AD112: Softwood | AE112: 0.52 | AF112: 36.34176 | AG112: 50
N113: Pine, Eastern white | O113: Pinus strobus | P113: Softwood | Q113: 0.35 | R113: 24.4608 | S113: 35 | U113: Oak, Willow | V113: Quercus phellos | W113: Hardwood | X113: 0.69 | Y113: 48.22272 | Z113: 64 | AB113: Pine, Pond | AC113: Pinus serotina | AD113: Softwood | AE113: 0.56 | AF113: 39.13728 | AG113: 51
N114: Pine, Loblolly | O114: Pinus taeda | P114: Softwood | Q114: 0.51 | R114: 35.64288 | S114: 53 | U114: Pine, Eastern white | V114: Pinus strobus | W114: Softwood | X114: 0.35 | Y114: 24.4608 | Z114: 35 | AB114: Pine, Shortleaf | AC114: Pinus echinata | AD114: Softwood | AE114: 0.51 | AF114: 35.64288 | AG114: 52
N115: Pine, Longleaf | O115: Pinus palustris | P115: Softwood | Q115: 0.59 | R115: 41.23392 | S115: 55 | U115: Pine, Loblolly | V115: Pinus taeda | W115: Softwood | X115: 0.51 | Y115: 35.64288 | Z115: 53 | AB115: Pine, Virginia | AC115: Pinus virginiana | AD115: Softwood | AE115: 0.48 | AF115: 33.54624 | AG115: 50
N116: Pine, Pitch | O116: Pinus rigida | P116: Softwood | Q116: 0.52 | R116: 36.34176 | S116: 50 | U116: Pine, Longleaf | V116: Pinus palustris | W116: Softwood | X116: 0.59 | Y116: 41.23392 | Z116: 55 | AB116: Sweetgum, American | AC116: Liquidambar styraciflua | AD116: Hardwood | AE116: 0.52 | AF116: 36.34176 | AG116: 50
N117: Pine, Shortleaf | O117: Pinus echinata | P117: Softwood | Q117: 0.51 | R117: 35.64288 | S117: 52 | U117: Pine, Pitch | V117: Pinus rigida | W117: Softwood | X117: 0.52 | Y117: 36.34176 | Z117: 50 | AB117: Sycamore, American | AC117: Platanus occidentalis | AD117: Hardwood | AE117: 0.49 | AF117: 34.24512 | AG117: 52
N118: Pine, Slash | O118: Pinus elliottii | P118: Softwood | Q118: 0.59 | R118: 41.23392 | S118: 58 | U118: Pine, Pond | V118: Pinus serotina | W118: Softwood | X118: 0.56 | Y118: 39.13728 | Z118: 51 | AB118: Tupelo, Black | AC118: Nyssa sylvatica | AD118: Hardwood | AE118: 0.5 | AF118: 34.944 | AG118: 56
N119: Pine, Spruce | O119: Pinus glabra | P119: Softwood | Q119: 0.44 | R119: 30.75072 | S119: 45 | U119: Pine, Sand | V119: Pinus clausa | W119: Softwood | X119: 0.48 | Y119: 33.54624 | Z119: 38 | AB119: Walnut, Black | AC119: Juglans nigra | AD119: Hardwood | AE119: 0.55 | AF119: 38.4384 | AG119: 57
N120: Pine, Virginia | O120: Pinus virginiana | P120: Softwood | Q120: 0.48 | R120: 33.54624 | S120: 50 | U120: Pine, Shortleaf | V120: Pinus echinata | W120: Softwood | X120: 0.51 | Y120: 35.64288 | Z120: 52 | AB120: Willow, Black | AC120: Salix nigra | AD120: Hardwood | AE120: 0.39 | AF120: 27.25632 | AG120: 51
N121: Sweetgum, American | O121: Liquidambar styraciflua | P121: Hardwood | Q121: 0.52 | R121: 36.34176 | S121: 50 | U121: Pine, Slash | V121: Pinus elliottii | W121: Softwood | X121: 0.59 | Y121: 41.23392 | Z121: 58 | AB121: Custom (optional) | AC121: (user selection in input table) | AD121: (input) | AE121: (input) | AF121: (input) | AG121: (input)
N122: Sycamore, American | O122: Platanus occidentalis | P122: Hardwood | Q122: 0.49 | R122: 34.24512 | S122: 52 | U122: Pine, Spruce | V122: Pinus glabra | W122: Softwood | X122: 0.44 | Y122: 30.75072 | Z122: 45
N123: Tupelo, Black | O123: Nyssa sylvatica | P123: Hardwood | Q123: 0.5 | R123: 34.944 | S123: 56 | U123: Pine, Virginia | V123: Pinus virginiana | W123: Softwood | X123: 0.48 | Y123: 33.54624 | Z123: 50
N124: Tupelo, Water | O124: Nyssa aquatica | P124: Hardwood | Q124: 0.5 | R124: 34.944 | S124: 56 | U124: Sweetgum, American | V124: Liquidambar styraciflua | W124: Hardwood | X124: 0.52 | Y124: 36.34176 | Z124: 50
N125: Walnut, Black | O125: Juglans nigra | P125: Hardwood | Q125: 0.55 | R125: =Q125*62.4*1.12 -> 38.4384 | S125: 57 | U125: Sycamore, American | V125: Platanus occidentalis | W125: Hardwood | X125: 0.49 | Y125: 34.24512 | Z125: 52
N126: Willow, Black | O126: Salix nigra | P126: Hardwood | Q126: 0.39 | R126: =Q126*62.4*1.12 -> 27.25632 | S126: 51 | U126: Tupelo, Black | V126: Nyssa sylvatica | W126: Hardwood | X126: 0.5 | Y126: 34.944 | Z126: 56
N127: Custom (optional) | O127: (user selection in input table) | P127: (input) | Q127: (input) | R127: (input) | S127: (input) | U127: Tupelo, Water | V127: Nyssa aquatica | W127: Hardwood | X127: 0.5 | Y127: 34.944 | Z127: 56
U128: Walnut, Black | V128: Juglans nigra | W128: Hardwood | X128: 0.55 | Y128: 38.4384 | Z128: 57
U129: Willow, Black | V129: Salix nigra | W129: Hardwood | X129: 0.39 | Y129: 27.25632 | Z129: 51
U130: Custom (optional) | V130: (user selection in input table) | W130: (input) | X130: (input) | Y130: (input) | Z130: (input)

Sheet 6-Single Log Design
A1: ='1-Cover'!A1 -> Project Name | I1: Spreadsheet developed by Michael Rafferty, P.E.
A3: Single Log Stability Analysis Model Inputs | K3: ERROR CHECKS
A5: Site ID | B5: Structure Type | D5: Structure Position | F5: Meander | G5: Station | H5: dw (ft) | I5: Rc/WBF | J5: udes (ft/s) | L5: Type Lookup Table | AG5: Tilted Cylindrical (Stem) "Below Water Surface" Volume Calculation (Below High Flow) | AR5: Tilted Cylindrical (Stem) Wet Volume Calculation (Below Channel Thalweg) | BC5: Tilted Frustum (RW) Volume Calculation (Slice Method) | BI5: A = R2 arccos [(R - h)/R] - [(R - h)*SQRT(2Rh - h2)]
G6: =IF($A6="","",VLOOKUP($A6,SiteInfo,2,0)) ->  | H6: =IF($A6="","",VLOOKUP($A6,SiteInfo,4,0)) ->  | I6: =IF($A6="","",VLOOKUP($A6,SiteInfo,9,0)) ->  | J6: =IF(OR($A$6="",$F$6=""),"",IF($F$6="Outside",VLOOKUP($A$6,SiteInfo,10,0),VLOOKUP($A$6,SiteInfo,5,0))) ->  | K6: =IF($F$6="","",IF(AND($I$6<26,$F$6="Straight"),"CHECK - Structure is located on a meander (Rc/WBF < 26)","")) ->  | L6: Structure Types | N6: Description | AC6: Water Surface | BC6: Slice thickness (ft) = | BE6: =IF($G$22="","",$G$22/$BC$39) -> 0 | BF6: WSE (ft) = | BG6: =IF($AE$8="","",$AE$8) -> 0 | BH6: RRW (ft) = | BI6: =IF($H$22="","",$H$22/2) -> 0 | BJ6: yRW,crown (ft) = | BK6: =IF($U$10="","",$U$10) -> 0 | BL6: yRW,bot (ft) = | BM6: =IF($U$15="","",$U$15) -> 0
K7: =IF(OR($F$6="",$I$6=""),"",IF(AND($I$6>26,$F$6<>"Straight"),"CHECK - Structure is not on a meander (Rc/WBF > 26)","")) ->  | L7: Rootwad | N7: Logs buried in bank with rootwads protruding into channel | AD7: x (ft) | AE7: y (ft) | AH7: R = DTS/2 | AI7: =$F$22/2 -> 0 | AJ7: ft | AS7: R = DTS/2 | AT7: =$F$22/2 -> 0 | AU7: ft | BF7: Thalweg Elevation (ft) = | BG7: =$C$16 -> 0 | BH7: RTS (ft) = | BI7: =IF($F$22="","",$F$22/2) ->  | BJ7: yRC,crown (ft) = | BK7: =IF($U$11="","",$U$11) -> 0 | BL7: yRC,bot (ft) = | BM7: =IF($U$14="","",$U$14) -> 0
A8: Multi-Log Structures | B8: Layer | C8: Log ID | L8: Log Vane | N8: Logs protruding from bank and angled either up- or downstream | S8: Large Wood Coordinates | AC8: WSE | AD8: =IF(OR($A$6="",$C$16=""),0,IF(($H$6+$C$16)>=$C$13,$B$13,IF(AND(($H$6+$C$16)<$C$13,($H$6+$C$16)>=$C$14),((($C$13-($H$6+$C$16))/($C$13-$C$14))*($B$14-$B$13))+$B$13,IF(AND(($H$6+$C$16)<$C$14,($H$6+$C$16)>=$C$15),((($C$14-($H$6+$C$16))/($C$14-$C$15))*($B$15-$B$14))+$B$14,IF(AND(($H$6+$C$16)<$C$15,($H$6+$C$16)>=$C$16),((($C$15-($H$6+$C$16))/($C$15-$C$16))*($B$16-$B$15))+$B$15,""))))) -> 0 | AE8: =IF(OR($A$6="",$C$16=""),$C$13,$H$6+$C$16) -> 0 | AH8: b (rad) | AI8: =ABS($C$25)*PI()/180 -> 0 | AJ8: rad | AS8: b (rad) | AT8: =ABS($C$25)*PI()/180 -> 0 | AU8: rad
L9: Log Weir | N9: Weirs spanning small streams comprised of one or more large logs | T9: x (ft) | U9: y (ft) | W9: Large wood check | X9: x (ft) | Z9: y (ft) | AC9: WSE | AD9: =IF(OR($A$6="",$C$16=""),0,IF(($H$6+$C$16)>=$C$19,$B$19,IF(AND(($H$6+$C$16)<$C$19,($H$6+$C$16)>=$C$18),(((($H$6+$C$16)-$C$18)/($C$19-$C$18))*($B$19-$B$18))+$B$18,IF(AND(($H$6+$C$16)<$C$18,($H$6+$C$16)>=$C$17),(((($H$6+$C$16)-$C$17)/($C$18-$C$17))*($B$18-$B$17))+$B$17,IF(AND(($H$6+$C$16)<$C$17,($H$6+$C$16)>=$C$16),(((($H$6+$C$16)-$C$16)/($C$17-$C$16))*($B$17-$B$16))+$B$16,""))))) -> 0 | AE9: =IF(OR($A$6="",$C$16=""),$C$13,$H$6+$C$16) -> 0 | AH9: dwet,max | AI9: =IF($AB$23>$AB$24,$AB$23,IF($AB$23<$AB$24,$AB$24,"")) ->  | AJ9: ft | AS9: dwet,max | AT9: =IF($Z$23>$Z$24,$Z$23,IF($Z$23<$Z$24,$Z$24,"")) ->  | AU9: ft | BC9: Slice # | BD9: xRW,avg (ft) | BE9: RRW,slice (ft) | BF9: Aslice,avg (ft) | BG9: Vslice (ft3) | BH9: ycrown,avg (ft) | BI9: ybot,avg (ft) | BJ9: hRW,cr,↑WSE (ft) | BK9: ARW,↑WSE (ft2) | BL9: VRW,↑WSE (ft3) | BM9: hRW,bot,↓thw (ft) | BN9: ARW,↓thw (ft2) | BO9: VRW,↓thw (ft3)
K10: =IF(OR($C$14="",$C$15=""),"",IF($C$15>=$C$14,"ERROR - LB top elevation must be > LB toe elevation","")) ->  | L10: Tree Revetment | N10: Row of logs secured along the bank and placed parallel to flow | R10: Pt 1 | S10: Rootwad: Crown | T10: =IF($F$25="",0,IF($D$25="Rootwad: Crown",$F$25,IF($D$22="No",$T$15+(($F$22*-$M$20)*$M$17),$T$15+(($H$22*-$M$20)*$M$17)))) -> 0 | U10: =IF($G$25="",$C$13,IF($D$25="Rootwad: Crown",$G$25,IF($D$22="No",$U$15+($F$22*$M$19),$U$15+($H$22*$M$19)))) -> 0 | W10: Rootwad: Crown | X10: =IF($D$22="No",$T$15+(($F$22*-$M$20)*$M$17),$T$15+(($H$22*-$M$20)*$M$17)) -> 0 | Y10: =IF(X10=T10,"OK","ERROR") -> OK | Z10: =IF($D$22="No",$U$15+($F$22*$M$19),$U$15+($H$22*$M$19)) -> 0 | AA10: =IF(Z10=U10,"OK","ERROR") -> OK | AH10: dwet,avgH | AI10: =IF(AND($AB$23>0,$AB$24>0),(($AB$23/COS($AI$8))+($AB$24/COS($AI$8)))/2,"") ->  | AJ10: ft | AS10: dwet,avgH | AT10: =IF(AND($Z$23>0,$Z$24>0),(($Z$23/COS($AT$8))+($Z$24/COS($AT$8)))/2,"") ->  | AU10: ft | BC10: 1 | BD10: =($BE$6/2)+(($BC10-1)*$BE$6) -> 0 | BE10: =(($G$22-$BD10)/$G$22)*($BI$6-$BI$7)+$BI$7 ->  | BF10: =PI()*($BE10^2) ->  | BG10: =$BF10*$BE$6 ->  | BH10: =(($G$22-$BD10)/$G$22)*($BK$6-$BK$7)+$BK$7 ->  | BI10: =(($G$22-$BD10)/$G$22)*($BM$6-$BM$7)+$BM$7 ->  | BJ10: =IF($BH10<=$BG$6,0,IF((($BH10-$BG$6)*$M$19)>=($BE10*2),$BE10*2,($BH10-$BG$6)*$M$19)) ->  | BK10: =(($BE10^2)*ACOS(($BE10-$BJ10)/$BE10))-(($BE10-$BJ10)*SQRT(2*$BE10*$BJ10-($BJ10^2))) ->  | BL10: =$BK10*$BE$6 ->  | BM10: =IF($BI10>=$BG$7,0,IF((($BG$7-$BI10)*$M$19)>=($BE10*2),$BE10*2,($BG$7-$BI10)*$M$19)) ->  | BN10: =(($BE10^2)*ACOS(($BE10-$BM10)/$BE10))-(($BE10-$BM10)*SQRT(2*$BE10*$BM10-($BM10^2))) ->  | BO10: =$BN10*$BE$6 -> 
A11: Channel Geometry Coordinates | K11: =IF(OR($C$15="",$C$16="",$C$17=""),"",IF(OR($C$15<$C$16,$C$17<$C$16),"ERROR - Toe elevation must be >= thalweg elevation","")) ->  | L11: In-Situ | N11: Logs fluvially deposited and fallen trees in contact with the bank | R11: Pt 2 | S11: Root collar: Crown | T11: =IF($F$25="",0,IF($D$25="Root collar: Crown",$F$25,IF($D$22="No",$T$10,$T$10+(($G$22*$M$19)*$M$17)-(((($H$22-$F$22)/2)*-$M$20)*$M$17)))) -> 0 | U11: =IF($G$25="",$C$13,IF($D$25="Root collar: Crown",$G$25,IF($D$22="No",$U$10,$U$10-($G$22*-$M$20)-((($H$22-$F$22)/2)*$M$19)))) -> 0 | W11: Root collar: Crown | X11: =IF($D$22="No",$X$10,$T$10+(($G$22*$M$19)*$M$17)-(((($H$22-$F$22)/2)*-$M$20)*$M$17)) -> 0 | Y11: OK | Z11: =IF($D$22="No",$Z$10,$U$10-($G$22*-$M$20)-((($H$22-$F$22)/2)*$M$19)) -> 0 | AA11: OK | AC11: Water Surface Label | AH11: hmax,lower | AI11: =IF($AI$9/COS($AI$8)>$F$22,$F$22,$AI$9/COS($AI$8)) ->  | AJ11: ft | AS11: hmax,lower | AT11: =IF($AT$9/COS($AT$8)>$F$22,$F$22,$AT$9/COS($AT$8)) ->  | AU11: ft | BC11: 2 | BD11: =($BE$6/2)+(($BC11-1)*$BE$6) -> 0 | BF11: =PI()*($BE11^2) ->  | BG11: =$BF11*$BE$6 ->  | BJ11: =IF($BH11<=$BG$6,0,IF((($BH11-$BG$6)*$M$19)>=($BE11*2),$BE11*2,($BH11-$BG$6)*$M$19)) ->  | BK11: =(($BE11^2)*ACOS(($BE11-$BJ11)/$BE11))-(($BE11-$BJ11)*SQRT(2*$BE11*$BJ11-($BJ11^2))) ->  | BL11: =$BK11*$BE$6 ->  | BM11: =IF($BI11>=$BG$7,0,IF((($BG$7-$BI11)*$M$19)>=($BE11*2),$BE11*2,($BG$7-$BI11)*$M$19)) ->  | BN11: =(($BE11^2)*ACOS(($BE11-$BM11)/$BE11))-(($BE11-$BM11)*SQRT(2*$BE11*$BM11-($BM11^2))) ->  | BO11: =$BN11*$BE$6 -> 
A12: Proposed | B12: x (ft) | C12: y (ft) | K12: =IF(OR($C$18="",$C$17=""),"",IF($C$17>=$C$18,"ERROR - RB top elevation must be > RB toe elevation","")) ->  | L12: Flow Deflection Jam | N12: Partially spanning jams consisting of one or more key members | R12: Pt 3 | S12: Stem tip: Crown | T12: =IF($F$25="",0,IF($D$25="Stem tip: Crown",$F$25,$T$11+((($E$22-$G$22)*$M$19)*$M$17))) -> 0 | U12: =IF($G$25="",$C$13,IF($D$25="Stem tip: Crown",$G$25,$U$11-(($E$22-$G$22)*-$M$20))) -> 0 | W12: Stem tip: Crown | X12: =$T$11+((($E$22-$G$22)*$M$19)*$M$17) -> 0 | Y12: OK | Z12: =$U$11-(($E$22-$G$22)*-$M$20) -> 0 | AA12: OK | AC12: WSE | AD12: =IF($AD$8="","",AVERAGE(AD8:AD9)) -> 0 | AE12: =IF($AE$8="","",AVERAGE(AE8:AE9)) -> 0 | AH12: hmax,up,dry | AI12: =IF(AND($AB$23>$F$22,$AB$24>$F$22),0,IF(AND($AB$23>=$F$22,(($F$22-$AB$24)/(COS($AI$8)))>$F$22),$F$22,IF($AB$23>=$F$22,($F$22-$AB$24)/(COS($AI$8)),IF(AND($AB$24>=$F$22,(($F$22-$AB$23)/(COS($AI$8))>$F$22)),$F$22,IF($AB$24>=$F$22,($F$22-$AB$23)/(COS($AI$8)),""))))) -> 0 | AJ12: ft | AS12: hmax,up,dry | AT12: =IF(AND($Z$23>$F$22,$Z$24>$F$22),0,IF(AND($Z$23>=$F$22,(($F$22-$Z$24)/(COS($AT$8)))>$F$22),$F$22,IF($Z$23>=$F$22,($F$22-$Z$24)/(COS($AT$8)),IF(AND($Z$24>=$F$22,(($F$22-$Z$23)/(COS($AT$8))>$F$22)),$F$22,IF($Z$24>=$F$22,($F$22-$Z$23)/(COS($AT$8)),""))))) -> 0 | AU12: ft | BC12: 3 | BD12: 0
A13: Fldpln LB | K13: =IF(OR($B$14<$B$13,$B$15<$B$14,$B$16<$B$15,$B$17<$B$16,$B$18<$B$17,$B$19<$B$18),"ERROR - Each 'x' distance must be >= previous point","") ->  | L13: Full-Span Jam | N13: Multiple logs constricting a large portion of the cross-sectional area | R13: Pt 4 | S13: Stem tip: Bottom | T13: =IF($F$25="",0,IF($D$25="Stem tip: Bottom",$F$25,$T$12-(($F$22*-$M$20)*$M$17))) -> 0 | U13: =IF($G$25="",$C$13,IF($D$25="Stem tip: Bottom",$G$25,$U$12-($F$22*$M$19))) -> 0 | W13: Stem tip: Bottom | X13: =$T$12-(($F$22*-$M$20)*$M$17) -> 0 | Y13: OK | Z13: =$U$12-($F$22*$M$19) -> 0 | AA13: OK | AH13: LTS,bot,wet | AI13: =IF(($AI$9/SIN($AI$8))>($E$22-$G$22),($E$22-$G$22-$AI$14),($AI$9/SIN($AI$8))-$AI$14) ->  | AJ13: ft | AS13: LTS,bot,wet | AT13: =IF(($AT$9/SIN($AT$8))>($E$22-$G$22),($E$22-$G$22-$AT$14),($AT$9/SIN($AT$8))-$AT$14) ->  | AU13: ft | BC13: 4 | BD13: 0
A14: Top LB | L14: Transport Jam | N14: Wood fluvially deposited at a bar apex, meander bend, or along bank | R14: Pt 5 | S14: Root collar: Bottom | T14: =IF($F$25="",0,IF($D$25="Root collar: Bottom",$F$25,$T$13-((($E$22-$G$22)*$M$19)*$M$17))) -> 0 | U14: =IF($G$25="",$C$13,IF($D$25="Root collar: Bottom",$G$25,$U$13+(($E$22-$G$22)*-$M$20))) -> 0 | W14: Root collar: Bottom | X14: =$T$13-((($E$22-$G$22)*$M$19)*$M$17) -> 0 | Y14: OK | Z14: =$U$13+(($E$22-$G$22)*-$M$20) -> 0 | AA14: OK | AC14: Bank Labels | AH14: LTS,top,wet | AI14: =IF($AI$11>=$F$22,(($AI$9-($AI$11/(COS($AI$8))))/SIN($AI$8))+($AI$11*TAN($AI$8)),0) ->  | AJ14: ft | AS14: LTS,top,wet | AT14: =IF($AT$11>=$F$22,(($AT$9-($AT$11/(COS($AT$8))))/SIN($AT$8))+($AT$11*TAN($AT$8)),0) ->  | AU14: ft | BC14: 5 | BD14: 0
A15: Toe LB | K15: =IF(AND($B$6="Rootwad",$D$22="No"),"ERROR - Rootwad structure type should have a rootwad","") ->  | R15: Pt 6 | S15: Rootwad: Bottom | T15: =IF($F$25="",0,IF($D$25="Rootwad: Bottom",$F$25,IF($D$22="No",$T$14,$T$14-(($G$22*$M$19)*$M$17)-(((($H$22-$F$22)/2)*-$M$20)*$M$17)))) -> 0 | U15: =IF($G$25="",$C$13,IF($D$25="Rootwad: Bottom",$G$25,IF($D$22="No",$U$14,$U$14+($G$22*-$M$20)-((($H$22-$F$22)/2)*$M$19)))) -> 0 | W15: Rootwad: Bottom | X15: =IF($D$22="No",$T$14,$T$14-(($G$22*$M$19)*$M$17)-(((($H$22-$F$22)/2)*-$M$20)*$M$17)) -> 0 | Y15: OK | Z15: =IF($D$22="No",$U$14,$U$14+($G$22*-$M$20)-((($H$22-$F$22)/2)*$M$19)) -> 0 | AA15: OK | AC15: LB | AD15: =IF(OR($B$13="",$B$14=""),"",AVERAGE($B$13:$B$14)) ->  | AE15: =IF(OR($C$13="",$C$14=""),"",AVERAGE($C$13:$C$14)) ->  | AH15: K1 | AI15: =IF(AND(($AI$11-$AI$7)=1,$AH$17="Case 1"),PI(),ACOS(1-($AI$11/$AI$7))) ->  | AJ15: rad | AS15: K1 | AT15: =ACOS(1-($AT$11/$AT$7)) ->  | AU15: rad | BC15: 6 | BD15: 0
A16: Thalweg | K16: =IF(OR($N$52="",$F$25="",$G$25=""),"",IF(AND($B$6="Rootwad",$N$52<>"Exposed in stream"),"CHECK - Rootwad structure typically has exposed rootwad","")) ->  | AC16: RB | AD16: =IF(OR($B$18="",$B$19=""),"",AVERAGE($B$18:$B$19)) ->  | AE16: =IF(OR($C$18="",$C$19=""),"",AVERAGE($C$18:$C$19)) ->  | AH16: K2 | AI16: =IF($AI$12="","",ACOS(1-($AI$12/$AI$7))) ->  | AJ16: rad | AS16: K2 | AT16: =IF($AT$12="","",ACOS(1-($AT$12/$AT$7))) ->  | AU16: rad | BC16: 7 | BD16: 0
A17: Toe RB | L17: cos (q+90) = | M17: =IF($B$25="",0,COS(($B$25+90)*PI()/180)) -> 0 | S17: Rootwad Coordinates | AG17: check: | AH17: =IF(AND($AA$21="Wet",$AA$22="Wet",$AA$23="Wet",$AA$24="Wet"),"Log is completely submerged",IF(AND($AA$21="Dry",$AA$22="Dry",OR(AND($AA$23="Dry",$AA$24="Wet"),AND($AA$24="Dry",$AA$23="Wet"))),"Case 1",IF(OR(AND($AA$21="Wet",$AA$24="Wet",$AA$22="Dry",$AA$23="Dry"),AND($AA$22="Wet",$AA$23="Wet",$AA$21="Dry",$AA$24="Dry")),"Case 2",IF(AND($AA$22="Dry",$AA$23="Wet",$AA$21="Dry",$AA$24="Wet"),"Case 3",IF(OR(AND($AA$21="Dry",$AA$22="Wet",$AA$23="Wet",$AA$24="Wet"),AND($AA$21="Wet",$AA$22="Dry",$AA$23="Wet",$AA$24="Wet")),"Case 4","Stem is Dry"))))) -> Stem is Dry | AK17: VTS = | AL17: =PI()*(($F$22/2)^2)*($E$22-$G$22) -> 0 | AM17: ft3 | AR17: check: | AS17: =IF(AND($Y$21="Wet",$Y$22="Wet",$Y$23="Wet",$Y$24="Wet"),"Log is completely submerged",IF(AND($Y$21="Dry",$Y$22="Dry",OR(AND($Y$23="Dry",$Y$24="Wet"),AND($Y$24="Dry",$Y$23="Wet"))),"Case 1",IF(OR(AND($Y$21="Wet",$Y$24="Wet",$Y$22="Dry",$Y$23="Dry"),AND($Y$22="Wet",$Y$23="Wet",$Y$21="Dry",$Y$24="Dry")),"Case 2",IF(AND($Y$22="Dry",$Y$23="Wet",$Y$21="Dry",$Y$24="Wet"),"Case 3",IF(OR(AND($Y$21="Dry",$Y$22="Wet",$Y$23="Wet",$Y$24="Wet"),AND($Y$21="Wet",$Y$22="Dry",$Y$23="Wet",$Y$24="Wet")),"Case 4","Stem is Dry"))))) -> Stem is Dry | AV17: VTS = | AW17: =PI()*(($F$22/2)^2)*($E$22-$G$22) -> 0 | AX17: ft3 | BC17: 8 | BD17: 0
A18: Top RB | L18: sin (q+90) = | M18: =IF($B$25="",0,SIN(($B$25+90)*PI()/180)) -> 0 | T18: x (ft) | U18: y (ft) | W18: Large Wood "Below Thalweg" and "Below Water Surface" Depths | AG18: Case 1 | AR18: Case 1 | BC18: 9 | BD18: 0
A19: Fldpln RB | K19: =IF($C$25="","",IF(OR($C$25>=90,$C$25<=-90),"ERROR - Angle of tilt must be between (-)89.9 and (+)89.9 deg","")) ->  | L19: cos b = | M19: =IF($C$25="",0,COS($C$25*PI()/180)) -> 0 | S19: RW bottom1 | T19: =IF($T$15="","",$T$15) -> 0 | U19: =IF($U$15="",$C$13,$U$15) -> 0 | X19: Point | Y19: ↓twCondition | Z19: dT,wet | AA19: ↓WSECondition | AB19: dT↓dw | AI19: V = | AJ19: LTS,bot,wet/hmax,lower*R3*(sin K1 – K1*cos K1 – 1/3*(sin K1)3) | AT19: V = | AU19: LTS,bot,wet/hmax,lower*R3*(sin K1 – K1*cos K1 – 1/3*(sin K1)3) | BC19: 10 | BD19: 0
K20: =IF(OR($B$25="",$A$6=""),"",IF(OR($B$25>360,$B$25<-180),"ERROR - Orientation angle must be (-)180 to (+)360 deg","")) ->  | L20: sin b = | M20: =IF($C$25="",0,SIN($C$25*PI()/180)) -> 0 | S20: RW sid1 | T20: =IF($T$19="","",IF($D$22="No",$T$19+((SIN(45*PI()/180))*$M$18),(($T$19+$T$21)/2)+((SIN(45*PI()/180))*$M$18))) -> 0 | U20: =IF($U$15="",$C$13,($U$21+$U$19)/2) -> 0 | W20: Rootwad: Crown | X20: Pt 1 | Y20: =IF($U10<$C$16,"Wet","Dry") -> Dry | Z20: =IF($C$16<U10,0,$C$16-U10) -> 0 | AA20: =IF($U10<$AE$8,"Wet","Dry") -> Dry | AB20: =IF(U10>$AE$8,0,$AE$8-U10) -> 0 | AI20: where: | AJ20: K1 = arccos(1-hmax,lower/R) | AT20: where: | AU20: K1 = arccos(1-hmax,lower/R) | BC20: 11 | BD20: 0
A21: Wood Species | D21: Rootwad | E21: LT (ft) | F21: DTS (ft) | G21: LRW (ft) | H21: DRW (ft) | I21: gTd (lb/ft3) | J21: gTgr (lb/ft3) | K21: =IF(AND($D$22="No",OR($D$25="Rootwad: Crown",$D$25="Rootwad: Bottom")),"ERROR - No rootwad, define a different starting point","") ->  | L21: typ RW b = | M21: =IF($E$22="",0,ROUND((-ATAN(((($H$22-$F$22)/2))/$E$22)*180/PI()),1)) -> 0 | S21: RW sid2 | T21: =IF($T$19="","",IF($D$22="No",(($T$19+$T$23)/2)+($F$22/2*$M$18),(($T$19+$T$23)/2)+($H$22/2*$M$18))) -> 0 | U21: =IF($U$15="",$C$13,($U$19+$U$23)/2) -> 0 | W21: Root collar: Crown | X21: Pt 2 | Y21: Dry | Z21: 0 | AA21: Dry | AB21: 0 | AI21: VTS,wet,C1 | AJ21: =($AI$13/$AI$11)*($AI$7^3)*(SIN($AI$15)-($AI$15*COS($AI$15))-((1/3)*(SIN($AI$15))^3)) ->  | AK21: ft3 | AT21: VTS,wet,C1 | AU21: =($AT$13/$AT$11)*($AT$7^3)*(SIN($AT$15)-($AT$15*COS($AT$15))-((1/3)*(SIN($AT$15))^3)) ->  | AV21: ft3 | BC21: 12 | BD21: 0
G22: =IF(OR($D$22="No",$D$22=""),0,IF($F$22="",0,$F$22*LFRW)) -> 0 | H22: =IF(OR($D$22="No",$D$22=""),0,IF($F$22="",0,$F$22*DFRW)) -> 0 | I22: =IF($A$22="","",VLOOKUP($A$22,'5-Wood'!$B$8:$E$17,3,0)) ->  | J22: =IF($A$22="","",VLOOKUP($A$22,'5-Wood'!$B$8:$E$17,4,0)) ->  | S22: RW sid3 | T22: =IF($T$19="","",IF($D$22="No",$T$23+((SIN(45*PI()/180))*$M$18),(($T$23+$T$21)/2)+((SIN(45*PI()/180))*$M$18))) -> 0 | U22: =IF($U$15="",$C$13,($U$21+$U$23)/2) -> 0 | W22: Stem tip: Crown | X22: Pt 3 | Y22: Dry | Z22: 0 | AA22: Dry | AB22: 0 | BC22: 13 | BD22: 0
S23: RW crown | T23: =IF($T$19="","",$T$10) -> 0 | U23: =IF($U$15="",$C$13,$U$10) -> 0 | W23: Stem tip: Bottom | X23: Pt 4 | Y23: Dry | Z23: 0 | AA23: Dry | AB23: 0 | AG23: Case 2 | AR23: Case 2 | BC23: 14 | BD23: 0
A24: Structure Geometry | B24: q (deg) | C24: b (deg) | D24: Define Fixed Point | F24: xT (ft) | G24: yT (ft) | H24: yT,min (ft) | I24: yT,max (ft) | J24: ATp (ft2) | S24: RW sid4 | T24: =IF($T$19="","",IF($D$22="No",$T$23-((SIN(45*PI()/180))*$M$18),(($T$23+$T$25)/2)-((SIN(45*PI()/180))*$M$18))) -> 0 | U24: =IF($U$15="",$C$13,($U$25+$U$23)/2) -> 0 | W24: Root collar: Bottom | X24: Pt 5 | Y24: Dry | Z24: 0 | AA24: Dry | AB24: 0 | AI24: V = | AJ24: (p*R2*LTS,top,wet) + (LTS,bot,wet/hmax,lower*R3*(sin K1 – K1*cos K1 – 1/3*(sin K1)3) | AT24: V = | AU24: (p*R2*LTS,top,wet) + (LTS,bot,wet/hmax,lower*R3*(sin K1 – K1*cos K1 – 1/3*(sin K1)3) | BC24: 15 | BD24: 0
H25: =IF(OR($E$22="",$F$22="",$F$25="",$G$25=""),"",MIN($U$10:$U$15)) ->  | I25: =IF(OR($E$22="",$F$22="",$F$25="",$G$25=""),"",MAX($U$10:$U$15)) ->  | J25: =IF(OR($E$22="",$F$22="",$F$25="",$G$25=""),"",IF($T$81<0,$AB$80,IF($T$81>$T$77,$T$77+$AB$80,IF(OR(AND($C$25=0,$D$22="No",$B$25=0),AND($C$25=0,$D$22="No",$B$25=360),AND($C$25=0,$D$22="No",$B$25=180)),PI()*(($F$22/2)^2),$T$81+$AB$80)))) ->  | K25: =IF(OR($B$13="",$B$19="",$U$38=0,$U$39=0),"",IF(OR(MAX($U$38:$U$39)>$B$19,MIN($U$38:$U$39)<$B$13),"ERROR - Log extends beyond limits of floodplain","")) ->  | S25: RW sid5 | T25: =IF($T$19="","",IF($D$22="No",(($T$27+$T$23)/2)-($F$22/2*$M$18),(($T$27+$T$23)/2)-($H$22/2*$M$18))) -> 0 | U25: =IF($U$15="",$C$13,($U$27+$U$23)/2) -> 0 | W25: Rootwad: Bottom | X25: Pt 6 | Y25: Dry | Z25: 0 | AA25: Dry | AB25: 0 | AI25: where: | AJ25: K1 = arccos(1-hmax,lower/R) | AT25: where: | AU25: K1 = arccos(1-hmax,lower/R) | BC25: 16 | BD25: 0
S26: RW sid6 | T26: =IF($T$19="","",IF($D$22="No",$T$27-((SIN(45*PI()/180))*$M$18),(($T$27+$T$25)/2)-((SIN(45*PI()/180))*$M$18))) -> 0 | U26: =IF($U$15="",$C$13,($U$25+$U$27)/2) -> 0 | AI26: VTS,wet,C2 | AJ26: =(PI()*(($AI$7)^2)*($AI$14))+($AI$13/$AI$11)*($AI$7^3)*(SIN($AI$15)-($AI$15*COS($AI$15))-((1/3)*(SIN($AI$15))^3)) ->  | AK26: ft3 | AT26: VTS,wet,C2 | AU26: =(PI()*(($AT$7)^2)*($AT$14))+($AT$13/$AT$11)*($AT$7^3)*(SIN($AT$15)-($AT$15*COS($AT$15))-((1/3)*(SIN($AT$15))^3)) ->  | AV26: ft3 | BC26: 17 | BD26: 0
A27: Soils | B27: Material | D27: gs (lb/ft3) | E27: g's (lb/ft3) | F27: f (deg) | G27: Soil Class | H27: LT,em (ft) | I27: db,max (ft) | J27: db,avg (ft) | S27: RW bottom2 | T27: =IF($T$19="","",$T$15) -> 0 | U27: =IF($U$15="",$C$13,$U$15) -> 0 | BC27: 18 | BD27: 0
A28: Stream Bed | B28: =IF($A$6="","",VLOOKUP($A$6,Soil,4,0)) ->  | D28: =IF($A$6="","",VLOOKUP($A$6,Soil,6,0)) ->  | E28: =IF($A$6="","",VLOOKUP($A$6,Soil,7,0)) ->  | F28: =IF($A$6="","",VLOOKUP($A$6,Soil,8,0)) ->  | G28: =IF($A$6="","",VLOOKUP($A$6,Soil,5,0)) ->  | H28: =IF(OR($E$22="",$F$22="",$F$25="",$G$25=""),"",IF(AND($F$25<=$B$17,$F$25>=$B$15,OR($B$25=0,$B$25=180,$B$25=360)),SUM($X$49:$X$50),$AB$49+$AB$50)) ->  | I28: =IF(OR($E$22="",$F$22="",$F$25="",$G$25=""),"",$AT$42) ->  | J28: =IF(OR($E$22="",$F$22="",$F$25="",$G$25=""),"",$AT$41) ->  | AG28: Case 3 | AR28: Case 3 | BC28: 19 | BD28: 0
A29: Bank | B29: =IF($A$6="","",VLOOKUP($A$6,Soil,9,0)) ->  | D29: =IF($A$6="","",VLOOKUP($A$6,Soil,11,0)) ->  | E29: =IF($A$6="","",VLOOKUP($A$6,Soil,12,0)) ->  | F29: =IF($A$6="","",VLOOKUP($A$6,Soil,13,0)) ->  | G29: =IF($A$6="","",VLOOKUP($A$6,Soil,10,0)) ->  | H29: =IF(OR($E$22="",$F$22="",$F$25="",$G$25=""),"",IF(AND(OR($F$25>$B$17,$F$25<$B$15),OR($B$25=0,$B$25=180,$B$25=360)),SUM($X$47+$X$48+$X$51+$X$52),$AB$47+$AB$48+$AB$51+$AB$52)) ->  | I29: =IF(OR($E$22="",$F$22="",$F$25="",$G$25=""),"",$AU$42) ->  | J29: =IF(OR($E$22="",$F$22="",$F$25="",$G$25=""),"",$AU$41) ->  | K29: =IF(OR($E$22="",$F$22="",$F$25="",$G$25=""),"",IF(($H$28+$H$29)>$E$22,"ERROR - Embedded length of log exceeds total length of log","")) ->  | S29: Coordinates of Large Wood Crown at Key Points | AI29: V = | AJ29: LTS*(R2*arccos((R-dwet,avgH)/R)-(R-dwet,avgH)*((2*R*dwet,avgH)-dwet,avgH2)0.5) | AT29: V = | AU29: LTS*(R2*arccos((R-dwet,avgH)/R)-(R-dwet,avgH)*((2*R*dwet,avgH)-dwet,avgH2)0.5) | BC29: 20 | BD29: 0
T30: Wood Present? | U30: Large Wood Parameters | Y30: Soil | AA30: Slope | AB30: Bank (ft/ft) | AI30: VTS,wet,C3 | AJ30: =IF($AI$10="","",($E$22-$G$22)*((($AI$7^2)*ACOS(($AI$7-$AI$10)/$AI$7))-(($AI$7-$AI$10)*((2*$AI$7*$AI$10)-($AI$10^2))^0.5))) ->  | AK30: ft3 | AT30: VTS,wet,C3 | AU30: =IF($AT$10="","",($E$22-$G$22)*((($AT$7^2)*ACOS(($AT$7-$AT$10)/$AT$7))-(($AT$7-$AT$10)*((2*$AT$7*$AT$10)-($AT$10^2))^0.5))) ->  | AV30: ft3 | BC30: 21 | BD30: 0 | BK30: =(($BE30^2)*ACOS(($BE30-$BJ30)/$BE30))-(($BE30-$BJ30)*SQRT(2*$BE30*$BJ30-($BJ30^2))) ->  | BL30: =$BK30*$BE$6 -> 
U31: xTS (ft) | V31: Dist (ft) | W31: Adjusted Dist (ft) | X31: yTS (ft) | Y31: ysoil (ft) | AA31: Fldpln LB | AB31: =IF(OR($B$13="",$B$14="",$C$13="",$C$14=""),"",($C$14-$C$13)/($B$14-$B$13)) ->  | BC31: 22 | BD31: 0
S32: At Left Bank Top | T32: =IF(OR($F$25="",$G$25=""),"No",IF(MIN($U$38:$U$39)>$B$14,"No",IF(MAX($U$38:$U$39)<$B$14,"No","Yes"))) -> No | U32: =$B$14 -> 0 | V32: =IF(OR($B$25=0,$B$25=180,$B$25=360),0,IF($T$11>$T$12,$G$22+((($T$11-$B$14)/ABS($M$17))/$M$19),(($T$12-$B$14)/ABS($M$17))/$M$19)) -> 0 | W32: =IF(V32<0,0,IF(V32>$E$22,$E$22,V32)) -> 0 | X32: =IF($T$11>$T$12,$U$11+(($V$32-$G$22)*$M$20),$U$12-($V$32*$M$20)) -> 0 | Y32: =$C$14 -> 0 | AA32: LB | AB32: =IF(OR($B$14="",$B$15="",$C$14="",$C$15=""),"",($C$15-$C$14)/($B$15-$B$14)) ->  | BC32: 23 | BD32: 0
S33: At Left Bank Toe | T33: =IF(OR($F$25="",$G$25=""),"No",IF(MIN($U$38:$U$39)>$B$15,"No",IF(MAX($U$38:$U$39)<$B$15,"No","Yes"))) -> No | U33: =$B$15 -> 0 | V33: =IF(OR($B$25=0,$B$25=180,$B$25=360),0,IF($T$11>$T$12,$G$22+((($T$11-$B$15)/ABS($M$17))/$M$19),(($T$12-$B$15)/ABS($M$17))/$M$19)) -> 0 | W33: 0 | X33: =IF($T$11>$T$12,$U$11+(($V$33-$G$22)*$M$20),$U$12-($V$33*$M$20)) -> 0 | Y33: =$C$15 -> 0 | AA33: Stream L | AB33: =IF(OR($B$15="",$B$16="",$C$15="",$C$16=""),"",($C$16-$C$15)/($B$16-$B$15)) ->  | BC33: 24 | BD33: 0
S34: At Left Thalweg | T34: =IF(OR($F$25="",$G$25=""),"No",IF(AND(MAX($U$38:$U$39)>$B$16,MIN($U$38:$U$39)<$B$16),"Yes","No")) -> No | U34: =$B$16 -> 0 | V34: =IF(OR($B$25=0,$B$25=180,$B$25=360),0,IF($T$11>$T$12,$G$22+((($T$11-$B$16)/ABS($M$17))/$M$19),(($T$12-$B$16)/ABS($M$17))/$M$19)) -> 0 | W34: 0 | X34: =IF($T$11>$T$12,$U$11+(($V$34-$G$22)*$M$20),$U$12-($V$34*$M$20)) -> 0 | Y34: =$C$16 -> 0 | AA34: Stream R | AB34: =IF(OR($B$17="",$B$16="",$C$17="",$C$16=""),"",($C$16-$C$17)/($B$16-$B$17)) ->  | AG34: Case 4 | AR34: Case 4 | BC34: 25 | BD34: 0
S35: At Right Thalweg | T35: =IF(OR($F$25="",$G$25=""),"No",IF(AND(MAX($U$38:$U$39)>$B$16,MIN($U$38:$U$39)<$B$16),"Yes","No")) -> No | U35: =$B$16 -> 0 | V35: =IF(OR($B$25=0,$B$25=180,$B$25=360),0,IF($T$11<$T$12,$G$22+((($B$16-$T$11)/ABS($M$17))/$M$19),(($B$16-$T$12)/ABS($M$17))/$M$19)) -> 0 | W35: 0 | X35: =IF($T$11<$T$12,$U$11+(($V$35-$G$22)*$M$20),$U$12-($V$35*$M$20)) -> 0 | Y35: =$C$16 -> 0 | AA35: RB | AB35: =IF(OR($B$18="",$B$17="",$C$18="",$C$17=""),"",($C$18-$C$17)/($B$18-$B$17)) ->  | AI35: V = | AJ35: VTS - (LTS,wet/hmax,up,dry*R3*(sin K2 – K2*cos K2 – 1/3*(sin K2)3) | AT35: V = | AU35: VTS - (LTS,wet/hmax,up,dry*R3*(sin K2 – K2*cos K2 – 1/3*(sin K2)3) | BC35: 26 | BD35: 0
S36: At Right Bank Toe | T36: =IF(OR($F$25="",$G$25=""),"No",IF(MAX($U$38:$U$39)<$B$17,"No",IF(MIN($U$38:$U$39)>$B$17,"No","Yes"))) -> No | U36: =$B$17 -> 0 | V36: =IF(OR($B$25=0,$B$25=180,$B$25=360),0,IF($T$11<$T$12,$G$22+((($B$17-$T$11)/ABS($M$17))/$M$19),(($B$17-$T$12)/ABS($M$17))/$M$19)) -> 0 | W36: 0 | X36: =IF($T$11<$T$12,$U$11+(($V$36-$G$22)*$M$20),$U$12-($V$36*$M$20)) -> 0 | Y36: =$C$17 -> 0 | AA36: Fldpln RB | AB36: =IF(OR($B$19="",$B$18="",$C$19="",$C$18=""),"",($C$19-$C$18)/($B$19-$B$18)) ->  | AJ36: K2 = arccos(1-hmax,up,dry/R) | AU36: K2 = arccos(1-hmax,up,dry/R) | BC36: 27 | BD36: 0
S37: At Right Bank Top | T37: =IF(OR($F$25="",$G$25=""),"No",IF(MAX($U$38:$U$39)<$B$18,"No",IF(MIN($U$38:$U$39)>$B$18,"No","Yes"))) -> No | U37: =$B$18 -> 0 | V37: =IF(OR($B$25=0,$B$25=180,$B$25=360),0,IF($T$11<$T$12,$G$22+((($B$18-$T$11)/ABS($M$17))/$M$19),(($B$18-$T$12)/ABS($M$17))/$M$19)) -> 0 | W37: 0 | X37: =IF($T$11<$T$12,$U$11+(($V$37-$G$22)*$M$20),$U$12-($V$37*$M$20)) -> 0 | Y37: =$C$18 -> 0 | AI37: VTS,wet,C4 | AJ37: =IF($AI$16="","",$AW$17-(($AI$13/$AI$12)*($AI$7^3)*(SIN($AI$16)-($AI$16*COS($AI$16))-((1/3)*(SIN($AI$16))^3)))) ->  | AK37: ft3 | AT37: VTS,wet,C4 | AU37: =IF($AT$16="","",$AW$17-(($AT$13/$AT$12)*($AT$7^3)*(SIN($AT$16)-($AT$16*COS($AT$16))-((1/3)*(SIN($AT$16))^3)))) ->  | AV37: ft3 | BC37: 28 | BD37: 0
S38: Low Pt on Crown | T38: =IF(OR($F$25="",$G$25=""),"No","Yes") -> No | U38: =IF($T$38="No",0,IF($U$12<=$U$11,$T$12,$T$11-($G$22*$M$19*$M$17))) -> 0 | V38: 0 | W38: 0 | X38: =IF($T$38="No",0,IF($U$12<=$U$11,$U$12,$U$11-($G$22*$M$20))) -> 0 | Y38: =IF($T$38="","",IF($U$38<$B$14,(($U$38-$B$13)*$AB$31)+$C$13,IF($U$38<$B$15,(($U$38-$B$14)*$AB$32)+$C$14,IF($U$38<$B$16,(($U$38-$B$15)*$AB$33)+$C$15,IF($U$38<$B$17,(($U$38-$B$16)*$AB$34)+$C$16,IF($U$38<$B$18,(($U$38-$B$17)*$AB$35)+$C$17,IF($U$38<$B$19,(($U$38-$B$18)*$AB$36)+$C$18))))))) -> FALSE | AA38: Slope Log (ft/ft) | AB38: Slope Log Face (ft/ft) | BC38: 29 | BD38: 0 | BR38: Max | BS38: Min | BT38: cP (ft)
S39: High Pt on Crown | T39: No | U39: =IF($T$39="No",0,IF($U$12>$U$11,$T$12,$T$11-($G$22*$M$19*$M$17))) -> 0 | V39: =IF($T$39="No",0,$E$22) -> 0 | W39: 0 | X39: =IF($T$39="No",0,IF($U$12>=$U$11,$U$12,$U$11-($G$22*$M$20))) -> 0 | Y39: =IF($T$39="","",IF($U$39<$B$14,(($U$39-$B$13)*$AB$31)+$C$13,IF($U$39<$B$15,(($U$39-$B$14)*$AB$32)+$C$14,IF($U$39<$B$16,(($U$39-$B$15)*$AB$33)+$C$15,IF($U$39<$B$17,(($U$39-$B$16)*$AB$34)+$C$16,IF($U$39<$B$18,(($U$39-$B$17)*$AB$35)+$C$17,IF($U$39<$B$19,(($U$39-$B$18)*$AB$36)+$C$18))))))) -> FALSE | AI39: Free internet tilted cylinder calculator: | AM39: http://planetcalc.com/1442/ | AT39: Free internet tilted cylinder calculator: | AX39: http://planetcalc.com/1442/ | BC39: 30 | BD39: 0 | BR39: =MAX($BS$45:$BS$245) -> 0 | BS39: =MIN($BS$45:$BS$245) -> 0 | BT39: =IF($BS$43=0,0,IF(AND($BS$39=0,$BR$39=$E$22),($BR$39+$BS$39)/2,IF($BS$39=0,$BR$39-((1/3)*($BR$39-$BS$39)),IF($BR$39=$E$22,$BR$39-((2/3)*($BR$39-$BS$39)),($BR$39+$BS$39)/2)))) -> 0
S40: Low Pt on Bottom | T40: No | U40: =IF($T$40="No",0,IF($U$13<=$U$14,$T$13,$T$14-($G$22*$M$19*$M$17))) -> 0 | V40: 0 | W40: 0 | X40: =IF($T$40="No",0,IF($U$13<=$U$14,$U$13,$U$14-($G$22*$M$20))) -> 0 | Y40: =IF($T$40="","",IF($U$40<$B$14,(($U$40-$B$13)*$AB$31)+$C$13,IF($U$40<$B$15,(($U$40-$B$14)*$AB$32)+$C$14,IF($U$40<$B$16,(($U$40-$B$15)*$AB$33)+$C$15,IF($U$40<$B$17,(($U$40-$B$16)*$AB$34)+$C$16,IF($U$40<$B$18,(($U$40-$B$17)*$AB$35)+$C$17,IF($U$40<$B$19,(($U$40-$B$18)*$AB$36)+$C$18))))))) -> FALSE | AA40: =IF(OR($B$25=0,$B$25=180,$B$25=360),($U$11-$U$12)/0.001,IF($X$38=$X$39,1E-25,($U$11-$U$12)/($T$11-$T$12))) -> 0 | AB40: =IF(OR($B$25=0,$B$25=180,$B$25=360),9999,IF($X$38=$X$39,1E-25,($U$12-$U$13)/($T$12-$T$13))) -> 9999 | BC40: Total | BG40: =SUM(BG10:BG39) ->  | BL40: =SUM($BL$10:$BL$39) ->  | BO40: =SUM($BO$10:$BO$39) -> 
S41: High Pt on Bottom | T41: No | U41: =IF($T$41="No",0,IF($U$13>$U$14,$T$13,$T$14-($G$22*$M$19*$M$17))) -> 0 | V41: =IF($T$41="No",0,$E$22) -> 0 | W41: 0 | X41: =IF($T$41="No",0,IF($U$13>=$U$14,$U$13,$U$14-($G$22*$M$20))) -> 0 | Y41: =IF($T$41="","",IF($U$41<$B$14,(($U$41-$B$13)*$AB$31)+$C$13,IF($U$41<$B$15,(($U$41-$B$14)*$AB$32)+$C$14,IF($U$41<$B$16,(($U$41-$B$15)*$AB$33)+$C$15,IF($U$41<$B$17,(($U$41-$B$16)*$AB$34)+$C$16,IF($U$41<$B$18,(($U$41-$B$17)*$AB$35)+$C$17,IF($U$41<$B$19,(($U$41-$B$18)*$AB$36)+$C$18))))))) -> FALSE | AS41: Average | AT41: =IF(AT42=0,0,AVERAGE(AT45:AT245)) -> 0 | AU41: =IF(AU42=0,0,AVERAGE(AU45:AU245)) -> 0
S42: Low Pt on Centerline | T42: No | U42: =IF($T$42="No",0,AVERAGE($U$38,$U$40)) -> 0 | V42: 0 | W42: 0 | X42: =IF($T$42="No",0,AVERAGE($X$38,$X$40)) -> 0 | Y42: =IF($T$42="","",IF($U$42<$B$14,(($U$42-$B$13)*$AB$31)+$C$13,IF($U$42<$B$15,(($U$42-$B$14)*$AB$32)+$C$14,IF($U$42<$B$16,(($U$42-$B$15)*$AB$33)+$C$15,IF($U$42<$B$17,(($U$42-$B$16)*$AB$34)+$C$16,IF($U$42<$B$18,(($U$42-$B$17)*$AB$35)+$C$17,IF($U$42<$B$19,(($U$42-$B$18)*$AB$36)+$C$18))))))) -> FALSE | AI42: Log Partial Area Calculations | AS42: Max | AT42: =MAX(AT45:AT245) -> 0 | AU42: =MAX(AU45:AU245) -> 0 | AY42: Total | AZ42: Total | BA42: Total | BB42: Total | BC42: Total | BE42: Total | BG42: Total | BH42: Total | BI42: Average | BK42: Average | BL42: Average | BM42: Average | BN42: Average | BO42: Total | BP42: Total | BQ42: Total | BR42: Average | BS42: Average
S43: High Pt on Centerline | T43: No | U43: =IF($T$42="No",0,AVERAGE($U$39,$U$41)) -> 0 | V43: =IF($T$43="No",0,$E$22) -> 0 | W43: 0 | X43: =IF($T$42="No",0,AVERAGE($X$39,$X$41)) -> 0 | Y43: =IF($T$43="","",IF($U$43<$B$14,(($U$43-$B$13)*$AB$31)+$C$13,IF($U$43<$B$15,(($U$43-$B$14)*$AB$32)+$C$14,IF($U$43<$B$16,(($U$43-$B$15)*$AB$33)+$C$15,IF($U$43<$B$17,(($U$43-$B$16)*$AB$34)+$C$16,IF($U$43<$B$18,(($U$43-$B$17)*$AB$35)+$C$17,IF($U$43<$B$19,(($U$43-$B$18)*$AB$36)+$C$18))))))) -> FALSE | AI43: Log Parameters | AP43: Soil Parameters | AY43: =SUM(AY45:AY245) -> 0 | AZ43: =SUM($AZ$45:$AZ$245) -> 0 | BA43: =SUM($BA$45:$BA$245) -> 0 | BB43: =SUM($BB$45:$BB$245) -> 0 | BC43: =SUM($BC$45:$BC$245) -> 0 | BE43: =SUM($BE$45:$BE$245) -> 0 | BG43: =SUM($BG$45:$BG$245) -> 0 | BH43: =SUM($BH$45:$BH$245) -> 0 | BI43: =IF(SUM($BI$45:$BI$245)=0,0,AVERAGE($BI$45:$BI$245)) -> 0 | BK43: =IF(SUM($BK$45:$BK$245)=0,0,AVERAGE($BK$45:$BK$245)) -> 0 | BL43: =IF(SUM($BL$45:$BL$245)=0,0,AVERAGE($BL$45:$BL$245)) -> 0 | BM43: =IF(SUM($BM$45:$BM$245)=0,0,AVERAGE($BM$45:$BM$245)) -> 0 | BN43: =IF(SUM($BN$45:$BN$245)=0,0,AVERAGE($BN$45:$BN$245)) -> 0 | BO43: =SUM(BO45:BO245) -> 0 | BP43: =SUM($BP$45:$BP$245) -> 0 | BQ43: =SUM($BQ$45:$BQ$245) -> 0 | BR43: =IF(SUM($BR$45:$BR$245)=0,0,AVERAGE($BR$45:$BR$245)) -> 0 | BS43: =IF(SUM($BS$45:$BS$245)=0,0,AVERAGE($BS$45:$BS$245)) -> 0
AI44: Point | AJ44: Distance | AK44: Zone | AL44: xcrown (ft) | AM44: ycrown (ft) | AN44: xbottom (ft) | AO44: ybottom (ft) | AP44: ysoil (ft) | AQ44: db,dry,crown (ft) | AR44: db,sat,crown (ft) | AS44: db,crown (ft) | AT44: db,crown,bed (ft) | AU44: db,crown,bank (ft) | AV44: db,dry,bottom (ft) | AW44: db,sat,bottom (ft) | AX44: db,bottom (ft) | AY44: LT,em (ft) | AZ44: Vbed,dry (ft3) | BA44: Vbed,sat (ft3) | BB44: Vbank,dry (ft3) | BC44: Vbank,sat (ft3) | BD44: hb,TS (ft) | BE44: ATSp,em (ft2) | BF44: dTSp,dry,em (ft) | BG44: ATSp,dry,em (ft2) | BH44: LT,ex (ft) | BI44: cD (ft) | BJ44: hT↑bed,ex,wet (ft) | BK44: CL (ft) | BL44: cL (ft) | BM44: zT,CL↓WSE | BN44: CW | BO44: LTf,tot (ft) | BP44: LTf,bed (ft) | BQ44: LTf,banks (ft) | BR44: cF (ft) | BS44: csoil (ft)
V45: Log Crown and Soil Intercept | X45: Dist to Intercept | Y45: Intercept in Zone? | Z45: LW Buried? | AA45: Exposed Segment | AD45: Large Wood Centerline | AI45: 0 | AJ45: =($AI45/$AI$245)*$AJ$245 -> 0 | AK45: =IF(OR($C$19="",$F$25="",$G$25=""),"None",IF(AL45<$B$14,"Left Floodplain",IF(AL45<$B$15,"Left Bank",IF(AL45<$B$16,"Left Stream Bed",IF(AL45<$B$17,"Right Stream Bed",IF(AL45<$B$18,"Right Bank","Right Floodplain")))))) -> None | AL45: =MIN($U$38:$U$39) -> 0 | AM45: =IF($U$38<=$U$39,$X$38,$X$39) -> 0 | AN45: =MIN($U$40:$U$41) -> 0 | AO45: =IF($U$40<=$U$41,$X$40,$X$41) -> 0 | AP45: =IF($AL45<$B$14,(($AL45-$B$13)*$AB$31)+$C$13,IF($AL45<$B$15,(($AL45-$B$14)*$AB$32)+$C$14,IF($AL45<$B$16,(($AL45-$B$15)*$AB$33)+$C$15,IF($AL45<$B$17,(($AL45-$B$16)*$AB$34)+$C$16,IF($AL45<$B$18,(($AL45-$B$17)*$AB$35)+$C$17,IF($AL45<$B$19,(($AL45-$B$18)*$AB$36)+$C$18)))))) -> FALSE | AQ45: =IF(OR($AP45<$AE$12,$AP45<=$AM45),0,IF(OR($AP45>=$AE$12,$AM45>=$AE$12),$AP45-$AM45-$AR45,$AP45-$AE$12)) -> 0 | AR45: =IF($AP45<=$AM45,0,IF($AM45>=$AE$12,0,IF($AP45<=$AE$12,$AP45-$AM45,$AE$12-$AM45))) -> 0 | AS45: =IF(AP45<=AM45,0,AP45-AM45) -> 0 | AT45: =IF(OR($AS45="",$AS45=0),"",IF(OR($AK45="Left Stream Bed",$AK45="Right Stream Bed"),$AS45,"")) ->  | AU45: =IF(OR($AS45="",$AS45=0),"",IF(OR($AK45="Left Floodplain",$AK45="Left Bank",$AK45="Right Bank",$AK45="Right Floodplain"),$AS45,"")) ->  | AV45: =IF(OR($AP45<$AE$12,$AP45<=$AO45),0,IF($AO45>=$AE$12,$AP45-$AO45,$AP45-$AE$12)) -> 0 | AW45: =IF($AP45<=$AO45,0,IF($AO45>=$AE$12,0,IF($AP45<=$AE$12,$AP45-$AO45,$AE$12-$AO45))) -> 0 | AX45: =IF(AP45<=AO45,0,AP45-AO45) -> 0 | AY45: =IF($AS45=0,0,IF(OR($AJ45=0,$AJ45=$E$22),$AJ$46/2,$AJ$46)) -> 0 | AZ45: =IF(OR($AK45="Left Stream Bed",$AK45="Right Stream Bed"),$F$22*$AQ45*$AY45,0) -> 0 | BA45: =IF(OR($AK45="Left Stream Bed",$AK45="Right Stream Bed"),$F$22*$AR45*$AY45,0) -> 0 | BB45: =IF(OR($AK45="Left Floodplain",$AK45="Left Bank",$AK45="Right Bank",$AK45="Right Floodplain"),$F$22*$AQ45*$AY45,0) -> 0 | BC45: =IF(OR($AK45="Left Floodplain",$AK45="Left Bank",$AK45="Right Bank",$AK45="Right Floodplain"),$F$22*$AR45*$AY45,0) -> 0 | BD45: =AX45-AS45 -> 0 | BE45: =$BD45*$AJ$46*ABS($M$17) -> 0 | BF45: =AV45-AQ45 -> 0 | BG45: =IF(OR($AJ45=0,$AJ45=$E$22),($BF45*$AJ$46/2)*ABS($M$17),$BF45*$AJ$46*ABS($M$17)) -> 0 | BH45: =IF(OR($AM45<$AP45,$AO45>$AE$8),"",IF(OR($AJ45=0,$AJ45=$E$22),$AJ$46/2,$AJ$46)) ->  | BI45: =IF($BH45="","",IF($BH45>0,$AJ45,"")) ->  | BJ45: =IF($BH45="","",IF(OR(($AO45-$AP45)<0,$AO$45>=$AE$8),0,($AO45-$AP45))) ->  | BK45: =IF($BJ45="","",IF(OR($BJ45>($F$22/2),$BJ45=0),0,0.45-($BJ45*0.45/($F$22/2)))) ->  | BL45: =IF($BK45="","",IF($BK45>0,$AJ45,"")) ->  | BM45: =IF($BH45="","",IF(OR(($AM45-$AP45)<0,$AM45>=$AE$8),"",($AE$8-($AM45-(($F$22/2)/$M$19))))) ->  | BN45: =IF($BM45="","",(((PI()^2)/32)*($B$66^-6)*EXP(-($BM45/$F$22)/(2*($B$66^2))))) ->  | BO45: =IF($AO45=0,0,IF($AO45>$AP45,0,IF(OR($AJ45=0,$AJ45=$E$22),$AJ$46/2,$AJ$46))) -> 0 | BP45: =IF(AND($BO45>0,OR($AK45="Left Stream Bed",$AK45="Right Stream Bed")),$BO45,0) -> 0 | BQ45: =IF(AND($BO45>0,OR($AK45="Left Floodplain",$AK45="Left Bank",$AK45="Right Bank",$AK45="Right Floodplain")),$BO45,0) -> 0 | BR45: =IF($BO45>0,$AJ45,"") ->  | BS45: =IF($AY45>0,$AJ45,"") -> 
T46: Zone L (ft) | U46: Log L (ft) | V46: xcrown (ft) | W46: ycrown (ft) | AB46: Lem,crown (ft) | AE46: x (ft) | AF46: y (ft) | AI46: 1 | AJ46: =($AI46/$AI$245)*$AJ$245 -> 0 | AK46: None | AL46: =$AL$45+ABS(AJ46*$M$19*$M$17) -> 0 | AM46: =AM45+((AL46-AL45)*$AA$40) -> 0 | AN46: =$AN$45+ABS(AJ46*$M$19*$M$17) -> 0 | AO46: =AO45+((AN46-AN45)*$AA$40) -> 0 | AP46: =IF($AL46<$B$14,(($AL46-$B$13)*$AB$31)+$C$13,IF($AL46<$B$15,(($AL46-$B$14)*$AB$32)+$C$14,IF($AL46<$B$16,(($AL46-$B$15)*$AB$33)+$C$15,IF($AL46<$B$17,(($AL46-$B$16)*$AB$34)+$C$16,IF($AL46<$B$18,(($AL46-$B$17)*$AB$35)+$C$17,IF($AL46<$B$19,(($AL46-$B$18)*$AB$36)+$C$18)))))) -> FALSE | AQ46: 0 | AR46: 0 | AS46: =IF(AP46<=AM46,0,AP46-AM46) -> 0 | AT46: =IF(OR($AS46="",$AS46=0),"",IF(OR($AK46="Left Stream Bed",$AK46="Right Stream Bed"),$AS46,"")) ->  | AU46: =IF(OR($AS46="",$AS46=0),"",IF(OR($AK46="Left Floodplain",$AK46="Left Bank",$AK46="Right Bank",$AK46="Right Floodplain"),$AS46,"")) ->  | AV46: =IF(OR($AP46<$AE$12,$AP46<=$AO46),0,IF($AO46>=$AE$12,$AP46-$AO46,$AP46-$AE$12)) -> 0 | AW46: 0 | AX46: 0 | AY46: 0 | AZ46: 0 | BA46: 0 | BB46: 0 | BC46: 0 | BD46: 0 | BE46: =$BD46*$AJ$46*ABS($M$17) -> 0 | BF46: =AV46-AQ46 -> 0 | BG46: 0 | BI46: =IF($BH46="","",IF($BH46>0,$AJ46,"")) ->  | BJ46: =IF($BH46="","",IF(OR(($AO46-$AP46)<0,$AO$45>=$AE$8),0,($AO46-$AP46))) ->  | BM46: =IF($BH46="","",IF(OR(($AM46-$AP46)<0,$AM46>=$AE$8),"",($AE$8-($AM46-(($F$22/2)/$M$19))))) ->  | BN46: =IF($BM46="","",(((PI()^2)/32)*($B$66^-6)*EXP(-($BM46/$F$22)/(2*($B$66^2))))) ->  | BO46: 0 | BP46: 0 | BQ46: 0 | BS46: =IF($AY46>0,$AJ46,"") -> 
S47: LB Floodplain | T47: =($B$14-$B$13)/ABS($M$17)/ABS($M$19) ->  | U47: =IF(MAX($U$38:$U$39)<=$B$14,$E$22,IF($T$32="No",0,$E$22-$W$32)) -> 0 | V47: =IF($U$47=0,0,IF(OR($B$25=0,$B$25=180,$B$25=360),$U$38,$U$32+(($X$32-$C$14)/($AB$31-$AA$40)))) -> 0 | W47: =IF($U$47=0,0,IF(OR($B$25=0,$B$25=180,$B$25=360),(($U$38-$B$13)*$AB$31)+$C$13,$X$32+(($V$47-$U$32)*$AA$40))) -> 0 | X47: =IF($U$47=0,0,IF(OR($B$25=0,$B$25=180,$B$25=360),$E$22-ABS(($X$39-$W$47)/$M$20),IF(AND($U$38<=$U$39,$X$38>=$Y$38),ABS(($X$38-$W$47)/($AA$40*$M$17*$M$19)),IF(AND($U$38<=$U$39,$X$38<$Y$38),ABS($E$22-(ABS(($X$38-$W$47)/($AA$40*$M$17*$M$19)))),IF(AND($U$38>$U$39,$X$39>=$Y$39),ABS(($X$39-$W$47)/($AA$40*$M$17*$M$19)),IF(AND($U$38>=$U$39,$X$39<$Y$39),ABS($E$22-(ABS(($X$38-$W$47)/($AA$40*$M$17*$M$19)))))))))) -> 0 | Y47: =IF(AND($U$47=0,$W$47=0),"No",IF(AND($V$47<=$B$14,$V$47>=$B$13,$V$47>=MIN($U$38:$U$39),$V$47<=MAX($U$38:$U$39),$W$47<$C$13,$X$47<=$E$22),"Yes","No")) -> No | Z47: =IF($U$47=0,"No",IF($Y$47="Yes","Partial",IF(AND($U$47<$E$22,$X$39<$Y$39,$Y$47="No",$Y$48="No",$Y$49="No",$Y$50="No",$Y$51="No",$Y$52="No"),"Yes",IF(AND($Y$47="No",$X$32>$Y$32),"No","Yes")))) -> No | AA47: =IF($Z$47="Yes","None",IF(AND($Z$47="No",$U$47=0),"None",IF($Z$47="No","All",IF(AND($X$39>=$Y$39,$U$39<=$U$38),"Left","Right")))) -> None | AB47: =IF($U$47=0,0,IF($Z$47="No",0,IF($Z$47="Yes",$U$47,IF(OR($AA$47="Left",$U$47=$E$22),$U$47-(ABS(($U$39-$V$47)/($M$17*$M$19))),$U$47-(ABS(($V$47-$B$14)/($M$17*$M$19))))))) -> 0 | AD47: Rootwad | AE47: =AVERAGE(T10,T15) -> 0 | AF47: =AVERAGE(U10,U15) -> 0 | AI47: 2 | AJ47: 0 | AK47: None | AL47: =$AL$45+ABS(AJ47*$M$19*$M$17) -> 0 | AM47: =AM46+((AL47-AL46)*$AA$40) -> 0 | AN47: 0 | AO47: =AO46+((AN47-AN46)*$AA$40) -> 0 | AP47: =IF($AL47<$B$14,(($AL47-$B$13)*$AB$31)+$C$13,IF($AL47<$B$15,(($AL47-$B$14)*$AB$32)+$C$14,IF($AL47<$B$16,(($AL47-$B$15)*$AB$33)+$C$15,IF($AL47<$B$17,(($AL47-$B$16)*$AB$34)+$C$16,IF($AL47<$B$18,(($AL47-$B$17)*$AB$35)+$C$17,IF($AL47<$B$19,(($AL47-$B$18)*$AB$36)+$C$18)))))) -> FALSE | AQ47: 0 | AR47: 0 | AS47: 0 | AV47: 0 | AW47: 0 | AX47: 0 | AY47: 0 | AZ47: 0 | BA47: 0 | BB47: 0 | BC47: 0 | BD47: 0 | BE47: 0 | BF47: 0 | BG47: 0 | BN47: =IF($BM47="","",(((PI()^2)/32)*($B$66^-6)*EXP(-($BM47/$F$22)/(2*($B$66^2))))) ->  | BO47: 0 | BP47: 0 | BQ47: 0
A48: =IF($A$6="","",$A$6) ->  | B48: =IF($A$6="","",$B$6) ->  | D48: =IF(OR($B$9="N/A",$B$9=""),"",$B$9) ->  | E48: =IF($D$48="","","Log ID") ->  | F48: =IF($D$48="","",$C$9) ->  | J48: Page 2 | S48: Left Bank | T48: =($B$15-$B$14)/ABS($M$17)/ABS($M$19) ->  | U48: =IF(AND(MIN($U$38:$U$39)>=$B$14,MAX($U$38:$U$39)<=$B$15),$E$22,IF(AND($T$33="No",$T$32="No"),0,$E$22-$W$33-$U$47)) -> 0 | V48: =IF($U$48=0,0,IF(OR($B$25=0,$B$25=180,$B$25=360),$U$38,$U$33+(($C$15-$X$33)/($AA$40-$AB$32)))) -> 0 | W48: =IF($U$48=0,0,IF(OR($B$25=0,$B$25=180,$B$25=360),(($U$38-$B$14)*$AB$32)+$C$14,$X$33+(($V$48-$U$33)*$AA$40))) -> 0 | X48: =IF($U$48=0,0,IF(OR($B$25=0,$B$25=180,$B$25=360),$E$22-ABS(($X$39-$W$48)/$M$20),IF(AND($U$38<=$U$39,$X$38>=$Y$38),ABS(($X$38-$W$48)/($AA$40*$M$17*$M$19)),IF(AND($U$38<=$U$39,$X$38<$Y$38),ABS($E$22-(ABS(($X$38-$W$48)/($AA$40*$M$17*$M$19)))),IF(AND($U$38>$U$39,$X$39>=$Y$39),ABS(($X$39-$W$48)/($AA$40*$M$17*$M$19)),IF(AND($U$38>=$U$39,$X$39<$Y$39),ABS($E$22-(ABS(($X$38-$W$48)/($AA$40*$M$17*$M$19)))))))))) -> 0 | Y48: =IF(AND($U$48=0,$W$48=0),"No",IF(AND($V$48<=$B$15,$V$48>=$B$14,$V$48>=MIN($U$38:$U$39),$V$48<=MAX($U$38:$U$39),$W$48<$C$14,$X$48<=$E$22),"Yes","No")) -> No | Z48: =IF($U$48=0,"No",IF($Y$48="Yes","Partial",IF(AND($U$48<$E$22,$X$39<$Y$39,$Y$47="No",$Y$48="No",$Y$49="No",$Y$50="No",$Y$51="No",$Y$52="No"),"Yes",IF(AND($Y$48="No",$X$33>$Y$33),"No","Yes")))) -> No | AA48: =IF($Z$48="Yes","None",IF(AND($Z$48="No",$U$48=0),"None",IF($Z$48="No","All",IF(AND($X$39>=$Y$39,$U$39<=$U$38,$AA$47<>"Left"),"Left","Right")))) -> None | AB48: =IF($U$48=0,0,IF($Z$48="No",0,IF($Z$48="Yes",$U$48,IF(OR($U$48=$E$22,AND($AA$48="Left",MIN($U$38:$U$39)>=$B$14,MAX($U$38:$U$39)>=$B$15)),$U$48-(ABS(($U$39-$V$48)/($M$17*$M$19))),IF($AA$48="Left",$U$48-(ABS(($B$14-$V$48)/($M$17*$M$19))),IF(MAX($U$38:$U$39)>=$B$15,$U$48-(ABS(($V$48-$B$15)/($M$17*$M$19))),ABS(($V$48-$B$14)/($M$17*$M$19)))))))) -> 0 | AD48: Root collar | AE48: =AVERAGE(T11,T14) -> 0 | AF48: =AVERAGE(U11,U14) -> 0 | AI48: 3 | AJ48: 0 | AK48: None | AL48: =$AL$45+ABS(AJ48*$M$19*$M$17) -> 0 | AM48: 0 | AN48: 0 | AO48: 0 | AP48: FALSE | AQ48: 0 | AR48: 0 | AS48: 0 | AV48: 0 | AW48: 0 | AX48: 0 | AY48: 0 | AZ48: 0 | BA48: 0 | BB48: 0 | BC48: 0 | BD48: 0 | BE48: 0 | BF48: 0 | BG48: 0 | BO48: 0 | BP48: 0 | BQ48: 0
A49: Vertical Force Analysis | S49: Left Stream Bed | T49: =($B$16-$B$15)/ABS($M$17)/ABS($M$19) ->  | U49: =IF(AND(MIN($U$38:$U$39)>=$B$15,MAX($U$38:$U$39)<=$B$16),$E$22,IF(AND($T$34="No",$T$33="No"),0,IF(AND($T$33="Yes",$T$34="No"),$E$22-$U$48-$U$47,IF(AND($T$33="Yes",$T$34="Yes",$T$36="No"),$E$22-$U$50-$U$48-$U$47,IF(AND($T$33="Yes",$T$34="Yes",$T$36="Yes"),$E$22-$U$52-$U$51-$U$50-$U$48-$U$47,$E$22-$U$52-$U$51-$U$50))))) -> 0 | V49: =IF($U$49=0,0,IF(OR($B$25=0,$B$25=180,$B$25=360),$U$38,$U$34+(($C$16-$X$34)/($AA$40-$AB$33)))) -> 0 | W49: =IF($U$49=0,0,IF(OR($B$25=0,$B$25=180,$B$25=360),(($U$38-$B$15)*$AB$33)+$C$15,$X$34+(($V$49-$U$34)*$AA$40))) -> 0 | X49: =IF(OR($U$49=0,AND($C$25=0,$B$25=0),AND($C$25=0,$B$25=360),AND($C$25=0,$B$25=180)),0,IF(OR($B$25=0,$B$25=180,$B$25=360),$E$22-ABS(($X$39-$W$49)/$M$20),IF(AND($U$38<=$U$39,$X$38>=$Y$38),ABS(($X$38-$W$49)/($AA$40*$M$17*$M$19)),IF(AND($U$38<=$U$39,$X$38<$Y$38),ABS($E$22-(ABS(($X$38-$W$49)/($AA$40*$M$17*$M$19)))),IF(AND($U$38>$U$39,$X$39>=$Y$39),ABS(($X$39-$W$49)/($AA$40*$M$17*$M$19)),IF(AND($U$38>=$U$39,$X$39<$Y$39),ABS($E$22-(ABS(($X$38-$W$49)/($AA$40*$M$17*$M$19)))))))))) -> 0 | Y49: =IF(AND($U$49=0,$W$49=0),"No",IF(AND($V$49<=$B$16,$V$49>=$B$15,$V$49>=MIN($U$38:$U$39),$V$49<=MAX($U$38:$U$39),$W$49<$C$15,$X$49<=$E$22),"Yes","No")) -> No | Z49: =IF($U$49=0,"No",IF($Y$49="Yes","Partial",IF(AND($U$49<$E$22,$X$39<$Y$39,$Y$47="No",$Y$48="No",$Y$49="No",$Y$50="No",$Y$51="No",$Y$52="No"),"Yes",IF(AND($Y$49="No",$X$34>$Y$34),"No","Yes")))) -> No | AA49: =IF($Z$49="Yes","None",IF(AND($Z$49="No",$U$49=0),"None",IF($Z$49="No","All",IF(AND($X$39>=$Y$39,$U$39<=$U$38,$AA$48<>"Left"),"Left","Right")))) -> None | AB49: =IF($U$49=0,0,IF($Z$49="No",0,IF($Z$49="Yes",$U$49,IF(OR($U$49=$E$22,AND($AA$49="Left",MIN($U$38:$U$39)>=$B$15,MAX($U$38:$U$39)>=$B$16)),$U$49-(ABS(($U$39-$V$49)/($M$17*$M$19))),IF($AA$49="Left",$U$49-(ABS(($B$15-$V$49)/($M$17*$M$19))),IF(MAX($U$38:$U$39)>=$B$16,$U$49-(ABS(($V$49-$B$16)/($M$17*$M$19))),ABS(($V$49-$B$15)/($M$17*$M$19)))))))) -> 0 | AD49: Stem tip | AE49: =AVERAGE(T12,T13) -> 0 | AF49: =AVERAGE(U12,U13) -> 0 | AI49: 4 | AJ49: 0 | AK49: None | AL49: 0 | AM49: 0 | AN49: 0 | AO49: 0 | AP49: FALSE | AQ49: 0 | AR49: 0 | AS49: 0 | AV49: 0 | AW49: 0 | AX49: 0 | AY49: 0 | AZ49: 0 | BA49: 0 | BB49: 0 | BC49: 0 | BD49: 0 | BE49: 0 | BF49: 0 | BG49: 0 | BO49: 0 | BP49: 0 | BQ49: 0
A50: Net Buoyancy Force | H50: Lift Force | S50: Right Stream Bed | T50: =($B$17-$B$16)/ABS($M$17)/ABS($M$19) ->  | U50: =IF(AND(MIN($U$38:$U$39)>=$B$16,MAX($U$38:$U$39)<=$B$17),$E$22,IF(AND($T$35="No",$T$36="No"),0,IF(AND($T$36="Yes",$T$35="No"),$E$22-$U$51-$U$52,IF(AND($T$36="Yes",$T$35="Yes"),$E$22-$W$35-$U$51-$U$52,$E$22-$W$35)))) -> 0 | V50: =IF($U$50=0,0,IF(OR($B$25=0,$B$25=180,$B$25=360),$U$38,$U$35+(($X$35-$C$16)/($AB$34-$AA$40)))) -> 0 | W50: =IF($U$50=0,0,IF(OR($B$25=0,$B$25=180,$B$25=360),(($U$38-$B$16)*$AB$34)+$C$16,$X$35+(($V$50-$U$35)*$AA$40))) -> 0 | X50: =IF(OR($U$50=0,AND($C$25=0,$B$25=0),AND($C$25=0,$B$25=360),AND($C$25=0,$B$25=180)),0,IF(OR($B$25=0,$B$25=180,$B$25=360),$E$22-ABS(($X$39-$W$50)/$M$20),IF(AND($U$38<=$U$39,$X$38>=$Y$38),ABS(($X$38-$W$50)/($AA$40*$M$17*$M$19)),IF(AND($U$38<=$U$39,$X$38<$Y$38),ABS($E$22-(ABS(($X$38-$W$50)/($AA$40*$M$17*$M$19)))),IF(AND($U$38>$U$39,$X$39>=$Y$39),ABS(($X$39-$W$50)/($AA$40*$M$17*$M$19)),IF(AND($U$38>=$U$39,$X$39<$Y$39),ABS($E$22-(ABS(($X$38-$W$50)/($AA$40*$M$17*$M$19)))))))))) -> 0 | Y50: =IF(AND($U$50=0,$W$50=0),"No",IF(AND($V$50<=$B$17,$V$50>=$B$16,$V$50>=MIN($U$38:$U$39),$V$50<=MAX($U$38:$U$39),$W$50<$C$17,$X$50<=$E$22),"Yes","No")) -> No | Z50: =IF($U$50=0,"No",IF($Y$50="Yes","Partial",IF(AND($U$50<$E$22,$X$39<$Y$39,$Y$47="No",$Y$48="No",$Y$49="No",$Y$50="No",$Y$51="No",$Y$52="No"),"Yes",IF(AND($Y$50="No",$X$35>$Y$35),"No","Yes")))) -> No | AA50: =IF($Z$50="Yes","None",IF(AND($Z$50="No",$U$50=0),"None",IF($Z$50="No","All",IF(AND($X$39>=$Y$39,$U$39>=$U$38,$AA$51<>"Right"),"Right","Left")))) -> None | AB50: =IF($U$50=0,0,IF($Z$50="No",0,IF($Z$50="Yes",$U$50,IF(OR($U$50=$E$22,AND($AA$50="Right",MIN($U$38:$U$39)<=$B$16,MAX($U$38:$U$39)<=$B$17)),$U$50-(ABS(($U$39-$V$50)/($M$17*$M$19))),IF($AA$50="Right",$U$50-(ABS(($B$17-$V$50)/($M$17*$M$19))),IF(MIN($U$38:$U$39)<=$B$16,$U$50-(ABS(($V$50-$B$16)/($M$17*$M$19))),ABS(($V$50-$B$17)/($M$17*$M$19)))))))) -> 0 | AI50: 5 | AJ50: 0 | AK50: None | AL50: 0 | AM50: 0 | AN50: 0 | AO50: 0 | AP50: FALSE | AQ50: 0 | AR50: 0 | AS50: 0 | AV50: 0 | AW50: 0 | AX50: 0 | AY50: 0 | AZ50: 0 | BA50: 0 | BB50: 0 | BC50: 0 | BD50: 0 | BE50: 0 | BF50: 0 | BG50: 0 | BO50: 0 | BP50: 0 | BQ50: 0
A51: Wood | B51: VTS (ft3) | C51: VRW (ft3) | D51: VT (ft3) | E51: WT (lbf) | F51: FB (lbf) | H51: CLT | I51: =$BK$43 -> 0 | N51: =IF(OR($D$22="",$D$22="No"),"","Rootwad Position") ->  | S51: Right Bank | T51: =($B$18-$B$17)/ABS($M$17)/ABS($M$19) ->  | U51: =IF(AND(MIN($U$38:$U$39)>=$B$17,MAX($U$38:$U$39)<=$B$18),$E$22,IF(AND($T$36="No",$T$37="No"),0,$E$22-$W$36-$U$52)) -> 0 | V51: =IF($U$51=0,0,IF(OR($B$25=0,$B$25=180,$B$25=360),$U$38,$U$36+(($X$36-$C$17)/($AB$35-$AA$40)))) -> 0 | W51: =IF($U$51=0,0,IF(OR($B$25=0,$B$25=180,$B$25=360),(($U$38-$B$17)*$AB$35)+$C$17,$X$36+(($V$51-$U$36)*$AA$40))) -> 0 | X51: =IF($U$51=0,0,IF(OR($B$25=0,$B$25=180,$B$25=360),$E$22-ABS(($X$39-$W$51)/$M$20),IF(AND($U$38<=$U$39,$X$38>=$Y$38),ABS(($X$38-$W$51)/($AA$40*$M$17*$M$19)),IF(AND($U$38<=$U$39,$X$38<$Y$38),ABS($E$22-(ABS(($X$38-$W$51)/($AA$40*$M$17*$M$19)))),IF(AND($U$38>$U$39,$X$39>=$Y$39),ABS(($X$39-$W$51)/($AA$40*$M$17*$M$19)),IF(AND($U$38>=$U$39,$X$39<$Y$39),ABS($E$22-(ABS(($X$38-$W$51)/($AA$40*$M$17*$M$19)))))))))) -> 0 | Y51: =IF(AND($U$51=0,$W$51=0),"No",IF(AND($V$51<=$B$18,$V$51>=$B$17,$V$51>=MIN($U$38:$U$39),$V$51<=MAX($U$38:$U$39),$W$51<$C$18,$X$51<=$E$22),"Yes","No")) -> No | Z51: =IF($U$51=0,"No",IF($Y$51="Yes","Partial",IF(AND($U$51<$E$22,$X$39<$Y$39,$Y$47="No",$Y$48="No",$Y$49="No",$Y$50="No",$Y$51="No",$Y$52="No"),"Yes",IF(AND($Y$51="No",$X$36>$Y$36),"No","Yes")))) -> No | AA51: =IF($Z$51="Yes","None",IF(AND($Z$51="No",$U$51=0),"None",IF($Z$51="No","All",IF(AND($X$39>=$Y$39,$U$39>=$U$38,$AA$52<>"Right"),"Right","Left")))) -> None | AB51: =IF($U$51=0,0,IF($Z$51="No",0,IF($Z$51="Yes",$U$51,IF(OR($U$51=$E$22,AND($AA$51="Right",MIN($U$38:$U$39)<=$B$17,MAX($U$38:$U$39)<=$B$18)),$U$51-(ABS(($U$39-$V$51)/($M$17*$M$19))),IF($AA$51="Right",$U$51-(ABS(($B$18-$V$51)/($M$17*$M$19))),IF(MIN($U$38:$U$39)<=$B$17,$U$51-(ABS(($V$51-$B$17)/($M$17*$M$19))),ABS(($V$51-$B$18)/($M$17*$M$19)))))))) -> 0 | AI51: 6 | AJ51: 0 | AK51: None | AL51: 0 | AM51: 0 | AN51: 0 | AO51: 0 | AP51: FALSE | AQ51: 0 | AR51: 0 | AS51: 0 | AV51: 0 | AW51: 0 | AX51: 0 | AY51: 0 | AZ51: 0 | BA51: 0 | BB51: 0 | BC51: 0 | BD51: 0 | BE51: 0 | BF51: 0 | BG51: 0 | BO51: 0 | BP51: 0 | BQ51: 0
A52: ↑WSE | B52: =IF(OR($E$22="",$F$22=""),0,IF($AH$17="Case 1",$AL$17-$AJ$21,IF($AH$17="Case 2",$AL$17-$AJ$26,IF($AH$17="Case 3",$AL$17-$AJ$30,IF($AH$17="Case 4",$AL$17-$AJ$37,IF($AH$17="Log is completely submerged",0,IF($AH$17="Stem is dry",PI()*(($F$22/2)^2)*($E$22-$G$22),""))))))) -> 0 | C52: =IF(OR($E$22="",$F$22="",$D$22="No",$D$22=""),0,$BL$40*(1-RWporosity)) -> 0 | D52: =B52+C52 -> 0 | E52: =IF($I$22="",0,($B$52*$I$22)+($C$52*$I$22)) -> 0 | F52: 0 | H52: FL (lbf) | I52: =IF($J$6="",0,$I$51*$J$25*SWWater*(($J$6^2)/(2*g))) -> 0 | N52: =IF($D$22="","",IF($D$22="No","No Rootwad",IF($U$15>=$AE$8,"Above high water",IF($U$10<=$C$16,"Buried in bed",IF(OR($AE$48<=$B$14,$AE$48>=$B$18),"On bank/buried in bank","Exposed in stream"))))) ->  | S52: RB Floodplain | T52: =($B$19-$B$18)/ABS($M$17)/ABS($M$19) ->  | U52: =IF(MIN($U$38:$U$39)>=$B$18,$E$22,IF($T$37="No",0,$E$22-$W$37)) -> 0 | V52: =IF($U$52=0,0,IF(OR($B$25=0,$B$25=180,$B$25=360),$U$38,$U$37+(($X$37-$C$18)/($AB$36-$AA$40)))) -> 0 | W52: =IF($U$52=0,0,IF(OR($B$25=0,$B$25=180,$B$25=360),(($U$38-$B$18)*$AB$36)+$C$18,$X$37+(($V$52-$U$37)*$AA$40))) -> 0 | X52: =IF($U$52=0,0,IF(OR($B$25=0,$B$25=180,$B$25=360),$E$22-ABS(($X$39-$W$52)/$M$20),IF(AND($U$38<=$U$39,$X$38>=$Y$38),ABS(($X$38-$W$52)/($AA$40*$M$17*$M$19)),IF(AND($U$38<=$U$39,$X$38<$Y$38),ABS($E$22-(ABS(($X$38-$W$52)/($AA$40*$M$17*$M$19)))),IF(AND($U$38>$U$39,$X$39>=$Y$39),ABS(($X$39-$W$52)/($AA$40*$M$17*$M$19)),IF(AND($U$38>=$U$39,$X$39<$Y$39),ABS($E$22-(ABS(($X$38-$W$52)/($AA$40*$M$17*$M$19)))))))))) -> 0 | Y52: =IF(AND($U$52=0,$W$52=0),"No",IF(AND($V$52<=$B$19,$V$52>=$B$18,$V$52>=MIN($U$38:$U$39),$V$52<=MAX($U$38:$U$39),$W$52<$C$19,$X$52<=$E$22),"Yes","No")) -> No | Z52: =IF($U$52=0,"No",IF($Y$52="Yes","Partial",IF(AND($U$52<$E$22,$X$39<$Y$39,$Y$47="No",$Y$48="No",$Y$49="No",$Y$50="No",$Y$51="No",$Y$52="No"),"Yes",IF(AND($Y$52="No",$X$37>$Y$37),"No","Yes")))) -> No | AA52: =IF($Z$52="Yes","None",IF(AND($Z$52="No",$U$52=0),"None",IF($Z$52="No","All",IF(AND($X$39>=$Y$39,$U$39>=$U$38),"Right","Left")))) -> None | AB52: =IF($U$52=0,0,IF($Z$52="No",0,IF($Z$52="Yes",$U$52,IF(OR($AA$52="Right",$U$52=$E$22),$U$52-(ABS(($U$39-$V$52)/($M$17*$M$19))),$U$52-(ABS(($V$52-$B$18)/($M$17*$M$19))))))) -> 0 | AI52: 7 | AJ52: 0 | AK52: None | AL52: 0 | AM52: 0 | AN52: 0 | AO52: 0 | AP52: FALSE | AQ52: 0 | AR52: 0 | AS52: 0 | AV52: 0 | AW52: 0 | AX52: 0 | AY52: 0 | AZ52: 0 | BA52: 0 | BB52: 0 | BC52: 0 | BD52: 0 | BE52: 0 | BF52: 0 | BG52: 0 | BO52: 0 | BP52: 0 | BQ52: 0
A53: ↓WS↑Thw | B53: =IF(OR($E$22="",$F$22=""),0,IF(AND(MIN($U$10:$U$15)>=$C$16,MAX($U$10:$U$15)<=$AE$8),PI()*(($F$22/2)^2)*($E$22-$G$22),(PI()*(($F$22/2)^2)*($E$22-$G$22))-$B$52-$B$54)) -> 0 | C53: =IF(OR($F$22="",$D$22="No"),0,((1/3)*PI()*(($H$22/2)^2+($F$22/2)^2+(($H$22/2)*($F$22/2)))*$G$22*(1-RWporosity))-$C$52-$C$54) -> 0 | D53: =B53+C53 -> 0 | E53: =IF($I$22="",0,($B$53*$I$22)+($C$53*$I$22)) -> 0 | F53: =($D$53*SWWater) -> 0 | H53: Vertical Force Balance | L53: Formatting | T53: L check | U53: =SUM(U47:U52) -> 0 | V53: =IF($U$53=$E$22,"OK","ERROR") -> OK | AA53: Total | AB53: =SUM(AB47:AB52) -> 0 | AI53: 8 | AJ53: 0 | AK53: None | AL53: 0 | AM53: 0 | AN53: 0 | AO53: 0 | AP53: FALSE | AQ53: 0 | AR53: 0 | AS53: 0 | AV53: 0 | AW53: 0 | AX53: 0 | AY53: 0 | AZ53: 0 | BA53: 0 | BB53: 0 | BC53: 0 | BD53: 0 | BE53: 0 | BF53: 0 | BG53: 0 | BO53: 0 | BP53: 0 | BQ53: 0
A54: ↓Thalweg | B54: =IF(OR($E$22="",$F$22=""),0,IF($AS$17="Case 1",$AU$21,IF($AS$17="Case 2",$AU$26,IF($AS$17="Case 3",$AU$30,IF($AS$17="Case 4",$AU$37,IF($AS$17="Log is completely submerged",PI()*(($F$22/2)^2)*($E$22-$G$22),IF($AS$17="Stem is dry",0,""))))))) -> 0 | C54: =IF(OR($E$22="",$F$22="",$D$22="No",$D$22=""),0,$BO$40*(1-RWporosity)) -> 0 | D54: =B54+C54 -> 0 | E54: =IF($J$22="",0,($B$54*$J$22)+($C$54*$J$22)) -> 0 | F54: =($D$54*SWWater) -> 0 | H54: FB (lbf) | I54: =$F$55 -> 0 | J54: =IF($L54=0,"",IF($L54>0,CHAR(233),CHAR(234))) ->  | L54: =$F$55 -> 0 | N54: check: | O54: =IF(OR($D$22="",$B$25="",$N$52=""),"",IF($D$22="No","use CD stem",IF(AND($D$22="Yes",$N$52="Exposed in stream"),"use CD RW","use CD stem"))) ->  | AI54: 9 | AJ54: 0 | AK54: None | AL54: 0 | AM54: 0 | AN54: 0 | AO54: 0 | AP54: FALSE | AQ54: 0 | AR54: 0 | AS54: 0 | AV54: 0 | AW54: 0 | AX54: 0 | AY54: 0 | AZ54: 0 | BA54: 0 | BB54: 0 | BC54: 0 | BD54: 0 | BE54: 0 | BF54: 0 | BG54: 0 | BO54: 0 | BP54: 0 | BQ54: 0
A55: Total | B55: =$B$52+$B$53+$B$54 -> 0 | C55: =$C$52+$C$53+$C$54 -> 0 | D55: =$D$52+$D$53+$D$54 -> 0 | E55: =$E$52+$E$53+$E$54 -> 0 | F55: =$F$53+$F$54+$F$52 -> 0 | H55: FL (lbf) | I55: =$I$52 -> 0 | L55: =$I$52 -> 0 | N55: CDi for Stem Only (i.e., RW is not in contact with streamflow) | S55: Coordinates of Large Wood Bottom at Key Points | AI55: 10 | AJ55: 0 | AK55: None | AL55: 0 | AM55: 0 | AN55: 0 | AO55: 0 | AP55: FALSE | AQ55: 0 | AR55: 0 | AS55: 0 | AV55: 0 | AW55: 0 | AX55: 0 | AY55: 0 | AZ55: 0 | BA55: 0 | BB55: 0 | BC55: 0 | BD55: 0 | BE55: 0 | BF55: 0 | BG55: 0 | BO55: 0 | BP55: 0 | BQ55: 0
H56: WT (lbf) | I56: =$E$55 -> 0 | L56: =-$E$55 -> 0 | N56: Adjusted q (deg) | O56: CDi Stem only1 | T56: Wood Present? | U56: Large Wood Parameters | Y56: Soil | AI56: 11 | AJ56: 0 | AK56: None | AL56: 0 | AM56: 0 | AN56: 0 | AO56: 0 | AP56: FALSE | AQ56: 0 | AR56: 0 | AS56: 0 | AV56: 0 | AW56: 0 | AX56: 0 | AY56: 0 | AZ56: 0 | BA56: 0 | BB56: 0 | BC56: 0 | BD56: 0 | BE56: 0 | BF56: 0 | BG56: 0 | BO56: 0 | BP56: 0 | BQ56: 0
A57: Soil Ballast Force | H57: Fsoil (lbf) | I57: =$E$61 -> 0 | L57: =-$E$61 -> 0 | N57: =IF(OR($O$54="",$O$54="use CD RW"),"",IF($B$25<-180,"Error",IF($B$25<-90,$B$25+180,IF($B$25<0,-$B$25,IF($B$25<=90,$B$25,IF($B$25<=180,180-$B$25,IF($B$25<=270,$B$25-180,IF($B$25<=360,360-$B$25,"Error")))))))) ->  | O57: =IF($O$54="use CD stem",(1.1173-((5.28*10^-2)*$N$57)+((1.4385*10^-3)*$N$57^2)-((9.7668*10^-6)*$N$57^3)),"") ->  | U57: xTS (ft) | V57: Dist (ft) | W57: Adjusted Dist (ft) | X57: yTS (ft) | Y57: ysoil (ft) | AI57: 12 | AJ57: 0 | AK57: None | AL57: 0 | AM57: 0 | AN57: 0 | AO57: 0 | AP57: FALSE | AQ57: 0 | AR57: 0 | AS57: 0 | AV57: 0 | AW57: 0 | AX57: 0 | AY57: 0 | AZ57: 0 | BA57: 0 | BB57: 0 | BC57: 0 | BD57: 0 | BE57: 0 | BF57: 0 | BG57: 0 | BO57: 0 | BP57: 0 | BQ57: 0
A58: Soil | B58: Vdry (ft3) | C58: Vsat (ft3) | D58: Vsoil (ft3) | E58: Fsoil (lbf) | H58: FW,V (lbf) | I58: =ABS($L$99) -> 0 | J58: =IF($L58=0,"",IF($L58>0,CHAR(233),CHAR(234))) ->  | L58: =$L$99 -> 0 | M58: Flex | N58: 1Use Gippel et al (1996) Formula: | S58: At Left Bank Top | T58: =IF(OR($F$25="",$G$25=""),"No",IF(MIN($U$40:$U$41)>$B$14,"No",IF(MAX($U$40:$U$41)<$B$14,"No","Yes"))) -> No | U58: =$B$14 -> 0 | V58: =IF(OR($B$25=0,$B$25=180,$B$25=360),0,IF($T$14>$T$13,$G$22+((($T$14-$B$14)/ABS($M$17))/$M$19),(($T$13-$B$14)/ABS($M$17))/$M$19)) -> 0 | W58: =IF(V58<0,0,IF(V58>$E$22,$E$22,V58)) -> 0 | X58: =IF($T$14>$T$13,$U$14+(($V$58-$G$22)*$M$20),$U$13-($V$58*$M$20)) -> 0 | Y58: =$C$14 -> 0 | AI58: 13 | AJ58: 0 | AK58: None | AL58: 0 | AM58: 0 | AN58: 0 | AO58: 0 | AP58: FALSE | AQ58: 0 | AR58: 0 | AS58: 0 | AV58: 0 | AW58: 0 | AX58: 0 | AY58: 0 | AZ58: 0 | BA58: 0 | BB58: 0 | BC58: 0 | BD58: 0 | BE58: 0 | BF58: 0 | BG58: 0 | BO58: 0 | BP58: 0 | BQ58: 0
A59: Bed | B59: =IF(AND($H$28="",$H$29=""),0,$AZ$43) -> 0 | C59: =IF(AND($H$28="",$H$29=""),0,$BA$43) -> 0 | D59: =B59+C59 -> 0 | E59: =IF(OR($D$28="",$E$28=""),0,($B$59*$D$28)+($C$59*$E$28)) -> 0 | H59: FA,V (lbf) | I59: =ABS($L$59)+ABS($M$59) -> 0 | J59: =IF(($L59+M59)=0,"",IF(($L59+M59)>0,CHAR(233),CHAR(234))) ->  | L59: =$L$86 -> 0 | M59: =$L$92 -> 0 | N59: CDi = 1.1173 - (5.2800*10-2) q + (1.4385*10-3) q2 - (9.7668*10-6) q3 | S59: At Left Bank Toe | T59: =IF(OR($F$25="",$G$25=""),"No",IF(MIN($U$40:$U$41)>$B$15,"No",IF(MAX($U$40:$U$41)<$B$15,"No","Yes"))) -> No | U59: =$B$15 -> 0 | V59: =IF(OR($B$25=0,$B$25=180,$B$25=360),0,IF($T$14>$T$13,$G$22+((($T$14-$B$15)/ABS($M$17))/$M$19),(($T$13-$B$15)/ABS($M$17))/$M$19)) -> 0 | W59: 0 | X59: =IF($T$14>$T$13,$U$14+(($V$59-$G$22)*$M$20),$U$13-($V$59*$M$20)) -> 0 | Y59: =$C$15 -> 0 | AI59: 14 | AJ59: 0 | AK59: None | AL59: 0 | AM59: 0 | AN59: 0 | AO59: 0 | AP59: FALSE | AQ59: 0 | AR59: 0 | AS59: 0 | AV59: 0 | AW59: 0 | AX59: 0 | AY59: 0 | AZ59: 0 | BA59: 0 | BB59: 0 | BC59: 0 | BD59: 0 | BE59: 0 | BF59: 0 | BG59: 0 | BO59: 0 | BP59: 0 | BQ59: 0
A60: Bank | B60: =IF(AND($H$28="",$H$29=""),0,$BB$43) -> 0 | C60: =IF(AND($H$28="",$H$29=""),0,$BC$43) -> 0 | D60: =B60+C60 -> 0 | E60: =IF(OR($D$29="",$E$29=""),0,($B$60*$D$29)+($C$60*$E$29)) -> 0 | H60: S FV (lbf) | I60: =ABS($L$60) -> 0 | K60: Additional resisting force (lbf) needed: | L60: =$L$54+$L$55+$L$56+$L$57+$L$58+$L$59+$M$59 -> 0 | S60: At Left Thalweg | T60: =IF(OR($F$25="",$G$25=""),"No",IF(AND(MAX($U$40:$U$41)>$B$16,MIN($U$40:$U$41)<$B$16),"Yes","No")) -> No | U60: =$B$16 -> 0 | V60: =IF(OR($B$25=0,$B$25=180,$B$25=360),0,IF($T$14>$T$13,$G$22+((($T$14-$B$16)/ABS($M$17))/$M$19),(($T$13-$B$16)/ABS($M$17))/$M$19)) -> 0 | W60: 0 | X60: =IF($T$14>$T$13,$U$14+(($V$60-$G$22)*$M$20),$U$13-($V$60*$M$20)) -> 0 | Y60: =$C$16 -> 0 | AI60: 15 | AJ60: 0 | AK60: None | AL60: 0 | AM60: 0 | AN60: 0 | AO60: 0 | AP60: FALSE | AQ60: 0 | AR60: 0 | AS60: 0 | AV60: 0 | AW60: 0 | AX60: 0 | AY60: 0 | AZ60: 0 | BA60: 0 | BB60: 0 | BC60: 0 | BD60: 0 | BE60: 0 | BF60: 0 | BG60: 0 | BO60: 0 | BP60: 0 | BQ60: 0
A61: Total | B61: =$B$59+$B$60 -> 0 | C61: =$C$59+$C$60 -> 0 | D61: =$D$59+$D$60 -> 0 | E61: =$E$59+$E$60 -> 0 | H61: FSV | I61: =IF(OR($E$22="",$F$22="",$F$25="",$G$25=""),0,IF($L$58>=0,($I$56+$I$57+$I$59)/($I$54+$I$55+$I$58),($I$56+$I$57+$I$58+$I$59)/($I$54+$I$55))) -> 0 | J61: =$I$61-$L$61 -> -1.5 | K61: =IF(AND($F$25="",$G$25=""),"",IF($I$61>=$L$61,"Structure is Vertically Stable",IF(AND($I$61<$L$61,$L$58>=0),$L$61*($L$54+$L$55+$L$58)-(-$L$56-$L$57-$L$59-$M$59),IF(AND($I$61<$L$61,$L$58<0),$L$61*($L$54+$L$55)-(-$L$56-$L$57-$L$59-$M$59-$L$58),"")))) ->  | L61: ='2-Constants'!$C$5 -> 1.5 | N61: CD Stem with Exposed RW Lookup Table | S61: At Right Thalweg | T61: =IF(OR($F$25="",$G$25=""),"No",IF(AND(MAX($U$40:$U$41)>$B$16,MIN($U$40:$U$41)<$B$16),"Yes","No")) -> No | U61: =$B$16 -> 0 | V61: =IF(OR($B$25=0,$B$25=180,$B$25=360),0,IF($T$14<$T$13,$G$22+((($B$16-$T$14)/ABS($M$17))/$M$19),(($B$16-$T$13)/ABS($M$17))/$M$19)) -> 0 | W61: 0 | X61: =IF($T$14<$T$13,$U$14+(($V$61-$G$22)*$M$20),$U$13-($V$61*$M$20)) -> 0 | Y61: =$C$16 -> 0 | AI61: 16 | AJ61: 0 | AK61: None | AL61: 0 | AM61: 0 | AN61: 0 | AO61: 0 | AP61: FALSE | AQ61: 0 | AR61: 0 | AS61: 0 | AV61: 0 | AW61: 0 | AX61: 0 | AY61: 0 | AZ61: 0 | BA61: 0 | BB61: 0 | BC61: 0 | BD61: 0 | BE61: 0 | BF61: 0 | BG61: 0 | BO61: 0 | BP61: 0 | BQ61: 0
K62: =IF($K$61<>"Structure is Vertically Stable","",IF($K$61="Structure is Vertically Stable",IF($L$58>=0,($I$56+$I$57+$I$59)-(($I$58+$I$54+$I$55)*$L$61),($I$56+$I$57+$I$58+$I$59)-(($I$54+$I$55)*$L$61)))) ->  | N62: Adjusted q (deg) | O62: CDi Stem + RW | S62: At Right Bank Toe | T62: =IF(OR($F$25="",$G$25=""),"No",IF(MAX($U$40:$U$41)<$B$17,"No",IF(MIN($U$40:$U$41)>$B$17,"No","Yes"))) -> No | U62: =$B$17 -> 0 | V62: =IF(OR($B$25=0,$B$25=180,$B$25=360),0,IF($T$14<$T$13,$G$22+((($B$17-$T$14)/ABS($M$17))/$M$19),(($B$17-$T$13)/ABS($M$17))/$M$19)) -> 0 | W62: 0 | X62: =IF($T$14<$T$13,$U$14+(($V$62-$G$22)*$M$20),$U$13-($V$62*$M$20)) -> 0 | Y62: =$C$17 -> 0 | AI62: 17 | AJ62: 0 | AK62: None | AL62: 0 | AM62: 0 | AN62: 0 | AO62: 0 | AP62: FALSE | AQ62: 0 | AR62: 0 | AS62: 0 | AV62: 0 | AW62: 0 | AX62: 0 | AY62: 0 | AZ62: 0 | BA62: 0 | BB62: 0 | BC62: 0 | BD62: 0 | BE62: 0 | BF62: 0 | BG62: 0 | BO62: 0 | BP62: 0 | BQ62: 0
A63: Horizontal Force Analysis | N63: =IF(OR($O$54="",$O$54="use CD stem"),"",IF(OR($B$25<-180,$B$25>360),"Error",IF($B$25>180,360-$B$25,IF($B$25<0,-$B$25,$B$25)))) ->  | O63: =IF(OR($O$54="",$O$54="use CD stem"),"",IF($B$25<22.5,(($B$25/22.5)*($O$67-$O$66)+$O$66),IF($B$25<45,((($B$25-$N$67)/22.5)*($O$68-$O$67)+$O$67),IF($B$25<67.5,((($B$25-$N$68)/22.5)*($O$69-$O$68)+$O$68),IF($B$25<90,((($B$25-$N$69)/22.5)*($O$70-$O$69)+$O$69),IF($B$25<112.5,((($B$25-$N$70)/22.5)*($O$71-$O$70)+$O$70),IF($B$25<135,((($B$25-$N$71)/22.5)*($O$72-$O$71)+$O$71),IF($B$25<157.5,((($B$25-$N$72)/22.5)*($O$73-$O$72)+$O$72),IF($B$25<=180,((($B$25-$N$74)/22.5)*($O$74-$O$73)+$O$74),$O$74))))))))) ->  | S63: At Right Bank Top | T63: =IF(OR($F$25="",$G$25=""),"No",IF(MAX($U$40:$U$41)<$B$18,"No",IF(MIN($U$40:$U$41)>$B$18,"No","Yes"))) -> No | U63: =$B$18 -> 0 | V63: =IF(OR($B$25=0,$B$25=180,$B$25=360),0,IF($T$14<$T$13,$G$22+((($B$18-$T$14)/ABS($M$17))/$M$19),(($B$18-$T$13)/ABS($M$17))/$M$19)) -> 0 | W63: 0 | X63: =IF($T$14<$T$13,$U$14+(($V$63-$G$22)*$M$20),$U$13-($V$63*$M$20)) -> 0 | Y63: =$C$18 -> 0 | AI63: 18 | AJ63: 0 | AK63: None | AL63: 0 | AM63: 0 | AN63: 0 | AO63: 0 | AP63: FALSE | AQ63: 0 | AR63: 0 | AS63: 0 | AV63: 0 | AW63: 0 | AX63: 0 | AY63: 0 | AZ63: 0 | BA63: 0 | BB63: 0 | BC63: 0 | BD63: 0 | BE63: 0 | BF63: 0 | BG63: 0 | BO63: 0 | BP63: 0 | BQ63: 0
A64: Drag Force | AI64: 19 | AJ64: 0 | AK64: None | AL64: 0 | AM64: 0 | AN64: 0 | AO64: 0 | AP64: FALSE | AQ64: 0 | AR64: 0 | AS64: 0 | AV64: 0 | AW64: 0 | AX64: 0 | AY64: 0 | AZ64: 0 | BA64: 0 | BB64: 0 | BC64: 0 | BD64: 0 | BE64: 0 | BF64: 0 | BG64: 0 | BO64: 0 | BP64: 0 | BQ64: 0
A65: ATp / AW | B65: FrL | C65: CDi | D65: Cw | E65: CD* | F65: FD (lbf) | H65: Horizontal Force Balance | L65: Formatting | N65: q (deg) | O65: CDi Stem + RW | V65: Log Bottom and Soil Intercept | X65: Dist to Intercept | Y65: Intercept in Zone? | Z65: LW Buried? | AA65: Exposed Segment | AI65: 20 | AJ65: 0 | AK65: None | AL65: 0 | AM65: 0 | AN65: 0 | AO65: 0 | AP65: FALSE | AQ65: 0 | AR65: 0 | AS65: 0 | AV65: 0 | AW65: 0 | AX65: 0 | AY65: 0 | AZ65: 0 | BA65: 0 | BB65: 0 | BC65: 0 | BD65: 0 | BE65: 0 | BF65: 0 | BG65: 0 | BO65: 0 | BP65: 0 | BQ65: 0
A66: =IF(OR($A$6="",$F$6=""),0,$J$25/(VLOOKUP($A$6,SiteInfo,7,0))) -> 0 | B66: =IF($A$6="",0,$J$6/(($F$22*g)^0.5)) -> 0 | C66: =IF($O$54="",0,IF($O$54="use CD stem",$O$57,$O$63)) -> 0 | D66: =IF(OR($BM$43="",$B$25=""),0,IF($BN$43>0.43,0.43,$BN$43)) -> 0 | E66: =IF(OR($F$22="",$B$25=""),0,0.997*($C$66+$D$66)*((1-$A$66)^-2.06)) -> 0 | F66: =IF(OR($E$66="",$J$25=""),0,$E$66*$J$25*SWWater*($J$6^2)/(2*g)) -> 0 | H66: FD (lbf) | I66: =IF(AND($F$66=0,$I$71>0),0.4999,$F$66) -> 0 | J66: =IF($L$66=0,"",IF($L66>0,CHAR(232),CHAR(231))) ->  | K66: =IF(AND($F$66=0,$I$71>0),"NOTE - Tool has assumed the drag force = 0.49 lbf for FS calcs","") ->  | L66: =$F$66 -> 0 | N66: 0 | O66: 1.2 | T66: Zone L (ft) | U66: Log L (ft) | V66: xbottom (ft) | W66: ybottom (ft) | AB66: Lem,bot (ft) | AI66: 21 | AJ66: 0 | AK66: None | AL66: 0 | AM66: 0 | AN66: 0 | AO66: 0 | AP66: FALSE | AQ66: 0 | AR66: 0 | AS66: 0 | AV66: 0 | AW66: 0 | AX66: 0 | AY66: 0 | AZ66: 0 | BA66: 0 | BB66: 0 | BC66: 0 | BD66: 0 | BE66: 0 | BF66: 0 | BG66: 0 | BO66: 0 | BP66: 0 | BQ66: 0
H67: FP (lbf) | I67: =$C$72 -> 0 | J67: =IF($L$67=0,"",IF($L67>=0,CHAR(232),CHAR(231))) ->  | K67: =IF(OR($M$59=0,$M$70=0),"","NOTE -- Mechanical soil anchors and deadman boulders provide equal resistance to vertical and horizontal forces. The model first applies these anchor forces to resist the vertical forces, and then applies the balance to resist the horizontal forces.") ->  | L67: =-$C$72 -> 0 | N67: 22.5 | O67: 1.25 | S67: LB Floodplain | T67: =($B$14-$B$13)/ABS($M$17)/ABS($M$19) ->  | U67: =IF(MAX($U$40:$U$41)<=$B$14,$E$22,IF($T$58="No",0,$E$22-$W$58)) -> 0 | V67: =IF($U$67=0,0,IF(OR($B$25=0,$B$25=180,$B$25=360),$U$40,$U$58+(($X$58-$C$14)/($AB$31-$AA$40)))) -> 0 | W67: =IF($U$67=0,0,IF(OR($B$25=0,$B$25=180,$B$25=360),(($U$40-$B$13)*$AB$31)+$C$13,$X$58+(($V$67-$U$58)*$AA$40))) -> 0 | X67: =IF($U$67=0,0,IF(OR($B$25=0,$B$25=180,$B$25=360),$E$22-ABS(($X$41-$W$67)/$M$20),IF(AND($U$40<=$U$41,$X$40>=$Y$40),ABS(($X$40-$W$67)/($AA$40*$M$17*$M$19)),IF(AND($U$40<=$U$41,$X$40<$Y$40),ABS($E$22-(ABS(($X$40-$W$67)/($AA$40*$M$17*$M$19)))),IF(AND($U$40>$U$41,$X$41>=$Y$41),ABS(($X$41-$W$67)/($AA$40*$M$17*$M$19)),IF(AND($U$40>=$U$41,$X$41<$Y$41),ABS($E$22-(ABS(($X$40-$W$67)/($AA$40*$M$17*$M$19)))))))))) -> 0 | Y67: =IF(AND($U$67=0,$W$67=0),"No",IF(AND($V$67<=$B$14,$V$67>=$B$13,$V$67>=MIN($U$40:$U$41),$V$67<=MAX($U$40:$U$41),$W$67<$C$13,$X$67<=$E$22),"Yes","No")) -> No | Z67: =IF($U$67=0,"No",IF($Y$67="Yes","Partial",IF(AND($U$67<$E$22,$X$41<$Y$41,$Y$67="No",$Y$68="No",$Y$69="No",$Y$70="No",$Y$71="No",$Y$72="No"),"Yes",IF(AND($Y$67="No",$X$58>$Y$58),"No","Yes")))) -> No | AA67: =IF($Z$67="Yes","None",IF(AND($Z$67="No",$U$67=0),"None",IF($Z$67="No","All",IF(AND($X$41>=$Y$41,$U$41<=$U$40),"Left","Right")))) -> None | AB67: =IF($U$67=0,0,IF($Z$67="No",0,IF($Z$67="Yes",$U$67,IF(OR($AA$67="Left",$U$67=$E$22),$U$67-(ABS(($U$41-$V$67)/($M$17*$M$19))),$U$67-(ABS(($V$67-$B$14)/($M$17*$M$19))))))) -> 0 | AI67: 22 | AJ67: 0 | AK67: None | AL67: 0 | AM67: 0 | AN67: 0 | AO67: 0 | AP67: FALSE | AQ67: 0 | AR67: 0 | AS67: 0 | AV67: 0 | AW67: 0 | AX67: 0 | AY67: 0 | AZ67: 0 | BA67: 0 | BB67: 0 | BC67: 0 | BD67: 0 | BE67: 0 | BF67: 0 | BG67: 0 | BO67: 0 | BP67: 0 | BQ67: 0
A68: Passive Soil Pressure | D68: Friction Force | H68: FF (lbf) | I68: =$F$72 -> 0 | J68: =IF($L$68=0,"",IF($L68>=0,CHAR(232),CHAR(231))) ->  | L68: =-$F$72 -> 0 | N68: 45 | O68: 1.12 | S68: Left Bank | T68: =($B$15-$B$14)/ABS($M$17)/ABS($M$19) ->  | U68: =IF(AND(MIN($U$40:$U$41)>=$B$14,MAX($U$40:$U$41)<=$B$15),$E$22,IF(AND($T$59="No",$T$58="No"),0,$E$22-$W$59-$U$67)) -> 0 | V68: =IF($U$68=0,0,IF(OR($B$25=0,$B$25=180,$B$25=360),$U$40,$U$59+(($C$15-$X$59)/($AA$40-$AB$32)))) -> 0 | W68: =IF($U$68=0,0,IF(OR($B$25=0,$B$25=180,$B$25=360),(($U$40-$B$14)*$AB$32)+$C$14,$X$59+(($V$68-$U$59)*$AA$40))) -> 0 | X68: =IF($U$68=0,0,IF(OR($B$25=0,$B$25=180,$B$25=360),$E$22-ABS(($X$41-$W$68)/$M$20),IF(AND($U$40<=$U$41,$X$40>=$Y$40),ABS(($X$40-$W$68)/($AA$40*$M$17*$M$19)),IF(AND($U$40<=$U$41,$X$40<$Y$40),ABS($E$22-(ABS(($X$40-$W$68)/($AA$40*$M$17*$M$19)))),IF(AND($U$40>$U$41,$X$41>=$Y$41),ABS(($X$41-$W$68)/($AA$40*$M$17*$M$19)),IF(AND($U$40>=$U$41,$X$41<$Y$41),ABS($E$22-(ABS(($X$40-$W$68)/($AA$40*$M$17*$M$19)))))))))) -> 0 | Y68: =IF(AND($U$68=0,$W$68=0),"No",IF(AND($V$68<=$B$15,$V$68>=$B$14,$V$68>=MIN($U$40:$U$41),$V$68<=MAX($U$40:$U$41),$W$68<$C$14,$X$68<=$E$22),"Yes","No")) -> No | Z68: =IF($U$68=0,"No",IF($Y$68="Yes","Partial",IF(AND($U$68<$E$22,$X$41<$Y$41,$Y$67="No",$Y$68="No",$Y$69="No",$Y$70="No",$Y$71="No",$Y$72="No"),"Yes",IF(AND($Y$68="No",$X$59>$Y$59),"No","Yes")))) -> No | AA68: =IF($Z$68="Yes","None",IF(AND($Z$68="No",$U$68=0),"None",IF($Z$68="No","All",IF(AND($X$41>=$Y$41,$U$41<=$U$40,$AA$67<>"Left"),"Left","Right")))) -> None | AB68: =IF($U$68=0,0,IF($Z$68="No",0,IF($Z$68="Yes",$U$68,IF(OR($U$68=$E$22,AND($AA$68="Left",MIN($U$40:$U$41)>=$B$14,MAX($U$40:$U$41)>=$B$15)),$U$68-(ABS(($U$41-$V$68)/($M$17*$M$19))),IF($AA$68="Left",$U$68-(ABS(($B$14-$V$68)/($M$17*$M$19))),IF(MAX($U$40:$U$41)>=$B$15,$U$68-(ABS(($V$68-$B$15)/($M$17*$M$19))),ABS(($V$68-$B$14)/($M$17*$M$19)))))))) -> 0 | AI68: 23 | AJ68: 0 | AK68: None | AL68: 0 | AM68: 0 | AN68: 0 | AO68: 0 | AP68: FALSE | AQ68: 0 | AR68: 0 | AS68: 0 | AV68: 0 | AW68: 0 | AX68: 0 | AY68: 0 | AZ68: 0 | BA68: 0 | BB68: 0 | BC68: 0 | BD68: 0 | BE68: 0 | BF68: 0 | BG68: 0 | BO68: 0 | BP68: 0 | BQ68: 0
A69: Soil | B69: KP | C69: FP (lbf) | D69: LTf (ft) | E69: m | F69: FF (lbf) | H69: FW,H (lbf) | I69: =ABS($M$99) -> 0 | J69: =IF($L$69=0,"",IF($L69>=0,CHAR(232),CHAR(231))) ->  | L69: =$M$99 -> 0 | M69: Flex | N69: 67.5 | O69: 1.22 | S69: Left Stream Bed | T69: =($B$16-$B$15)/ABS($M$17)/ABS($M$19) ->  | U69: =IF(AND(MIN($U$40:$U$41)>=$B$15,MAX($U$40:$U$41)<=$B$16),$E$22,IF(AND($T$60="No",$T$59="No"),0,IF(AND($T$59="Yes",$T$60="No"),$E$22-$U$68-$U$67,IF(AND($T$59="Yes",$T$60="Yes",$T$62="No"),$E$22-$U$70-$U$68-$U$67,IF(AND($T$59="Yes",$T$60="Yes",$T$62="Yes"),$E$22-$U$72-$U$71-$U$70-$U$68-$U$67,$E$22-$U$72-$U$71-$U$70))))) -> 0 | V69: =IF($U$69=0,0,IF(OR($B$25=0,$B$25=180,$B$25=360),$U$40,$U$60+(($C$16-$X$60)/($AA$40-$AB$33)))) -> 0 | W69: =IF($U$69=0,0,IF(OR($B$25=0,$B$25=180,$B$25=360),(($U$40-$B$15)*$AB$33)+$C$15,$X$60+(($V$69-$U$60)*$AA$40))) -> 0 | X69: =IF($U$69=0,0,IF(OR($B$25=0,$B$25=180,$B$25=360),$E$22-ABS(($X$41-$W$69)/$M$20),IF(AND($U$40<=$U$41,$X$40>=$Y$40),ABS(($X$40-$W$69)/($AA$40*$M$17*$M$19)),IF(AND($U$40<=$U$41,$X$40<$Y$40),ABS($E$22-(ABS(($X$40-$W$69)/($AA$40*$M$17*$M$19)))),IF(AND($U$40>$U$41,$X$41>=$Y$41),ABS(($X$41-$W$69)/($AA$40*$M$17*$M$19)),IF(AND($U$40>=$U$41,$X$41<$Y$41),ABS($E$22-(ABS(($X$40-$W$69)/($AA$40*$M$17*$M$19)))))))))) -> 0 | Y69: =IF(AND($U$69=0,$W$69=0),"No",IF(AND($V$69<=$B$16,$V$69>=$B$15,$V$69>=MIN($U$40:$U$41),$V$69<=MAX($U$40:$U$41),$W$69<$C$15,$X$69<=$E$22),"Yes","No")) -> No | Z69: =IF($U$69=0,"No",IF($Y$69="Yes","Partial",IF(AND($U$69<$E$22,$X$41<$Y$41,$Y$67="No",$Y$68="No",$Y$69="No",$Y$70="No",$Y$71="No",$Y$72="No"),"Yes",IF(AND($Y$69="No",$X$60>$Y$60),"No","Yes")))) -> No | AA69: =IF($Z$69="Yes","None",IF(AND($Z$69="No",$U$69=0),"None",IF($Z$69="No","All",IF(AND($X$41>=$Y$41,$U$41<=$U$40,$AA$68<>"Left"),"Left","Right")))) -> None | AB69: =IF($U$69=0,0,IF($Z$69="No",0,IF($Z$69="Yes",$U$69,IF(OR($U$69=$E$22,AND($AA$69="Left",MIN($U$40:$U$41)>=$B$15,MAX($U$40:$U$41)>=$B$16)),$U$69-(ABS(($U$41-$V$69)/($M$17*$M$19))),IF($AA$69="Left",$U$69-(ABS(($B$15-$V$69)/($M$17*$M$19))),IF(MAX($U$40:$U$41)>=$B$16,$U$69-(ABS(($V$69-$B$16)/($M$17*$M$19))),ABS(($V$69-$B$15)/($M$17*$M$19)))))))) -> 0 | AI69: 24 | AJ69: 0 | AK69: None | AL69: 0 | AM69: 0 | AN69: 0 | AO69: 0 | AP69: FALSE | AQ69: 0 | AR69: 0 | AS69: 0 | AV69: 0 | AW69: 0 | AX69: 0 | AY69: 0 | AZ69: 0 | BA69: 0 | BB69: 0 | BC69: 0 | BD69: 0 | BE69: 0 | BF69: 0 | BG69: 0 | BO69: 0 | BP69: 0 | BQ69: 0
A70: Bed | B70: =IF(OR($A$6="",$F$6="",$F$25=""),0,TAN((45+($F$28/2))*PI()/180)^2) -> 0 | C70: =IF($E$61=0,0,0.5*$B$70*$E$59) -> 0 | D70: =IF($F$28="",0,IF($U$15<$AF$47,$BP$43+2,$BP$43)) -> 0 | E70: =IF($F$28="",0,TAN($F$28*PI()/180)) -> 0 | F70: =IF(OR($L$60>=0,$D$70=0),0,$I$60*$E$70*($D$70/$D$72)) -> 0 | H70: FA,H (lbf) | I70: =ABS($L$70)+ABS($M$70) -> 0 | J70: =IF(($L$70+M70)=0,"",IF(($L$70+M70)>=0,CHAR(232),CHAR(231))) ->  | L70: =$M$86 -> 0 | M70: =$M$92 -> 0 | N70: 90 | O70: 0.97 | S70: Right Stream Bed | T70: =($B$17-$B$16)/ABS($M$17)/ABS($M$19) ->  | U70: =IF(AND(MIN($U$40:$U$41)>=$B$16,MAX($U$40:$U$41)<=$B$17),$E$22,IF(AND($T$61="No",$T$62="No"),0,IF(AND($T$62="Yes",$T$61="No"),$E$22-$U$71-$U$72,IF(AND($T$62="Yes",$T$61="Yes"),$E$22-$W$61-$U$71-$U$72,$E$22-$W$61)))) -> 0 | V70: =IF($U$70=0,0,IF(OR($B$25=0,$B$25=180,$B$25=360),$U$40,$U$61+(($X$61-$C$16)/($AB$34-$AA$40)))) -> 0 | W70: =IF($U$70=0,0,IF(OR($B$25=0,$B$25=180,$B$25=360),(($U$40-$B$16)*$AB$34)+$C$16,$X$61+(($V$70-$U$61)*$AA$40))) -> 0 | X70: =IF($U$70=0,0,IF(OR($B$25=0,$B$25=180,$B$25=360),$E$22-ABS(($X$41-$W$70)/$M$20),IF(AND($U$40<=$U$41,$X$40>=$Y$40),ABS(($X$40-$W$70)/($AA$40*$M$17*$M$19)),IF(AND($U$40<=$U$41,$X$40<$Y$40),ABS($E$22-(ABS(($X$40-$W$70)/($AA$40*$M$17*$M$19)))),IF(AND($U$40>$U$41,$X$41>=$Y$41),ABS(($X$41-$W$70)/($AA$40*$M$17*$M$19)),IF(AND($U$40>=$U$41,$X$41<$Y$41),ABS($E$22-(ABS(($X$40-$W$70)/($AA$40*$M$17*$M$19)))))))))) -> 0 | Y70: =IF(AND($U$70=0,$W$70=0),"No",IF(AND($V$70<=$B$17,$V$70>=$B$16,$V$70>=MIN($U$40:$U$41),$V$70<=MAX($U$40:$U$41),$W$70<$C$17,$X$70<=$E$22),"Yes","No")) -> No | Z70: =IF($U$70=0,"No",IF($Y$70="Yes","Partial",IF(AND($U$70<$E$22,$X$41<$Y$41,$Y$67="No",$Y$68="No",$Y$69="No",$Y$70="No",$Y$71="No",$Y$72="No"),"Yes",IF(AND($Y$70="No",$X$61>$Y$61),"No","Yes")))) -> No | AA70: =IF($Z$70="Yes","None",IF(AND($Z$70="No",$U$70=0),"None",IF($Z$70="No","All",IF(AND($X$41>=$Y$41,$U$41>=$U$40,$AA$71<>"Right"),"Right","Left")))) -> None | AB70: =IF($U$70=0,0,IF($Z$70="No",0,IF($Z$70="Yes",$U$70,IF(OR($U$70=$E$22,AND($AA$70="Right",MIN($U$40:$U$41)<=$B$16,MAX($U$40:$U$41)<=$B$17)),$U$70-(ABS(($U$41-$V$70)/($M$17*$M$19))),IF($AA$70="Right",$U$70-(ABS(($B$17-$V$70)/($M$17*$M$19))),IF(MIN($U$40:$U$41)<=$B$16,$U$70-(ABS(($V$70-$B$16)/($M$17*$M$19))),ABS(($V$70-$B$17)/($M$17*$M$19)))))))) -> 0 | AI70: 25 | AJ70: 0 | AK70: None | AL70: 0 | AM70: 0 | AN70: 0 | AO70: 0 | AP70: FALSE | AQ70: 0 | AR70: 0 | AS70: 0 | AV70: 0 | AW70: 0 | AX70: 0 | AY70: 0 | AZ70: 0 | BA70: 0 | BB70: 0 | BC70: 0 | BD70: 0 | BE70: 0 | BF70: 0 | BG70: 0 | BO70: 0 | BP70: 0 | BQ70: 0
A71: Bank | B71: =IF(OR($A$6="",$F$6="",$F$25=""),0,TAN((45+($F$29/2))*PI()/180)^2) -> 0 | C71: =IF($E$61=0,0,0.5*$B$71*$E$60) -> 0 | D71: =IF($F$28="",0,$BQ$43) -> 0 | E71: =IF($F$28="",0,TAN($F$29*PI()/180)) -> 0 | F71: =IF(OR($L$60>=0,$D$71=0),0,$I$60*$E$71*($D$71/$D$72)) -> 0 | H71: S FH (lbf) | I71: =ABS($L$71) -> 0 | J71: =IF($L$71=0,"",IF($L71>=0,CHAR(232),CHAR(231))) ->  | K71: Additional resisting force (lbf) needed: | L71: =$L$66+$L$67+$L$68+$L$69+$L$70+$M$70 -> 0 | N71: 112.5 | O71: 1 | S71: Right Bank | T71: =($B$18-$B$17)/ABS($M$17)/ABS($M$19) ->  | U71: =IF(AND(MIN($U$40:$U$41)>=$B$17,MAX($U$40:$U$41)<=$B$18),$E$22,IF(AND($T$62="No",$T$63="No"),0,$E$22-$W$62-$U$72)) -> 0 | V71: =IF($U$71=0,0,IF(OR($B$25=0,$B$25=180,$B$25=360),$U$40,$U$62+(($X$62-$C$17)/($AB$35-$AA$40)))) -> 0 | W71: =IF($U$71=0,0,IF(OR($B$25=0,$B$25=180,$B$25=360),(($U$40-$B$17)*$AB$35)+$C$17,$X$62+(($V$71-$U$62)*$AA$40))) -> 0 | X71: =IF($U$71=0,0,IF(OR($B$25=0,$B$25=180,$B$25=360),$E$22-ABS(($X$41-$W$71)/$M$20),IF(AND($U$40<=$U$41,$X$40>=$Y$40),ABS(($X$40-$W$71)/($AA$40*$M$17*$M$19)),IF(AND($U$40<=$U$41,$X$40<$Y$40),ABS($E$22-(ABS(($X$40-$W$71)/($AA$40*$M$17*$M$19)))),IF(AND($U$40>$U$41,$X$41>=$Y$41),ABS(($X$41-$W$71)/($AA$40*$M$17*$M$19)),IF(AND($U$40>=$U$41,$X$41<$Y$41),ABS($E$22-(ABS(($X$40-$W$71)/($AA$40*$M$17*$M$19)))))))))) -> 0 | Y71: =IF(AND($U$71=0,$W$71=0),"No",IF(AND($V$71<=$B$18,$V$71>=$B$17,$V$71>=MIN($U$40:$U$41),$V$71<=MAX($U$40:$U$41),$W$71<$C$18,$X$71<=$E$22),"Yes","No")) -> No | Z71: =IF($U$71=0,"No",IF($Y$71="Yes","Partial",IF(AND($U$71<$E$22,$X$41<$Y$41,$Y$67="No",$Y$68="No",$Y$69="No",$Y$70="No",$Y$71="No",$Y$72="No"),"Yes",IF(AND($Y$71="No",$X$62>$Y$62),"No","Yes")))) -> No | AA71: =IF($Z$71="Yes","None",IF(AND($Z$71="No",$U$71=0),"None",IF($Z$71="No","All",IF(AND($X$41>=$Y$41,$U$41>=$U$40,$AA$72<>"Right"),"Right","Left")))) -> None | AB71: =IF($U$71=0,0,IF($Z$71="No",0,IF($Z$71="Yes",$U$71,IF(OR($U$71=$E$22,AND($AA$71="Right",MIN($U$40:$U$41)<=$B$17,MAX($U$40:$U$41)<=$B$18)),$U$71-(ABS(($U$41-$V$71)/($M$17*$M$19))),IF($AA$71="Right",$U$71-(ABS(($B$18-$V$71)/($M$17*$M$19))),IF(MIN($U$40:$U$41)<=$B$17,$U$71-(ABS(($V$71-$B$17)/($M$17*$M$19))),ABS(($V$71-$B$18)/($M$17*$M$19)))))))) -> 0 | AI71: 26 | AJ71: 0 | AK71: None | AL71: 0 | AM71: 0 | AN71: 0 | AO71: 0 | AP71: FALSE | AQ71: 0 | AR71: 0 | AS71: 0 | AV71: 0 | AW71: 0 | AX71: 0 | AY71: 0 | AZ71: 0 | BA71: 0 | BB71: 0 | BC71: 0 | BD71: 0 | BE71: 0 | BF71: 0 | BG71: 0 | BO71: 0 | BP71: 0 | BQ71: 0
A72: Total | B72: - | C72: =$C$70+$C$71 -> 0 | D72: =$D$70+$D$71 -> 0 | E72: - | F72: =$F$70+$F$71 -> 0 | H72: FSH | I72: =IF(OR($E$22="",$F$22="",$F$25="",$G$25=""),0,IF($I$66=0,0,IF($L$69>=0,($I$67+$I$68+$I$70)/($I$66+$I$69),($I$67+$I$68+$I$69+$I$70)/$I$66))) -> 0 | J72: =$I$72-$L$72 -> -2 | K72: =IF(AND($F$25="",$G$25=""),"",IF(OR($J$25=0,$I$72>=$L$72),"Structure is Horizontally Stable",IF(AND($I$72<$L$72,$L$69>=0),$L$72*($L$66+$L$69)-(-$L$67-$L$68-$L$70-$M$70),IF(AND($I$72<$L$72,$L$69<0),$L$72*($L$66)-(-$L$67-$L$68-$L$70-$M$70-$L$69),"")))) ->  | L72: ='2-Constants'!$C$6 -> 2 | N72: 135 | O72: 0.81 | S72: RB Floodplain | T72: =($B$19-$B$18)/ABS($M$17)/ABS($M$19) ->  | U72: =IF(MIN($U$40:$U$41)>=$B$18,$E$22,IF($T$63="No",0,$E$22-$W$63)) -> 0 | V72: =IF($U$72=0,0,IF(OR($B$25=0,$B$25=180,$B$25=360),$U$40,$U$63+(($X$63-$C$18)/($AB$36-$AA$40)))) -> 0 | W72: =IF($U$72=0,0,IF(OR($B$25=0,$B$25=180,$B$25=360),(($U$40-$B$18)*$AB$36)+$C$18,$X$63+(($V$72-$U$63)*$AA$40))) -> 0 | X72: =IF($U$72=0,0,IF(OR($B$25=0,$B$25=180,$B$25=360),$E$22-ABS(($X$41-$W$72)/$M$20),IF(AND($U$40<=$U$41,$X$40>=$Y$40),ABS(($X$40-$W$72)/($AA$40*$M$17*$M$19)),IF(AND($U$40<=$U$41,$X$40<$Y$40),ABS($E$22-(ABS(($X$40-$W$72)/($AA$40*$M$17*$M$19)))),IF(AND($U$40>$U$41,$X$41>=$Y$41),ABS(($X$41-$W$72)/($AA$40*$M$17*$M$19)),IF(AND($U$40>=$U$41,$X$41<$Y$41),ABS($E$22-(ABS(($X$40-$W$72)/($AA$40*$M$17*$M$19)))))))))) -> 0 | Y72: =IF(AND($U$72=0,$W$72=0),"No",IF(AND($V$72<=$B$19,$V$72>=$B$18,$V$72>=MIN($U$40:$U$41),$V$72<=MAX($U$40:$U$41),$W$72<$C$19,$X$72<=$E$22),"Yes","No")) -> No | Z72: =IF($U$72=0,"No",IF($Y$72="Yes","Partial",IF(AND($U$72<$E$22,$X$41<$Y$41,$Y$67="No",$Y$68="No",$Y$69="No",$Y$70="No",$Y$71="No",$Y$72="No"),"Yes",IF(AND($Y$72="No",$X$63>$Y$63),"No","Yes")))) -> No | AA72: =IF($Z$72="Yes","None",IF(AND($Z$72="No",$U$72=0),"None",IF($Z$72="No","All",IF(AND($X$41>=$Y$41,$U$41>=$U$40),"Right","Left")))) -> None | AB72: =IF($U$72=0,0,IF($Z$72="No",0,IF($Z$72="Yes",$U$72,IF(OR($AA$72="Right",$U$72=$E$22),$U$72-(ABS(($U$41-$V$72)/($M$17*$M$19))),$U$72-(ABS(($V$72-$B$18)/($M$17*$M$19))))))) -> 0 | AI72: 27 | AJ72: 0 | AK72: None | AL72: 0 | AM72: 0 | AN72: 0 | AO72: 0 | AP72: FALSE | AQ72: 0 | AR72: 0 | AS72: 0 | AV72: 0 | AW72: 0 | AX72: 0 | AY72: 0 | AZ72: 0 | BA72: 0 | BB72: 0 | BC72: 0 | BD72: 0 | BE72: 0 | BF72: 0 | BG72: 0 | BO72: 0 | BP72: 0 | BQ72: 0
K73: =IF($K$72<>"Structure is Horizontally Stable","",IF($K$72="Structure is Horizontally Stable",IF($L$69>=0,($I$67+$I$68+$I$70)-(($I$69+$I$66)*$L$72),($I$67+$I$68+$I$69+$I$70)-(($I$66)*$L$72)))) ->  | N73: 157.5 | O73: 0.75 | T73: L check | U73: =SUM(U67:U72) -> 0 | V73: =IF($U$53=$E$22,"OK","ERROR") -> OK | AA73: Total | AB73: =SUM(AB67:AB72) -> 0 | AI73: 28 | AJ73: 0 | AK73: None | AL73: 0 | AM73: 0 | AN73: 0 | AO73: 0 | AP73: FALSE | AQ73: 0 | AR73: 0 | AS73: 0 | AV73: 0 | AW73: 0 | AX73: 0 | AY73: 0 | AZ73: 0 | BA73: 0 | BB73: 0 | BC73: 0 | BD73: 0 | BE73: 0 | BF73: 0 | BG73: 0 | BO73: 0 | BP73: 0 | BQ73: 0
A74: Moment Force Balance | L74: =IF($D$22="Yes","Rootwad","Root Collar") -> Root Collar | N74: 180 | O74: 1.1 | AI74: 29 | AJ74: 0 | AK74: None | AL74: 0 | AM74: 0 | AN74: 0 | AO74: 0 | AP74: FALSE | AQ74: 0 | AR74: 0 | AS74: 0 | AV74: 0 | AW74: 0 | AX74: 0 | AY74: 0 | AZ74: 0 | BA74: 0 | BB74: 0 | BC74: 0 | BD74: 0 | BE74: 0 | BF74: 0 | BG74: 0 | BO74: 0 | BP74: 0 | BQ74: 0
A75: Driving Moment Centroids | D75: Resisting Moment Centroids | H75: Moment Force Balance | N75: Source: Gippel (1992) plot of drag coefficients | S75: Projected Area of Log Calculation | W75: Projected Area of Rootwad Calculation | AI75: 30 | AJ75: 0 | AK75: None | AL75: 0 | AM75: 0 | AN75: 0 | AO75: 0 | AP75: FALSE | AQ75: 0 | AR75: 0 | AS75: 0 | AV75: 0 | AW75: 0 | AX75: 0 | AY75: 0 | AZ75: 0 | BA75: 0 | BB75: 0 | BC75: 0 | BD75: 0 | BE75: 0 | BF75: 0 | BG75: 0 | BO75: 0 | BP75: 0 | BQ75: 0
A76: cT,B (ft) | B76: cL (ft) | C76: cD (ft) | D76: cT,W (ft) | E76: csoil (ft) | F76: cF&N (ft) | G76: cP (ft) | H76: Md (lbf) | I76: =IF(OR($C$19="",$E$22="",$D$22="",$F$22="",$F$25="",$G$25=""),0,IF($F$78="Stem Tip",$L$77,$L$78)) -> 0 | L76: Md | M76: Mr | P76: Centroid of Log | S76: DTS = | T76: =IF(OR($E$22="",$F$22="",$F$25="",$G$25=""),"",$F$22) ->  | U76: ft | X76: a = DRW/2 | Y76: =$H$22/2 -> 0 | Z76: ft | AA76: A = | AB76: a*b*((p/2)+arcsin(d/a)) + (b*d*(sqrt(a2-d2))/a) | AI76: 31 | AJ76: 0 | AK76: None | AL76: 0 | AM76: 0 | AN76: 0 | AO76: 0 | AP76: FALSE | AQ76: 0 | AR76: 0 | AS76: 0 | AV76: 0 | AW76: 0 | AX76: 0 | AY76: 0 | AZ76: 0 | BA76: 0 | BB76: 0 | BC76: 0 | BD76: 0 | BE76: 0 | BF76: 0 | BG76: 0 | BO76: 0 | BP76: 0 | BQ76: 0
A77: =$Q$79 -> 0 | B77: =IF($I$52=0,0,IF($T$12>=$T$11,$E$22-$BL$43,$BL$43)) -> 0 | C77: =IF($F$66=0,0,IF($T$12>=$T$11,$E$22-$BI$43,$BI$43)) -> 0 | D77: =$Q$79 -> 0 | E77: =IF($E$61=0,0,IF($T$12>=$T$11,$E$22-$BS$43,$BS$43)) -> 0 | F77: =IF($F$72=0,0,IF($T$12>=$T$11,$E$22-$BR$43,$BR$43)) -> 0 | G77: =IF($C$72=0,0,IF($T$12>=$T$11,$E$22-$BT$39,$BT$39)) -> 0 | H77: Mr (lbf) | I77: =IF(OR($C$19="",$E$22="",$D$22="",$F$22="",$F$25="",$G$25=""),0,IF($F$78="Stem Tip",$M$77,$M$78)) -> 0 | K77: Additional resisting moment force (lbf) needed: | L77: =(($I$54*$A$77)+($I$55*$B$77)+($I$66*$C$77)+(IF($L$95>0,$L$95*$D$95,0))+(IF($L$96>0,$L$96*$D$96,0))+(IF($L$97>0,$L$97*$D$97,0))+(IF($L$98>0,$L$98*$D$98,0))+(IF($M$95>0,$M$95*$D$95,0))+(IF($M$96>0,$M$96*$D$96,0))+(IF($M$97>0,$M$97*$D$97,0))+(IF($M$98>0,$M$98*$D$98,0)))*$M$19 -> 0 | M77: =(($I$56*$D$77)+(IF($L$60<0,$I$60*$F$77))+($I$57*$E$77)+($I$67*$G$77)+($I$68*$F$77)+(($D$83+$E$83)*$C$83)+($J$83*$H$83)+($J$84*$H$84)+(($I$87+$J$87)*$C$87)+(($I$88+$J$88)*$C$88)+(($I$89+$J$89)*$C$89)+(IF($L$95<=0,$G$95*$D$95,0))+(IF($L$96<=0,$G$96*$D$96,0))+(IF($L$97<=0,$G$97*$D$97,0))+(IF($L$98<=0,$G$98*$D$98,0))+(IF($M$95<=0,$I$95*$D$95,0))+(IF($M$96<=0,$I$96*$D$96,0))+(IF($M$97<=0,$I$97*$D$97,0))+(IF($M$98<=0,$I$98*$D$98,0)))*$M$19 -> 0 | N77: Stem Tip | P77: cRW | Q77: =IF(OR($D$22="",$D$22="No",$F$22=""),0,$E$22-((1/4)*$G$22*(($H$22^2)+(2*$H$22*$F$22)+(3*($F$22^2)))/(($H$22^2)+($H$22*$F$22)+($F$22^2)))) -> 0 | S77: ATSp,total = | T77: =IF($T$76="","",ABS(($U$42-$U$43)*$F$22/$M$19)) ->  | U77: ft2 | X77: b= (DRW/2)*ABS(cos(q)) | Y77: =($H$22/2)*ABS(COS($B$25*PI()/180)) -> 0 | Z77: ft | AA77: ARW,total = | AB77: =IF(OR($D$22="",$D$22="No"),0,PI()*$Y$76*$Y$77) -> 0 | AC77: ft2 | AI77: 32 | AJ77: 0 | AK77: None | AL77: 0 | AM77: 0 | AN77: 0 | AO77: 0 | AP77: FALSE | AQ77: 0 | AR77: 0 | AS77: 0 | AV77: 0 | AW77: 0 | AX77: 0 | AY77: 0 | AZ77: 0 | BA77: 0 | BB77: 0 | BC77: 0 | BD77: 0 | BE77: 0 | BF77: 0 | BG77: 0 | BO77: 0 | BP77: 0 | BQ77: 0
A78: *Distances are from the stem tip | D78: Point of Rotation: | F78: =IF(OR($F$25="",$G$25="",$D$22=""),"",IF(AND($T$11<$T$12,$AY$45>0),$L$74,IF(AND($T$11>$T$12,$AY$245>0),$L$74,IF(AND($AY$45>0,$AY$245>0),$L$74,IF(AND($AY$45=0,$AY$245=0),$L$74,"Stem Tip"))))) ->  | H78: FSM | I78: =IF(OR($E$22="",$F$22="",$F$25="",$G$25=""),0,IF(OR($A$6="",$F$25="",$G$25=""),"",$I$77/$I$76)) -> 0 | J78: =$I$78-$L$80 -> -2 | K78: =IF(AND($F$25="",$G$25=""),"",IF($I$78>=$L$80,"Structure is Stable with respect to Moment Forces",($I$76*$L$80)-$I$77)) ->  | L78: =(($I$54*($E$22-$A$77))+($I$55*($E$22-$B$77))+($I$66*($E$22-$C$77))+(IF($L$95>0,$L$95*($E$22-$D$95),0))+(IF($L$96>0,$L$96*($E$22-$D$96),0))+(IF($L$97>0,$L$97*($E$22-$D$97),0))+(IF($L$98>0,$L$98*($E$22-$D$98),0))+(IF($M$95>0,$M$95*($E$22-$D$95),0))+(IF($M$96>0,$M$96*($E$22-$D$96),0))+(IF($M$97>0,$M$97*($E$22-$D$97),0))+(IF($M$98>0,$M$98*($E$22-$D$98),0)))*$M$19 -> 0 | M78: =(($I$56*($E$22-$D$77))+(IF($L$60<0,$I$60*($E$22-$F$77)))+($I$57*($E$22-$E$77))+($I$67*($E$22-$G$77))+($I$68*($E$22-$F$77))+(($D$83+$E$83)*($E$22-$C$83))+($J$83*($E$22-$H$83))+($J$84*($E$22-$H$84))+(($I$87+$J$87)*($E$22-$C$87))+(($I$88+$J$88)*($E$22-$C$88))+(($I$89+$J$89)*($E$22-$C$89))+(IF($L$95<=0,$G$95*($E$22-$D$95),0))+(IF($L$96<=0,$G$96*($E$22-$D$96),0))+(IF($L$97<=0,$G$97*($E$22-$D$97),0))+(IF($L$98<=0,$G$98*($E$22-$D$98),0))+(IF($M$95<=0,$I$95*($E$22-$D$95),0))+(IF($M$96<=0,$I$96*($E$22-$D$96),0))+(IF($M$97<=0,$I$97*($E$22-$D$97),0))+(IF($M$98<=0,$I$98*($E$22-$D$98),0)))*$M$19 -> 0 | N78: Root Collar or RW | P78: cTS | Q78: =(($E$22-$G$22)/2) -> 0 | S78: ATSp,dry = | T78: =IF($T$86="","",IF($T$86="Submerged",0,IF($T$88="Dry",$T$77,IF(AND($AC$86="Dry",$T$86="Partial"),ABS(($U$43-$W$87)*$F$22/$M$19),IF(AND($AC$86="Partial",$AC$87="Partial"),(ABS($U$39-$U$38))*(($AF$86+$AF$87)/2),IF($AC$86="Partial",(ABS($U$39-$W$86))*$AF$86/2,(($U$41-$W$88)*$F$22)+(ABS($W$88-$U$40))*($AF$87+$F$22)/2)))))) ->  | U78: ft2 | X78: d1 = (DRW/2) - (yRW,crown-WSE) | Y78: =IF(OR($D$22="",$F$22=""),"",IF($AE$8>=$U$10,$Y$76,$Y$76-($U$10-$AE$8))) ->  | Z78: ft | AA78: ARW,↑WSE = | AB78: =IF($D$22="No",0,IF($U$15>$AE$8,$AB$77,IF($U$10<$AE$8,0,IF($D$22="",0,$AB$77-(($Y$76*$Y$77*((PI()/2)+ASIN($Y$78/$Y$76)))+($Y$77*$Y$78*(SQRT(($Y$76^2)-($Y$78^2))/$Y$76))))))) -> 0 | AC78: ft2 | AI78: 33 | AJ78: 0 | AK78: None | AL78: =$AL$45+ABS(AJ78*$M$19*$M$17) -> 0 | AM78: 0 | AN78: =$AN$45+ABS(AJ78*$M$19*$M$17) -> 0 | AO78: 0 | AP78: FALSE | AQ78: 0 | AR78: 0 | AS78: 0 | AV78: 0 | AW78: 0 | AX78: 0 | AY78: 0 | AZ78: 0 | BA78: 0 | BB78: 0 | BC78: 0 | BD78: 0 | BE78: 0 | BF78: 0 | BG78: 0 | BO78: 0 | BP78: 0 | BQ78: 0
L79: Formatting | P79: cT | Q79: =IF(OR($D$22="",$D$22="No",$F$22=""),$Q$78,((((($B$53+$B$52)*$I$22)+($B$54*$J$22))*$Q$78)+(((($C$53+$C$52)*$I$22)+($C$54*$J$22))*$Q$77))/$E$55) -> 0 | S79: ATSp,em = | T79: =$BE$43 -> 0 | U79: ft2 | X79: d2 = (DRW/2) - (ythalweg-yRW,bot) | Y79: =IF(OR($D$22="",$F$22=""),"",IF($U$15>=$C$16,$Y$76,$Y$76-($C$16-$U$15))) ->  | Z79: ft | AA79: ARW,↓bed = | AB79: =IF($D$22="No",0,IF($U$10<$C$16,$AB$77,IF($U$15>$C$16,0,IF($D$22="",0,$AB$77-(($Y$76*$Y$77*((PI()/2)+ASIN($Y$79/$Y$76)))+($Y$77*$Y$79*(SQRT(($Y$76^2)-($Y$79^2))/$Y$76))))))) -> 0 | AC79: ft2 | AI79: 34 | AJ79: 0 | AK79: None | AL79: 0 | AM79: 0 | AN79: 0 | AO79: 0 | AP79: FALSE | AQ79: 0 | AR79: 0 | AS79: 0 | AV79: 0 | AW79: 0 | AX79: 0 | AY79: 0 | AZ79: 0 | BA79: 0 | BB79: 0 | BC79: 0 | BD79: 0 | BE79: 0 | BF79: 0 | BG79: 0 | BO79: 0 | BP79: 0 | BQ79: 0
A80: Anchor Forces | L80: ='2-Constants'!$C$7 -> 2 | S80: (-) ATSp,dry,em = | T80: =-$BG$43 -> 0 | U80: ft3 | AA80: ARWp = | AB80: =IF($D$22="",0,$AB$77-$AB$78-$AB$79) -> 0 | AC80: ft2 | AI80: 35 | AJ80: 0 | AK80: None | AL80: 0 | AM80: 0 | AN80: 0 | AO80: 0 | AP80: FALSE | AQ80: 0 | AR80: 0 | AS80: 0 | AV80: 0 | AW80: 0 | AX80: 0 | AY80: 0 | AZ80: 0 | BA80: 0 | BB80: 0 | BC80: 0 | BD80: 0 | BE80: 0 | BF80: 0 | BG80: 0 | BO80: 0 | BP80: 0 | BQ80: 0
A81: Additional Soil Ballast | H81: Mechanical Anchors | K81: =IF(OR($H$83<>"",$H$84<>"",$C$87<>"",$C$88<>"",$C$89<>""),"CHECK--Verify anchors are correctly located on X-Sect (above)","") ->  | L81: Formatting | P81: Buried anchors | Q81: Number | S81: ATSp,wet = | T81: =IF($D$22="","",IF($T$88="Dry",0,$T$77-$T$78-$T$79-$T$80)) ->  | U81: ft2 | AI81: 36 | AJ81: 0 | AK81: None | AL81: 0 | AM81: 0 | AN81: 0 | AO81: 0 | AP81: FALSE | AQ81: 0 | AR81: 0 | AS81: 0 | AV81: 0 | AW81: 0 | AX81: 0 | AY81: 0 | AZ81: 0 | BA81: 0 | BB81: 0 | BC81: 0 | BD81: 0 | BE81: 0 | BF81: 0 | BG81: 0 | BO81: 0 | BP81: 0 | BQ81: 0
A82: VAdry (ft3) | B82: VAwet (ft3) | C82: cAsoil (ft) | D82: FA,Vsoil (lbf) | E82: FA,HP (lbf) | G82: Type | H82: cAm (ft) | I82: Soils | J82: FAm (lbf) | K82: Quick Design Reference: | L82: =IF($D$83="",0,-$D$83) -> 0 | M82: =IF($E$83="",0,-$E$83) -> 0 | O82: Total (lbf) | P82: =$J$83+$J$84+(IF($A$87="Deadman",$F$87-$G$87,0))+(IF($A$88="Deadman",$F$88-$G$88,0))+(IF($A$89="Deadman",$F$89-$G$89,0)) -> 0 | Q82: =(IF($J$83>0,1,0))+(IF($J$84>0,1,0))+(IF(AND($I$87>0,$A$87="Deadman"),1,0))+(IF(AND($I$88>0,$A$88="Deadman"),1,0))+(IF(AND($I$89>0,$A$89="Deadman"),1,0)) -> 0 | AI82: 37 | AJ82: 0 | AK82: None | AL82: 0 | AM82: 0 | AN82: 0 | AO82: 0 | AP82: FALSE | AQ82: 0 | AR82: 0 | AS82: 0 | AV82: 0 | AW82: 0 | AX82: 0 | AY82: 0 | AZ82: 0 | BA82: 0 | BB82: 0 | BC82: 0 | BD82: 0 | BE82: 0 | BF82: 0 | BG82: 0 | BO82: 0 | BP82: 0 | BQ82: 0
D83: =IF(AND($A$83="",$B$83=""),0,($A$83*$D$28)+($B$83*$E$28)) -> 0 | E83: =IF($D$83=0,0,0.5*$B$71*$D$83) -> 0 | I83: =$W$100 ->  | J83: =IF(OR($G83="",$H83=""),0,IF(AND($W100="Bed",$G$28=4),HLOOKUP($G$83,AnchorRatings,3,0),IF(AND($W100="Bed",$G$28=5),HLOOKUP($G$83,AnchorRatings,4,0),IF(AND($W100="Bed",$G$28=6),HLOOKUP($G$83,AnchorRatings,5,0),IF(AND($W100="Bed",$G$28=7),HLOOKUP($G$83,AnchorRatings,6,0),IF(AND($W100="Bank",$G$29=4),HLOOKUP($G$83,AnchorRatings,3,0),IF(AND($W100="Bank",$G$29=5),HLOOKUP($G$83,AnchorRatings,4,0),IF(AND($W100="Bank",$G$29=6),HLOOKUP($G$83,AnchorRatings,5,0),IF(AND($W100="Bank",$G$29=7),HLOOKUP($G$83,AnchorRatings,6,0)))))))))) -> 0 | K83: =$I$61 -> 0 | L83: 0 | M83: =(IF($A87="Behind",-$J87,0)) -> 0 | O83: Required Vertical Resistance (lbf) | P83: =($L$54+$L$55+(IF($L$58>0,$L$58,0)))*$L$61 -> 0 | AI83: 38 | AJ83: 0 | AK83: None | AL83: 0 | AM83: 0 | AN83: 0 | AO83: 0 | AP83: FALSE | AQ83: 0 | AR83: 0 | AS83: 0 | AV83: 0 | AW83: 0 | AX83: 0 | AY83: 0 | AZ83: 0 | BA83: 0 | BB83: 0 | BC83: 0 | BD83: 0 | BE83: 0 | BF83: 0 | BG83: 0 | BO83: 0 | BP83: 0 | BQ83: 0
I84: =$W$101 ->  | J84: =IF(OR($G84="",$H84=""),0,IF(AND($W101="Bed",$G$28=4),HLOOKUP($G$84,AnchorRatings,3,0),IF(AND($W101="Bed",$G$28=5),HLOOKUP($G$84,AnchorRatings,4,0),IF(AND($W101="Bed",$G$28=6),HLOOKUP($G$84,AnchorRatings,5,0),IF(AND($W101="Bed",$G$28=7),HLOOKUP($G$84,AnchorRatings,6,0),IF(AND($W101="Bank",$G$29=4),HLOOKUP($G$84,AnchorRatings,3,0),IF(AND($W101="Bank",$G$29=5),HLOOKUP($G$84,AnchorRatings,4,0),IF(AND($W101="Bank",$G$29=6),HLOOKUP($G$84,AnchorRatings,5,0),IF(AND($W101="Bank",$G$29=7),HLOOKUP($G$84,AnchorRatings,6,0)))))))))) -> 0 | K84: ='2-Constants'!$C$5 -> 1.5 | L84: 0 | M84: =(IF($A88="Behind",-$J88,0)) -> 0 | O84: Actual Vertical Resistance (lbf) | P84: =ABS($L$56+$L$57+(IF($L$58<0,$L$58,0))+$L$59) -> 0 | S84: Log Position | T84: Water and Log Intercept | Y84: Soil | Z84: LW Buried at Intercept? | AB84: Log Position | AC84: Water and Log Intercept at Face | AI84: 39 | AJ84: 0 | AK84: None | AL84: 0 | AM84: 0 | AN84: 0 | AO84: 0 | AP84: FALSE | AQ84: 0 | AR84: 0 | AS84: 0 | AV84: 0 | AW84: 0 | AX84: 0 | AY84: 0 | AZ84: 0 | BA84: 0 | BB84: 0 | BC84: 0 | BD84: 0 | BE84: 0 | BF84: 0 | BG84: 0 | BO84: 0 | BP84: 0 | BQ84: 0
A85: Boulder Ballast | L85: 0 | M85: =(IF($A89="Behind",-$J89,0)) -> 0 | O85: Extra Needed Vertical Resistance (lbf) | P85: =$P$83-$P$84 -> 0 | T85: Condition | U85: Intercept Zone | W85: xTS (ft) | X85: yTS (ft) | Y85: ysoil (ft) | AC85: Condition | AD85: xTS (ft) | AE85: yTS (ft) | AF85: hTS,dry (ft) | AI85: 40 | AJ85: 0 | AK85: None | AL85: 0 | AM85: 0 | AN85: 0 | AO85: 0 | AP85: FALSE | AQ85: 0 | AR85: 0 | AS85: 0 | AV85: 0 | AW85: 0 | AX85: 0 | AY85: 0 | AZ85: 0 | BA85: 0 | BB85: 0 | BC85: 0 | BD85: 0 | BE85: 0 | BF85: 0 | BG85: 0 | BO85: 0 | BP85: 0 | BQ85: 0
A86: Position | B86: Dr (ft) | C86: cAr (ft) | D86: Vr,dry (ft3) | E86: Vr,wet (ft3) | F86: Wr (lbf) | G86: FL,r (lbf) | H86: FD,r (lbf) | I86: FA,Vr (lbf) | J86: FA,Hr (lbf) | K86: =$I$72 -> 0 | L86: =$L$82+$L$83+$L$84+$L$85 -> 0 | M86: =$M$82+$M$83+$M$84+$M$85 -> 0 | O86: Required Horizontal Resistance (lbf) | P86: =($L$66+(IF($L$69>0,$L$69,0)))*$L$72 -> 0 | S86: Crown | T86: =IF(OR($E$22="",$F$22="",$F$25="",$G$25=""),"",IF($X$39<=$AE$12,"Submerged",IF($X$38>$AE$12,"Dry","Partial"))) ->  | U86: =IF($X$86="","None",IF($W$86<$B$14,"Left Floodplain",IF($W$86<$B$15,"Left Bank",IF($W$86<$B$16,"Left Stream Bed",IF($W$86<$B$17,"Right Stream Bed",IF($W$86<$B$18,"Right Bank","Right Floodplain")))))) -> None | V86: =IF($U$47=0,0,IF(OR($B$25=0,$B$25=180,$B$25=360),$E$22-ABS(($X$39-$W$47)/$M$20),IF(AND($U$38<=$U$39,$X$38>=$Y$38),ABS(($X$38-$W$47)/($AA$40*$M$17*$M$19)),IF(AND($U$38<=$U$39,$X$38<$Y$38),ABS($E$22-(ABS(($X$38-$W$47)/($AA$40*$M$17*$M$19)))),IF(AND($U$38>$U$39,$X$39>=$Y$39),ABS(($X$39-$W$47)/($AA$40*$M$17*$M$19)),IF(AND($U$38>=$U$39,$X$39<$Y$39),ABS($E$22-(ABS(($X$38-$W$47)/($AA$40*$M$17*$M$19)))))))))) -> 0 | W86: =IF($X$86="","",$U$39-(($X$39-$AE$8)/$AA$40)) ->  | X86: =IF($T$86="Partial",$AE$12,"") ->  | Y86: =IF($X$86="","",IF($W$86<$B$14,(($W$86-$B$13)*$AB$31)+$C$13,IF($W$86<$B$15,(($W$86-$B$14)*$AB$32)+$C$14,IF($W$86<$B$16,(($W$86-$B$15)*$AB$33)+$C$15,IF($W$86<$B$17,(($W$86-$B$16)*$AB$34)+$C$16,IF($W$86<$B$18,(($W$86-$B$17)*$AB$35)+$C$17,IF($W$86<$B$19,(($W$86-$B$18)*$AB$36)+$C$18))))))) ->  | Z86: =IF($X$86="","",IF($X$86<=$Y$86,"Yes","No")) ->  | AB86: Upper Face | AC86: =IF($T$86="","",IF($X$41>$AE$8,"Dry",IF($T$86="Submerged","Submerged","Partial"))) ->  | AD86: =IF($AE$86="","",$U$39-(($X$39-$AE$8)/$AB$40)) ->  | AE86: =IF($AC$86="Partial",$AE$12,"") ->  | AF86: =IF($AC$86="Submerged",0,IF($AC$86="Dry",$F$22,($X$39-$AE$8)/$M$19)) ->  | AI86: 41 | AJ86: 0 | AK86: None | AL86: 0 | AM86: 0 | AN86: 0 | AO86: 0 | AP86: FALSE | AQ86: 0 | AR86: 0 | AS86: 0 | AV86: 0 | AW86: 0 | AX86: 0 | AY86: 0 | AZ86: 0 | BA86: 0 | BB86: 0 | BC86: 0 | BD86: 0 | BE86: 0 | BF86: 0 | BG86: 0 | BO86: 0 | BP86: 0 | BQ86: 0
D87: =IF(OR($B87="",$C87=""),"",(PI()*($B87^3)/6)-$E87) ->  | E87: =IF($B87="","",$U94) ->  | F87: =IF(OR($B87="",$C87=""),"",($D87*DUWRock)+($E87*(DUWRock-SWWater))) ->  | G87: =IF(OR($B87="",$C87=""),"",$Q99) ->  | H87: =IF(OR($B87="",$C87=""),"",$P99) ->  | I87: =IF(OR($B87="",$C87=""),0,IF($A87="Behind",0,IF(AND($A87="Deadman",$P$85<=0),0,IF(AND($A87="Deadman",$P$82>=$P$85),($F87-$G87)*($P$85/$P$82),$F87-$G87)))) -> 0 | J87: =IF(OR($B87="",$C87=""),0,IF($A87="Above",0,IF($A87="Deadman",($F87-$G87)-$I87,IF(AND($A87="Behind",OR($W94="Left Stream Bed",$W94="Right Stream Bed")),(($F87-$G87)*$E$70)-$H87,(($F87-$G87)*$E$71)-$H87)))) -> 0 | K87: ='2-Constants'!$C$6 -> 2 | L87: =IF($J83=0,0,IF($P$85<=0,0,IF($P$82>=$P$85,-J$83*($P$85/$P$82),-$J83))) -> 0 | M87: =-($J83+$L87) -> 0 | O87: Actual Horizontal Resistance (lbf) | P87: =ABS($L$67+$L$68+(IF($L$69<0,$L$69,0))+$L$70) -> 0 | S87: Centerline | T87: =IF(OR($E$22="",$F$22="",$F$25="",$G$25=""),"",IF($X$43<=$AE$12,"Submerged",IF($X$42>=$AE$12,"Dry","Partial"))) ->  | U87: =IF($X$87="","None",IF($W$87<$B$14,"Left Floodplain",IF($W$87<$B$15,"Left Bank",IF($W$87<$B$16,"Left Stream Bed",IF($W$87<$B$17,"Right Stream Bed",IF($W$87<$B$18,"Right Bank","Right Floodplain")))))) -> None | V87: =IF($U$47=0,0,IF(OR($B$25=0,$B$25=180,$B$25=360),$E$22-ABS(($X$39-$W$47)/$M$20),IF(AND($U$38<=$U$39,$X$38>=$Y$38),ABS(($X$38-$W$47)/($AA$40*$M$17*$M$19)),IF(AND($U$38<=$U$39,$X$38<$Y$38),ABS($E$22-(ABS(($X$38-$W$47)/($AA$40*$M$17*$M$19)))),IF(AND($U$38>$U$39,$X$39>=$Y$39),ABS(($X$39-$W$47)/($AA$40*$M$17*$M$19)),IF(AND($U$38>=$U$39,$X$39<$Y$39),ABS($E$22-(ABS(($X$38-$W$47)/($AA$40*$M$17*$M$19)))))))))) -> 0 | W87: =IF($X$87="","",$U$43-(($X$43-$AE$8)/$AA$40)) ->  | X87: =IF($T$87="Partial",$AE$12,"") ->  | Y87: =IF($X$87="","",IF($W$87<$B$14,(($W$87-$B$13)*$AB$31)+$C$13,IF($W$87<$B$15,(($W$87-$B$14)*$AB$32)+$C$14,IF($W$87<$B$16,(($W$87-$B$15)*$AB$33)+$C$15,IF($W$87<$B$17,(($W$87-$B$16)*$AB$34)+$C$16,IF($W$87<$B$18,(($W$87-$B$17)*$AB$35)+$C$17,IF($W$87<$B$19,(($W$87-$B$18)*$AB$36)+$C$18))))))) ->  | Z87: =IF($X$87="","",IF($X$87<=$Y$87,"Yes","No")) ->  | AB87: Lower Face | AC87: =IF($T$88="","",IF($X$40>=$AE$8,"Dry",IF($X$38<=$AE$8,"Submerged","Partial"))) ->  | AD87: =IF($AE$87="","",$U$38-(($X$38-$AE$8)/$AB$40)) ->  | AE87: =IF($AC$87="Partial",$AE$12,"") ->  | AF87: =IF($AC$87="Submerged",0,IF($AC$87="Dry",$F$22,($X$38-$AE$8)/$M$19)) ->  | AI87: 42 | AJ87: 0 | AK87: None | AL87: 0 | AM87: 0 | AN87: 0 | AO87: 0 | AP87: FALSE | AQ87: 0 | AR87: 0 | AS87: 0 | AV87: 0 | AW87: 0 | AX87: 0 | AY87: 0 | AZ87: 0 | BA87: 0 | BB87: 0 | BC87: 0 | BD87: 0 | BE87: 0 | BF87: 0 | BG87: 0 | BO87: 0 | BP87: 0 | BQ87: 0
D88: =IF(OR($B88="",$C88=""),"",(PI()*($B88^3)/6)-$E88) ->  | E88: =IF($B88="","",$U95) ->  | F88: =IF(OR($B88="",$C88=""),"",($D88*DUWRock)+($E88*(DUWRock-SWWater))) ->  | G88: =IF(OR($B88="",$C88=""),"",$Q100) ->  | H88: =IF(OR($B88="",$C88=""),"",$P100) ->  | I88: =IF(OR($B88="",$C88=""),0,IF($A88="Behind",0,IF(AND($A88="Deadman",$P$85<=0),0,IF(AND($A88="Deadman",$P$82>=$P$85),($F88-$G88)*($P$85/$P$82),$F88-$G88)))) -> 0 | J88: =IF(OR($B88="",$C88=""),0,IF($A88="Above",0,IF($A88="Deadman",($F88-$G88)-$I88,IF(AND($A88="Behind",OR($W95="Left Stream Bed",$W95="Right Stream Bed")),(($F88-$G88)*$E$70)-$H88,(($F88-$G88)*$E$71)-$H88)))) -> 0 | L88: =IF($J84=0,0,IF($P$85<=0,0,IF($P$82>=$P$85,-J$84*($P$85/$P$82),-$J84))) -> 0 | M88: =-($J84+$L88) -> 0 | O88: Extra needed Horizontal Resistance (lbf) | P88: =$P$86-$P$87 -> 0 | S88: Bottom | T88: =IF(OR($E$22="",$F$22="",$F$25="",$G$25=""),"",IF($X$41<=$AE$12,"Submerged",IF($X$40>=$AE$12,"Dry","Partial"))) ->  | U88: =IF($X$88="","None",IF($W$88<$B$14,"Left Floodplain",IF($W$88<$B$15,"Left Bank",IF($W$88<$B$16,"Left Stream Bed",IF($W$88<$B$17,"Right Stream Bed",IF($W$88<$B$18,"Right Bank","Right Floodplain")))))) -> None | V88: =IF($U$47=0,0,IF(OR($B$25=0,$B$25=180,$B$25=360),$E$22-ABS(($X$39-$W$47)/$M$20),IF(AND($U$38<=$U$39,$X$38>=$Y$38),ABS(($X$38-$W$47)/($AA$40*$M$17*$M$19)),IF(AND($U$38<=$U$39,$X$38<$Y$38),ABS($E$22-(ABS(($X$38-$W$47)/($AA$40*$M$17*$M$19)))),IF(AND($U$38>$U$39,$X$39>=$Y$39),ABS(($X$39-$W$47)/($AA$40*$M$17*$M$19)),IF(AND($U$38>=$U$39,$X$39<$Y$39),ABS($E$22-(ABS(($X$38-$W$47)/($AA$40*$M$17*$M$19)))))))))) -> 0 | W88: =IF($X$88="","",$U$41-(($X$41-$AE$8)/$AA$40)) ->  | X88: =IF($T$88="Partial",$AE$12,"") ->  | Y88: =IF($X$88="","",IF($W$88<$B$14,(($W$88-$B$13)*$AB$31)+$C$13,IF($W$88<$B$15,(($W$88-$B$14)*$AB$32)+$C$14,IF($W$88<$B$16,(($W$88-$B$15)*$AB$33)+$C$15,IF($W$88<$B$17,(($W$88-$B$16)*$AB$34)+$C$16,IF($W$88<$B$18,(($W$88-$B$17)*$AB$35)+$C$17,IF($W$88<$B$19,(($W$88-$B$18)*$AB$36)+$C$18))))))) ->  | Z88: =IF($X$88="","",IF($X$88<=$Y$88,"Yes","No")) ->  | AI88: 43 | AJ88: 0 | AK88: None | AL88: 0 | AM88: 0 | AN88: 0 | AO88: 0 | AP88: FALSE | AQ88: 0 | AR88: 0 | AS88: 0 | AV88: 0 | AW88: 0 | AX88: 0 | AY88: 0 | AZ88: 0 | BA88: 0 | BB88: 0 | BC88: 0 | BD88: 0 | BE88: 0 | BF88: 0 | BG88: 0 | BO88: 0 | BP88: 0 | BQ88: 0
D89: =IF(OR($B89="",$C89=""),"",(PI()*($B89^3)/6)-$E89) ->  | E89: =IF($B89="","",$U96) ->  | F89: =IF(OR($B89="",$C89=""),"",($D89*DUWRock)+($E89*(DUWRock-SWWater))) ->  | G89: =IF(OR($B89="",$C89=""),"",$Q101) ->  | I89: =IF(OR($B89="",$C89=""),0,IF($A89="Behind",0,IF(AND($A89="Deadman",$P$85<=0),0,IF(AND($A89="Deadman",$P$82>=$P$85),($F89-$G89)*($P$85/$P$82),$F89-$G89)))) -> 0 | J89: =IF(OR($B89="",$C89=""),0,IF($A89="Above",0,IF($A89="Deadman",($F89-$G89)-$I89,IF(AND($A89="Behind",OR($W96="Left Stream Bed",$W96="Right Stream Bed")),(($F89-$G89)*$E$70)-$H89,(($F89-$G89)*$E$71)-$H89)))) -> 0 | K89: =I78 -> 0 | L89: =-$I87 -> 0 | M89: =IF($A87="Deadman",-$J87,0) -> 0 | AI89: 44 | AJ89: 0 | AK89: None | AL89: 0 | AM89: 0 | AN89: 0 | AO89: 0 | AP89: FALSE | AQ89: 0 | AR89: 0 | AS89: 0 | AV89: 0 | AW89: 0 | AX89: 0 | AY89: 0 | AZ89: 0 | BA89: 0 | BB89: 0 | BC89: 0 | BD89: 0 | BE89: 0 | BF89: 0 | BG89: 0 | BO89: 0 | BP89: 0 | BQ89: 0
K90: ='2-Constants'!$C$7 -> 2 | L90: =-$I88 -> 0 | M90: =IF($A88="Deadman",-$J88,0) -> 0 | AI90: 45 | AJ90: 0 | AK90: None | AL90: 0 | AM90: 0 | AN90: 0 | AO90: 0 | AP90: FALSE | AQ90: 0 | AR90: 0 | AS90: 0 | AV90: 0 | AW90: 0 | AX90: 0 | AY90: 0 | AZ90: 0 | BA90: 0 | BB90: 0 | BC90: 0 | BD90: 0 | BE90: 0 | BF90: 0 | BG90: 0 | BO90: 0 | BP90: 0 | BQ90: 0
A91: =IF($A$6="","",$A$6) ->  | B91: =IF($A$6="","",$B$6) ->  | D91: =IF(OR($B$9="N/A",$B$9=""),"",$B$9) ->  | E91: =IF($D$48="","","Log ID") ->  | F91: =IF($D$48="","",$C$9) ->  | J91: Page 3 | L91: =-$I89 -> 0 | M91: =IF($A89="Deadman",-$J89,0) -> 0 | U91: A = [(R - ddry)*SQRT(2Rddry - ddry2)] - R2 arccos [(R - ddry)/R] | AB91: Boulder #1 | AD91: Boulder #2 | AF91: Boulder #3 | AI91: 46 | AJ91: 0 | AK91: None | AL91: 0 | AM91: 0 | AN91: 0 | AO91: 0 | AP91: FALSE | AQ91: 0 | AR91: 0 | AS91: 0 | AV91: 0 | AW91: 0 | AX91: 0 | AY91: 0 | AZ91: 0 | BA91: 0 | BB91: 0 | BC91: 0 | BD91: 0 | BE91: 0 | BF91: 0 | BG91: 0 | BO91: 0 | BP91: 0 | BQ91: 0
A92: Interaction Forces with Adjacent Logs | L92: =$L$87+$L$88+$L$89+$L$90+$L$91 -> 0 | M92: =$M$87+$M$88+$M$89+$M$90+$M$91 -> 0 | N92: ←Flex anchors | O92: Ballast Boulder Calculations | AB92: xTS (ft) | AC92: yTS (ft) | AD92: xTS (ft) | AE92: yTS (ft) | AF92: xTS (ft) | AG92: yTS (ft) | AI92: 47 | AJ92: 0 | AK92: None | AL92: 0 | AM92: 0 | AN92: 0 | AO92: 0 | AP92: FALSE | AQ92: 0 | AR92: 0 | AS92: 0 | AV92: 0 | AW92: 0 | AX92: 0 | AY92: 0 | AZ92: 0 | BA92: 0 | BB92: 0 | BC92: 0 | BD92: 0 | BE92: 0 | BF92: 0 | BG92: 0 | BO92: 0 | BP92: 0 | BQ92: 0
G93: Applied Forces from other Logs | K93: =IF(OR($B$95<>"",$B$96<>"",$B$97<>"",$B$98<>""),"NOTE -- The page is not formatted to print the Interaction Forces","") ->  | P93: xr,bot (ft) | Q93: yr,bot (ft) | R93: yTS,bot (ft) | S93: ysoil (ft) | T93: dr,dry (ft) | U93: Vr,wet (ft3) | V93: Ar↑WSE (ft2) | W93: Zone | X93: dr↓Thw (ft) | Y93: Ar↓Thw (ft2) | Z93: APr (ft2) | AA93: Point 1 | AB93: =IF($P$94="",0,$P$94) -> 0 | AC93: =IF($Q$94="",$C$13,$Q$94) -> 0 | AD93: =IF($P$95="",0,$P$95) -> 0 | AE93: =IF($Q$95="",$C$13,$Q$95) -> 0 | AF93: =IF($P$96="",0,$P$96) -> 0 | AG93: =IF($Q$96="",$C$13,$Q$96) -> 0 | AI93: 48 | AJ93: 0 | AK93: None | AL93: 0 | AM93: 0 | AN93: 0 | AO93: 0 | AP93: FALSE | AQ93: 0 | AR93: 0 | AS93: 0 | AV93: 0 | AW93: 0 | AX93: 0 | AY93: 0 | AZ93: 0 | BA93: 0 | BB93: 0 | BC93: 0 | BD93: 0 | BE93: 0 | BF93: 0 | BG93: 0 | BO93: 0 | BP93: 0 | BQ93: 0
A94: Log ID | B94: Position | C94: Link | D94: cWI (ft) | E94: FW,V (lbf) | F94: FW,H (lbf) | G94: FW,V (lbf) | I94: FW,H (lbf) | L94: Formatting | O94: Boulder 1 | P94: =IF(OR($F$25="",$C87=""),"",$AE$49-(($C87*$M$19)*$M$17)) ->  | Q94: =IF(OR($G$25="",$C87=""),"",IF($A87="Behind",MIN($R94,$S94),IF($A87="Deadman",(MIN($R94,$S94))-($F$22+1),$R94+$F$22))) ->  | R94: =IF($P94="","",($AF$49+(($P94-$AE$49)*$AA$40))-($F$22/2)) ->  | S94: =IF($P94="","",IF($P94<$B$14,(($P94-$B$13)*$AB$31)+$C$13,IF($P94<$B$15,(($P94-$B$14)*$AB$32)+$C$14,IF($P94<$B$16,(($P94-$B$15)*$AB$33)+$C$15,IF($P94<$B$17,(($P94-$B$16)*$AB$34)+$C$16,IF($P94<$B$18,(($P94-$B$17)*$AB$35)+$C$17,IF($P94<$B$19,(($P94-$B$18)*$AB$36)+$C$18))))))) ->  | T94: =IF($Q94="","",IF(($Q94+$B87-$AE$8)>=$B87,$B87,IF(($Q94+$B87)>$AE$8,($Q94+$B87)-$AE$8,0))) ->  | U94: =IF($T94="","",IF($T94>=$B87,0,(PI()/3)*(($B87-$T94)^2)*((1.5*$B87)-($B87-$T94)))) ->  | V94: =IF($C87="","",IF($A87="Deadman",0,IF($Q94>=$AE$8,PI()*(($B87/2)^2),((($B87/2)^2)*ACOS((($B87/2)-$T94)/($B87/2)))-((($B87/2)-$T94)*SQRT(2*($B87/2)*$T94-($T94^2)))))) ->  | W94: =IF($P94="","",IF(OR($C$19="",$F$25="",$G$25=""),"None",IF($P94<$B$14,"Left Floodplain",IF($P94<$B$15,"Left Bank",IF($P94<$B$16,"Left Stream Bed",IF($P94<$B$17,"Right Stream Bed",IF($P94<$B$18,"Right Bank","Right Floodplain"))))))) ->  | X94: =IF($Q94="","",IF(($Q94+$B87)<=$S94,$B87,IF($Q94>=$S94,0,$S94-$Q94))) ->  | Y94: =IF($C87="","",IF($A87="Deadman",PI()*(($B87/2)^2),IF($Q94>$S94,0,((($B87/2)^2)*ACOS((($B87/2)-$X94)/($B87/2)))-((($B87/2)-$X94)*SQRT(2*($B87/2)*$X94-($X94^2)))))) ->  | Z94: =IF($C87="","",IF(((PI()*(($B87/2)^2))-$V94-$Y94)<0,0,(PI()*(($B87/2)^2))-$V94-$Y94)) ->  | AA94: Point 2 | AB94: =IF($AB$93="",0,$AB$93-($B$87/4)) -> 0 | AC94: =IF($AC$93="",$C$13,$AC$93+($B$87/25)) -> 0 | AD94: =IF($AD$93="",0,$AD$93-($B$88/4)) -> 0 | AE94: =IF($AE$93="",$C$13,$AE$93+($B$88/25)) -> 0 | AF94: =IF($AF$93="",0,$AF$93-($B$89/4)) -> 0 | AG94: =IF($AG$93="",$C$13,$AG$93+($B$89/25)) -> 0 | AI94: 49 | AJ94: 0 | AK94: None | AL94: 0 | AM94: 0 | AN94: 0 | AO94: 0 | AP94: FALSE | AQ94: 0 | AR94: 0 | AS94: 0 | AV94: 0 | AW94: 0 | AX94: 0 | AY94: 0 | AZ94: 0 | BA94: 0 | BB94: 0 | BC94: 0 | BD94: 0 | BE94: 0 | BF94: 0 | BG94: 0 | BO94: 0 | BP94: 0 | BQ94: 0
G95: =IF(OR($E$95="",$E$95=0),0,IF($C$95="Pinned",ABS($E$95),IF(AND($C$95="Gravity",$B$95="Below",$E$95>=0),ABS($E$95),IF(AND($C$95="Gravity",$B$95="Above",$E$95<=0),ABS($E$95),0)))) -> 0 | H95: =IF($L$95=0,"",IF($L$95>0,CHAR(233),CHAR(234))) ->  | I95: =IF(OR($F$95="",$F$95=0),0,IF($C$95="Pinned",ABS($F$95),IF(AND($C$95="Gravity",$B$95="Behind",$F$95<0),ABS($F$95),IF(AND($C$95="Gravity",$B$95="In front",$F$95>0),ABS($F$95),0)))) -> 0 | J95: =IF($M$95=0,"",IF($M$95>=0,CHAR(232),CHAR(231))) ->  | L95: =IF($G$95=0,0,$E$95) -> 0 | M95: =IF($I$95=0,0,$F$95) -> 0 | O95: Boulder 2 | P95: =IF(OR($F$25="",$C88=""),"",$AE$49-(($C88*$M$19)*$M$17)) ->  | Q95: =IF(OR($G$25="",$C88=""),"",IF($A88="Behind",MIN($R95,$S95),IF($A88="Deadman",(MIN($R95,$S95))-($F$22+1),$R95+$F$22))) ->  | R95: =IF($P95="","",($AF$49+(($P95-$AE$49)*$AA$40))-($F$22/2)) ->  | S95: =IF($P95="","",IF($P95<$B$14,(($P95-$B$13)*$AB$31)+$C$13,IF($P95<$B$15,(($P95-$B$14)*$AB$32)+$C$14,IF($P95<$B$16,(($P95-$B$15)*$AB$33)+$C$15,IF($P95<$B$17,(($P95-$B$16)*$AB$34)+$C$16,IF($P95<$B$18,(($P95-$B$17)*$AB$35)+$C$17,IF($P95<$B$19,(($P95-$B$18)*$AB$36)+$C$18))))))) ->  | T95: =IF($Q95="","",IF(($Q95+$B88-$AE$8)>=$B88,$B88,IF(($Q95+$B88)>$AE$8,($Q95+$B88)-$AE$8,0))) ->  | U95: =IF($T95="","",IF($T95>=$B88,0,(PI()/3)*(($B88-$T95)^2)*((1.5*$B88)-($B88-$T95)))) ->  | V95: =IF($C88="","",IF($A88="Deadman",0,IF($Q95>=$AE$8,PI()*(($B88/2)^2),((($B88/2)^2)*ACOS((($B88/2)-$T95)/($B88/2)))-((($B88/2)-$T95)*SQRT(2*($B88/2)*$T95-($T95^2)))))) ->  | W95: =IF($P95="","",IF(OR($C$19="",$F$25="",$G$25=""),"None",IF($P95<$B$14,"Left Floodplain",IF($P95<$B$15,"Left Bank",IF($P95<$B$16,"Left Stream Bed",IF($P95<$B$17,"Right Stream Bed",IF($P95<$B$18,"Right Bank","Right Floodplain"))))))) ->  | X95: =IF($Q95="","",IF(($Q95+$B88)<=$S95,$B88,IF($Q95>=$S95,0,$S95-$Q95))) ->  | Y95: =IF($C88="","",IF($A88="Deadman",PI()*(($B88/2)^2),IF($Q95>$S95,0,((($B88/2)^2)*ACOS((($B88/2)-$X95)/($B88/2)))-((($B88/2)-$X95)*SQRT(2*($B88/2)*$X95-($X95^2)))))) ->  | Z95: =IF($C88="","",IF(((PI()*(($B88/2)^2))-$V95-$Y95)<0,0,(PI()*(($B88/2)^2))-$V95-$Y95)) ->  | AA95: Point 3 | AB95: =IF($AB$93="",0,$AB$93-($B$87/2)) -> 0 | AC95: =IF($AC$93="",$C$13,$AC$93+($B$87/2)) -> 0 | AD95: =IF($AD$93="",0,$AD$93-($B$88/2)) -> 0 | AE95: =IF($AE$93="",$C$13,$AE$93+($B$88/2)) -> 0 | AF95: =IF($AF$93="",0,$AF$93-($B$89/2)) -> 0 | AG95: =IF($AG$93="",$C$13,$AG$93+($B$89/2)) -> 0 | AI95: 50 | AJ95: 0 | AK95: None | AL95: 0 | AM95: 0 | AN95: 0 | AO95: 0 | AP95: FALSE | AQ95: 0 | AR95: 0 | AS95: 0 | AV95: 0 | AW95: 0 | AX95: 0 | AY95: 0 | AZ95: 0 | BA95: 0 | BB95: 0 | BC95: 0 | BD95: 0 | BE95: 0 | BF95: 0 | BG95: 0 | BO95: 0 | BP95: 0 | BQ95: 0
G96: =IF(OR($E$96="",$E$96=0),0,IF($C$96="Pinned",ABS($E$96),IF(AND($C$96="Gravity",$B$96="Below",$E$96>=0),ABS($E$96),IF(AND($C$96="Gravity",$B$96="Above",$E$96<=0),ABS($E$96),0)))) -> 0 | H96: =IF($L$96=0,"",IF($L$96>0,CHAR(233),CHAR(234))) ->  | I96: =IF(OR($F$96="",$F$96=0),0,IF($C$96="Pinned",ABS($F$96),IF(AND($C$96="Gravity",$B$96="Behind",$F$96<0),ABS($F$96),IF(AND($C$96="Gravity",$B$96="In front",$F$96>0),ABS($F$96),0)))) -> 0 | J96: =IF($M$96=0,"",IF($M$96>=0,CHAR(232),CHAR(231))) ->  | L96: =IF($G$96=0,0,$E$96) -> 0 | M96: =IF($I$96=0,0,$F$96) -> 0 | O96: Boulder 3 | P96: =IF(OR($F$25="",$C89=""),"",$AE$49-(($C89*$M$19)*$M$17)) ->  | Q96: =IF(OR($G$25="",$C89=""),"",IF($A89="Behind",MIN($R96,$S96),IF($A89="Deadman",(MIN($R96,$S96))-($F$22+1),$R96+$F$22))) ->  | R96: =IF($P96="","",($AF$49+(($P96-$AE$49)*$AA$40))-($F$22/2)) ->  | S96: =IF($P96="","",IF($P96<$B$14,(($P96-$B$13)*$AB$31)+$C$13,IF($P96<$B$15,(($P96-$B$14)*$AB$32)+$C$14,IF($P96<$B$16,(($P96-$B$15)*$AB$33)+$C$15,IF($P96<$B$17,(($P96-$B$16)*$AB$34)+$C$16,IF($P96<$B$18,(($P96-$B$17)*$AB$35)+$C$17,IF($P96<$B$19,(($P96-$B$18)*$AB$36)+$C$18))))))) ->  | T96: =IF($Q96="","",IF(($Q96+$B89-$AE$8)>=$B89,$B89,IF(($Q96+$B89)>$AE$8,($Q96+$B89)-$AE$8,0))) ->  | U96: =IF($T96="","",IF($T96>=$B89,0,(PI()/3)*(($B89-$T96)^2)*((1.5*$B89)-($B89-$T96)))) ->  | V96: =IF($C89="","",IF($A89="Deadman",0,IF($Q96>=$AE$8,PI()*(($B89/2)^2),((($B89/2)^2)*ACOS((($B89/2)-$T96)/($B89/2)))-((($B89/2)-$T96)*SQRT(2*($B89/2)*$T96-($T96^2)))))) ->  | W96: =IF($P96="","",IF(OR($C$19="",$F$25="",$G$25=""),"None",IF($P96<$B$14,"Left Floodplain",IF($P96<$B$15,"Left Bank",IF($P96<$B$16,"Left Stream Bed",IF($P96<$B$17,"Right Stream Bed",IF($P96<$B$18,"Right Bank","Right Floodplain"))))))) ->  | X96: =IF($Q96="","",IF(($Q96+$B89)<=$S96,$B89,IF($Q96>=$S96,0,$S96-$Q96))) ->  | Y96: =IF($C89="","",IF($A89="Deadman",PI()*(($B89/2)^2),IF($Q96>$S96,0,((($B89/2)^2)*ACOS((($B89/2)-$X96)/($B89/2)))-((($B89/2)-$X96)*SQRT(2*($B89/2)*$X96-($X96^2)))))) ->  | Z96: =IF($C89="","",IF(((PI()*(($B89/2)^2))-$V96-$Y96)<0,0,(PI()*(($B89/2)^2))-$V96-$Y96)) ->  | AA96: Point 4 | AB96: =IF($AB$93="",0,$AB$94) -> 0 | AC96: =IF($AC$97="",$C$13,$AC$97-($B$87/25)) -> 0 | AD96: =IF($AD$93="",0,$AD$94) -> 0 | AE96: =IF($AE$97="",$C$13,$AE$97-($B$88/25)) -> 0 | AF96: =IF($AF$93="",0,$AF$94) -> 0 | AG96: =IF($AG$97="",$C$13,$AG$97-($B$89/25)) -> 0 | AI96: 51 | AJ96: 0 | AK96: None | AL96: 0 | AM96: 0 | AN96: 0 | AO96: 0 | AP96: FALSE | AQ96: 0 | AR96: 0 | AS96: 0 | AV96: 0 | AW96: 0 | AX96: 0 | AY96: 0 | AZ96: 0 | BA96: 0 | BB96: 0 | BC96: 0 | BD96: 0 | BE96: 0 | BF96: 0 | BG96: 0 | BO96: 0 | BP96: 0 | BQ96: 0
G97: =IF(OR($E$97="",$E$97=0),0,IF($C$97="Pinned",ABS($E$97),IF(AND($C$97="Gravity",$B$97="Below",$E$97>=0),ABS($E$97),IF(AND($C$97="Gravity",$B$97="Above",$E$97<=0),ABS($E$97),0)))) -> 0 | H97: =IF($L$97=0,"",IF($L$97>0,CHAR(233),CHAR(234))) ->  | I97: =IF(OR($F$97="",$F$97=0),0,IF($C$97="Pinned",ABS($F$97),IF(AND($C$97="Gravity",$B$97="Behind",$F$97<0),ABS($F$97),IF(AND($C$97="Gravity",$B$97="In front",$F$97>0),ABS($F$97),0)))) -> 0 | J97: =IF($M$97=0,"",IF($M$97>=0,CHAR(232),CHAR(231))) ->  | L97: =IF($G$97=0,0,$E$97) -> 0 | M97: =IF($I$97=0,0,$F$97) -> 0 | AA97: Point 5 | AB97: =IF($AB$93="",0,$AB$93) -> 0 | AC97: =IF($AC$93="",$C$13,$AC$93+$B$87) -> 0 | AD97: =IF($AD$93="",0,$AD$93) -> 0 | AE97: =IF($AE$93="",$C$13,$AE$93+$B$88) -> 0 | AF97: =IF($AF$93="",0,$AF$93) -> 0 | AG97: =IF($AG$93="",$C$13,$AG$93+$B$89) -> 0 | AI97: 52 | AJ97: 0 | AK97: None | AL97: 0 | AM97: 0 | AN97: 0 | AO97: 0 | AP97: FALSE | AQ97: 0 | AR97: 0 | AS97: 0 | AV97: 0 | AW97: 0 | AX97: 0 | AY97: 0 | AZ97: 0 | BA97: 0 | BB97: 0 | BC97: 0 | BD97: 0 | BE97: 0 | BF97: 0 | BG97: 0 | BO97: 0 | BP97: 0 | BQ97: 0
G98: =IF(OR($E$98="",$E$98=0),0,IF($C$98="Pinned",ABS($E$98),IF(AND($C$98="Gravity",$B$98="Below",$E$98>=0),ABS($E$98),IF(AND($C$98="Gravity",$B$98="Above",$E$98<=0),ABS($E$98),0)))) -> 0 | H98: =IF($L$98=0,"",IF($L$98>0,CHAR(233),CHAR(234))) ->  | I98: =IF(OR($F$98="",$F$98=0),0,IF($C$98="Pinned",ABS($F$98),IF(AND($C$98="Gravity",$B$98="Behind",$F$98<0),ABS($F$98),IF(AND($C$98="Gravity",$B$98="In front",$F$98>0),ABS($F$98),0)))) -> 0 | J98: =IF($M$98=0,"",IF($M$98>=0,CHAR(232),CHAR(231))) ->  | L98: =IF($G$98=0,0,$E$98) -> 0 | M98: =IF($I$98=0,0,$F$98) -> 0 | P98: FD,r (lbf) | Q98: FL,r (lbf) | U98: Soil Anchor Zone Calculation | AA98: Point 6 | AB98: =IF($AB$93="",0,$AB$93+($B$87/4)) -> 0 | AC98: =IF($AC$93="",$C$13,$AC$96) -> 0 | AD98: =IF($AD$93="","",$AD$93+($B$88/4)) -> 0 | AE98: =IF($AE$93="",$C$13,$AE$96) -> 0 | AF98: =IF($AF$93="",0,$AF$93+($B$89/4)) -> 0 | AG98: =IF($AG$93="",$C$13,$AG$96) -> 0 | AI98: 53 | AJ98: 0 | AK98: None | AL98: 0 | AM98: 0 | AN98: 0 | AO98: 0 | AP98: FALSE | AQ98: 0 | AR98: 0 | AS98: 0 | AV98: 0 | AW98: 0 | AX98: 0 | AY98: 0 | AZ98: 0 | BA98: 0 | BB98: 0 | BC98: 0 | BD98: 0 | BE98: 0 | BF98: 0 | BG98: 0 | BO98: 0 | BP98: 0 | BQ98: 0
L99: =$L$95+$L$96+$L$97+$L$98 -> 0 | M99: =$M$95+$M$96+$M$97+$M$98 -> 0 | O99: Boulder 1 | P99: =IF(OR($F$25="",$C87=""),"",IF($A87="Behind",0.5*CDrock*$Z94*SWWater*($J$6^2)/(2*g),CDrock*$Z94*SWWater*($J$6^2)/(2*g))) ->  | Q99: =IF(OR($F$25="",$C87=""),"",IF($A87="Behind",0.5*CLrock*$Z94*SWWater*(($J$6^2)/(2*g)),CLrock*$Z94*SWWater*(($J$6^2)/(2*g)))) ->  | V99: xr,bot (ft) | W99: Zone | AA99: Point 7 | AB99: =IF($AB$93="",0,$AB$93+($B$87/2)) -> 0 | AC99: =IF($AC$93="",$C$13,$AC$95) -> 0 | AD99: =IF($AD$93="",0,$AD$93+($B$88/2)) -> 0 | AE99: =IF($AE$93="",$C$13,$AE$95) -> 0 | AF99: =IF($AF$93="","",$AF$93+($B$89/2)) -> 0 | AG99: =IF($AG$93="",$C$13,$AG$95) -> 0 | AI99: 54 | AJ99: 0 | AK99: None | AL99: 0 | AM99: 0 | AN99: 0 | AO99: 0 | AP99: FALSE | AQ99: 0 | AR99: 0 | AS99: 0 | AV99: 0 | AW99: 0 | AX99: 0 | AY99: 0 | AZ99: 0 | BA99: 0 | BB99: 0 | BC99: 0 | BD99: 0 | BE99: 0 | BF99: 0 | BG99: 0 | BO99: 0 | BP99: 0 | BQ99: 0
O100: Boulder 2 | P100: =IF(OR($F$25="",$C88=""),"",IF($A88="Behind",0.5*CDrock*$Z95*SWWater*($J$6^2)/(2*g),CDrock*$Z95*SWWater*($J$6^2)/(2*g))) ->  | Q100: =IF(OR($F$25="",$C88=""),"",IF($A88="Behind",0.5*CLrock*$Z95*SWWater*(($J$6^2)/(2*g)),CLrock*$Z95*SWWater*(($J$6^2)/(2*g)))) ->  | U100: Anchor 1 | V100: =IF(OR($F$25="",$H83=""),"",$AE$49-(($H83*$M$19)*$M$17)) ->  | W100: =IF($V100="","",IF(OR($C$19="",$F$25="",$G$25=""),"None",IF($V100<$B$14,"Bank",IF($V100<$B$15,"Bank",IF($V100<$B$16,"Bed",IF($V100<$B$17,"Bed",IF($V100<$B$18,"Bank","Bank"))))))) ->  | AA100: Point 8 | AB100: =IF($AB$93="",0,$AB$98) -> 0 | AC100: =IF($AC$93="",$C$13,$AC$94) -> 0 | AD100: =IF($AD$93="",0,$AD$98) -> 0 | AE100: =IF($AE$93="",$C$13,$AE$94) -> 0 | AF100: =IF($AF$93="",0,$AF$98) -> 0 | AG100: =IF($AG$93="",$C$13,$AG$94) -> 0 | AI100: 55 | AJ100: 0 | AK100: None | AL100: 0 | AM100: 0 | AN100: 0 | AO100: 0 | AP100: FALSE | AQ100: 0 | AR100: 0 | AS100: 0 | AV100: 0 | AW100: 0 | AX100: 0 | AY100: 0 | AZ100: 0 | BA100: 0 | BB100: 0 | BC100: 0 | BD100: 0 | BE100: 0 | BF100: 0 | BG100: 0 | BO100: 0 | BP100: 0 | BQ100: 0
O101: Boulder 3 | P101: =IF(OR($F$25="",$C89=""),"",IF($A89="Behind",0.5*CDrock*$Z96*SWWater*($J$6^2)/(2*g),CDrock*$Z96*SWWater*($J$6^2)/(2*g))) ->  | Q101: =IF(OR($F$25="",$C89=""),"",IF($A89="Behind",0.5*CLrock*$Z96*SWWater*(($J$6^2)/(2*g)),CLrock*$Z96*SWWater*(($J$6^2)/(2*g)))) ->  | U101: Anchor 2 | V101: =IF(OR($F$25="",$H84=""),"",$AE$49-(($H84*$M$19)*$M$17)) ->  | W101: =IF($V101="","",IF(OR($C$19="",$F$25="",$G$25=""),"None",IF($V101<$B$14,"Bank",IF($V101<$B$15,"Bank",IF($V101<$B$16,"Bed",IF($V101<$B$17,"Bed",IF($V101<$B$18,"Bank","Bank"))))))) ->  | AA101: Point 9 | AB101: =IF($AB$93="",0,$AB$93) -> 0 | AC101: =IF($AC$93="",$C$13,$AC$93) -> 0 | AD101: =IF($AD$93="",0,$AD$93) -> 0 | AE101: =IF($AE$93="",$C$13,$AE$93) -> 0 | AF101: =IF($AF$93="",0,$AF$93) -> 0 | AG101: =IF($AG$93="",$C$13,$AG$93) -> 0 | AI101: 56 | AJ101: 0 | AK101: None | AL101: 0 | AM101: 0 | AN101: 0 | AO101: 0 | AP101: FALSE | AQ101: 0 | AR101: 0 | AS101: 0 | AV101: 0 | AW101: 0 | AX101: 0 | AY101: 0 | AZ101: 0 | BA101: 0 | BB101: 0 | BC101: 0 | BD101: 0 | BE101: 0 | BF101: 0 | BG101: 0 | BO101: 0 | BP101: 0 | BQ101: 0
AI102: 57 | AJ102: 0 | AK102: None | AL102: 0 | AM102: 0 | AN102: 0 | AO102: 0 | AP102: FALSE | AQ102: 0 | AR102: 0 | AS102: 0 | AV102: 0 | AW102: 0 | AX102: 0 | AY102: 0 | AZ102: 0 | BA102: 0 | BB102: 0 | BC102: 0 | BD102: 0 | BE102: 0 | BF102: 0 | BG102: 0 | BO102: 0 | BP102: 0 | BQ102: 0
AB103: Anchor #1 | AF103: Soil Ballast #1 | AI103: 58 | AJ103: 0 | AK103: None | AL103: 0 | AM103: 0 | AN103: 0 | AO103: 0 | AP103: FALSE | AQ103: 0 | AR103: 0 | AS103: 0 | AV103: 0 | AW103: 0 | AX103: 0 | AY103: 0 | AZ103: 0 | BA103: 0 | BB103: 0 | BC103: 0 | BD103: 0 | BE103: 0 | BF103: 0 | BG103: 0 | BO103: 0 | BP103: 0 | BQ103: 0
AB104: xTS (ft) | AC104: yTS (ft) | AF104: xTS (ft) | AG104: yTS (ft) | AI104: 59 | AJ104: 0 | AK104: None | AL104: 0 | AM104: 0 | AN104: 0 | AO104: 0 | AP104: FALSE | AQ104: 0 | AR104: 0 | AS104: 0 | AV104: 0 | AW104: 0 | AX104: 0 | AY104: 0 | AZ104: 0 | BA104: 0 | BB104: 0 | BC104: 0 | BD104: 0 | BE104: 0 | BF104: 0 | BG104: 0 | BO104: 0 | BP104: 0 | BQ104: 0
AA105: Point 1 | AB105: =IF(OR($F$25="",$H83=""),0,$AE$49-(($H83*$M$19)*$M$17)) -> 0 | AC105: =IF(OR($AB105="",$AB$105=0),$C$13,($AF$49+(($AB105-$AE$49)*$AA$40))-($F$22/2)) -> 0 | AE105: Point 1 | AF105: =IF(OR($F$25="",$C83=""),0,($AE$49-(($C83*$M$19)*$M$17))+(ABS(2*$M$17*$M$19))) -> 0 | AG105: =IF(OR($AF105="",$AF$105=0),$C$13,($AF$49+(($AF105-$AE$49)*$AA$40))+($F$22/2)) -> 0 | AI105: 60 | AJ105: 0 | AK105: None | AL105: 0 | AM105: 0 | AN105: 0 | AO105: 0 | AP105: FALSE | AQ105: 0 | AR105: 0 | AS105: 0 | AV105: 0 | AW105: 0 | AX105: 0 | AY105: 0 | AZ105: 0 | BA105: 0 | BB105: 0 | BC105: 0 | BD105: 0 | BE105: 0 | BF105: 0 | BG105: 0 | BO105: 0 | BP105: 0 | BQ105: 0
AA106: Point 2 | AB106: =IF($AB105="",0,$AB105) -> 0 | AC106: =IF(OR($AC105="",$AB$105=0),$C$13,$AC105-4) -> 0 | AE106: Point 2 | AF106: =IF($AF105="",0,$AF105) -> 0 | AG106: =IF(OR($AG105="",$AF$105=0),$C$13,IF($AG$105>$AG$108,$AG105+2.25,$AG$108+2.25)) -> 0 | AI106: 61 | AJ106: 0 | AK106: None | AL106: 0 | AM106: 0 | AN106: 0 | AO106: 0 | AP106: FALSE | AQ106: 0 | AR106: 0 | AS106: 0 | AV106: 0 | AW106: 0 | AX106: 0 | AY106: 0 | AZ106: 0 | BA106: 0 | BB106: 0 | BC106: 0 | BD106: 0 | BE106: 0 | BF106: 0 | BG106: 0 | BO106: 0 | BP106: 0 | BQ106: 0
AE107: Point 3 | AF107: =IF(OR($F$25="",$C83=""),0,($AE$49-(($C83*$M$19)*$M$17))-(ABS(2*$M$17*$M$19))) -> 0 | AG107: =IF(OR($AG106="",$AF$105=0),$C$13,$AG106) -> 0 | AI107: 62 | AJ107: 0 | AK107: None | AL107: 0 | AM107: 0 | AN107: 0 | AO107: 0 | AP107: FALSE | AQ107: 0 | AR107: 0 | AS107: 0 | AV107: 0 | AW107: 0 | AX107: 0 | AY107: 0 | AZ107: 0 | BA107: 0 | BB107: 0 | BC107: 0 | BD107: 0 | BE107: 0 | BF107: 0 | BG107: 0 | BO107: 0 | BP107: 0 | BQ107: 0
AB108: Anchor #2 | AE108: Point 4 | AF108: =IF($AF105="",0,$AF107) -> 0 | AG108: =IF(OR($AG105="",$AF$105=0),$C$13,$AG105-((ABS($AF$105-$AF$108))*$AA$40)) -> 0 | AI108: 63 | AJ108: 0 | AK108: None | AL108: 0 | AM108: 0 | AN108: 0 | AO108: 0 | AP108: FALSE | AQ108: 0 | AR108: 0 | AS108: 0 | AV108: 0 | AW108: 0 | AX108: 0 | AY108: 0 | AZ108: 0 | BA108: 0 | BB108: 0 | BC108: 0 | BD108: 0 | BE108: 0 | BF108: 0 | BG108: 0 | BO108: 0 | BP108: 0 | BQ108: 0
AB109: xTS (ft) | AC109: yTS (ft) | AI109: 64 | AJ109: =($AI109/$AI$245)*$AJ$245 -> 0 | AK109: =IF(OR($C$19="",$F$25="",$G$25=""),"None",IF(AL109<$B$14,"Left Floodplain",IF(AL109<$B$15,"Left Bank",IF(AL109<$B$16,"Left Stream Bed",IF(AL109<$B$17,"Right Stream Bed",IF(AL109<$B$18,"Right Bank","Right Floodplain")))))) -> None | AL109: 0 | AM109: 0 | AN109: 0 | AO109: 0 | AP109: =IF($AL109<$B$14,(($AL109-$B$13)*$AB$31)+$C$13,IF($AL109<$B$15,(($AL109-$B$14)*$AB$32)+$C$14,IF($AL109<$B$16,(($AL109-$B$15)*$AB$33)+$C$15,IF($AL109<$B$17,(($AL109-$B$16)*$AB$34)+$C$16,IF($AL109<$B$18,(($AL109-$B$17)*$AB$35)+$C$17,IF($AL109<$B$19,(($AL109-$B$18)*$AB$36)+$C$18)))))) -> FALSE | AQ109: =IF(OR($AP109<$AE$12,$AP109<=$AM109),0,IF(OR($AP109>=$AE$12,$AM109>=$AE$12),$AP109-$AM109-$AR109,$AP109-$AE$12)) -> 0 | AR109: =IF($AP109<=$AM109,0,IF($AM109>=$AE$12,0,IF($AP109<=$AE$12,$AP109-$AM109,$AE$12-$AM109))) -> 0 | AS109: =IF(AP109<=AM109,0,AP109-AM109) -> 0 | AV109: 0 | AW109: =IF($AP109<=$AO109,0,IF($AO109>=$AE$12,0,IF($AP109<=$AE$12,$AP109-$AO109,$AE$12-$AO109))) -> 0 | AX109: =IF(AP109<=AO109,0,AP109-AO109) -> 0 | AY109: =IF($AS109=0,0,IF(OR($AJ109=0,$AJ109=$E$22),$AJ$46/2,$AJ$46)) -> 0 | AZ109: =IF(OR($AK109="Left Stream Bed",$AK109="Right Stream Bed"),$F$22*$AQ109*$AY109,0) -> 0 | BA109: =IF(OR($AK109="Left Stream Bed",$AK109="Right Stream Bed"),$F$22*$AR109*$AY109,0) -> 0 | BB109: =IF(OR($AK109="Left Floodplain",$AK109="Left Bank",$AK109="Right Bank",$AK109="Right Floodplain"),$F$22*$AQ109*$AY109,0) -> 0 | BC109: =IF(OR($AK109="Left Floodplain",$AK109="Left Bank",$AK109="Right Bank",$AK109="Right Floodplain"),$F$22*$AR109*$AY109,0) -> 0 | BD109: =AX109-AS109 -> 0 | BE109: 0 | BF109: =AV109-AQ109 -> 0 | BG109: =IF(OR($AJ109=0,$AJ109=$E$22),($BF109*$AJ$46/2)*ABS($M$17),$BF109*$AJ$46*ABS($M$17)) -> 0 | BH109: =IF(OR($AM109<$AP109,$AO109>$AE$8),"",IF(OR($AJ109=0,$AJ109=$E$22),$AJ$46/2,$AJ$46)) ->  | BK109: =IF($BJ109="","",IF(OR($BJ109>($F$22/2),$BJ109=0),0,0.45-($BJ109*0.45/($F$22/2)))) ->  | BL109: =IF($BK109="","",IF($BK109>0,$AJ109,"")) ->  | BO109: =IF($AO109=0,0,IF($AO109>$AP109,0,IF(OR($AJ109=0,$AJ109=$E$22),$AJ$46/2,$AJ$46))) -> 0 | BP109: =IF(AND($BO109>0,OR($AK109="Left Stream Bed",$AK109="Right Stream Bed")),$BO109,0) -> 0 | BQ109: =IF(AND($BO109>0,OR($AK109="Left Floodplain",$AK109="Left Bank",$AK109="Right Bank",$AK109="Right Floodplain")),$BO109,0) -> 0 | BR109: =IF($BO109>0,$AJ109,"") -> 
AA110: Point 1 | AB110: =IF(OR($F$25="",$H84=""),0,$AE$49-(($H84*$M$19)*$M$17)) -> 0 | AC110: =IF(OR($AB$110=0,$AB110=""),$C$13,($AF$49+(($AB110-$AE$49)*$AA$40))-($F$22/2)) -> 0 | AF110: Log Interactions | AI110: 65 | AJ110: 0 | AK110: None | AL110: =$AL$45+ABS(AJ110*$M$19*$M$17) -> 0 | AM110: 0 | AN110: =$AN$45+ABS(AJ110*$M$19*$M$17) -> 0 | AO110: 0 | AP110: FALSE | AQ110: 0 | AR110: 0 | AS110: 0 | AT110: =IF(OR($AS110="",$AS110=0),"",IF(OR($AK110="Left Stream Bed",$AK110="Right Stream Bed"),$AS110,"")) ->  | AU110: =IF(OR($AS110="",$AS110=0),"",IF(OR($AK110="Left Floodplain",$AK110="Left Bank",$AK110="Right Bank",$AK110="Right Floodplain"),$AS110,"")) ->  | AV110: =IF(OR($AP110<$AE$12,$AP110<=$AO110),0,IF($AO110>=$AE$12,$AP110-$AO110,$AP110-$AE$12)) -> 0 | AW110: 0 | AX110: 0 | AY110: 0 | AZ110: 0 | BA110: 0 | BB110: 0 | BC110: 0 | BD110: 0 | BE110: =$BD110*$AJ$46*ABS($M$17) -> 0 | BF110: 0 | BG110: 0 | BI110: =IF($BH110="","",IF($BH110>0,$AJ110,"")) ->  | BJ110: =IF($BH110="","",IF(OR(($AO110-$AP110)<0,$AO$45>=$AE$8),0,($AO110-$AP110))) ->  | BM110: =IF($BH110="","",IF(OR(($AM110-$AP110)<0,$AM110>=$AE$8),"",($AE$8-($AM110-(($F$22/2)/$M$19))))) ->  | BO110: 0 | BP110: 0 | BQ110: 0 | BS110: =IF($AY110>0,$AJ110,"") -> 
AA111: Point 2 | AB111: =IF($AB110="",0,$AB110) -> 0 | AC111: =IF(OR($AB$110=0,$AC110=""),$C$13,$AC110-4) -> 0 | AF111: xTS (ft) | AG111: yTS (ft) | AI111: 66 | AJ111: 0 | AK111: None | AL111: 0 | AM111: =AM110+((AL111-AL110)*$AA$40) -> 0 | AN111: 0 | AO111: =AO110+((AN111-AN110)*$AA$40) -> 0 | AP111: FALSE | AQ111: 0 | AR111: 0 | AS111: 0 | AV111: 0 | AW111: 0 | AX111: 0 | AY111: 0 | AZ111: 0 | BA111: 0 | BB111: 0 | BC111: 0 | BD111: 0 | BE111: 0 | BF111: 0 | BG111: 0 | BN111: =IF($BM111="","",(((PI()^2)/32)*($B$66^-6)*EXP(-($BM111/$F$22)/(2*($B$66^2))))) ->  | BO111: 0 | BP111: 0 | BQ111: 0
AE112: Point 1 | AF112: =IF(OR($F$25="",$C90=""),0,($AE$49-(($C90*$M$19)*$M$17))+(ABS(2*$M$17*$M$19))) -> 0 | AG112: =IF(OR($AF112="",$AF$105=0),$C$13,($AF$49+(($AF112-$AE$49)*$AA$40))+($F$22/2)) -> 0 | AI112: 67 | AJ112: 0 | AK112: None | AL112: 0 | AM112: 0 | AN112: 0 | AO112: 0 | AP112: FALSE | AQ112: 0 | AR112: 0 | AS112: 0 | AV112: 0 | AW112: 0 | AX112: 0 | AY112: 0 | AZ112: 0 | BA112: 0 | BB112: 0 | BC112: 0 | BD112: 0 | BE112: 0 | BF112: 0 | BG112: 0 | BO112: 0 | BP112: 0 | BQ112: 0
AE113: Point 2 | AF113: =IF($AF112="",0,$AF112) -> 0 | AG113: =IF(OR($AG112="",$AF$105=0),$C$13,IF($AG$105>$AG$108,$AG112+2.25,$AG$108+2.25)) -> 0 | AI113: 68 | AJ113: 0 | AK113: None | AL113: 0 | AM113: 0 | AN113: 0 | AO113: 0 | AP113: FALSE | AQ113: 0 | AR113: 0 | AS113: 0 | AV113: 0 | AW113: 0 | AX113: 0 | AY113: 0 | AZ113: 0 | BA113: 0 | BB113: 0 | BC113: 0 | BD113: 0 | BE113: 0 | BF113: 0 | BG113: 0 | BO113: 0 | BP113: 0 | BQ113: 0
AE114: Point 3 | AF114: =IF(OR($F$25="",$C90=""),0,($AE$49-(($C90*$M$19)*$M$17))-(ABS(2*$M$17*$M$19))) -> 0 | AG114: =IF(OR($AG113="",$AF$105=0),$C$13,$AG113) -> 0 | AI114: 69 | AJ114: 0 | AK114: None | AL114: 0 | AM114: 0 | AN114: 0 | AO114: 0 | AP114: FALSE | AQ114: 0 | AR114: 0 | AS114: 0 | AV114: 0 | AW114: 0 | AX114: 0 | AY114: 0 | AZ114: 0 | BA114: 0 | BB114: 0 | BC114: 0 | BD114: 0 | BE114: 0 | BF114: 0 | BG114: 0 | BO114: 0 | BP114: 0 | BQ114: 0
AE115: Point 4 | AF115: =IF($AF112="",0,$AF114) -> 0 | AG115: =IF(OR($AG112="",$AF$105=0),$C$13,$AG112-((ABS($AF$105-$AF$108))*$AA$40)) -> 0 | AI115: 70 | AJ115: 0 | AK115: None | AL115: 0 | AM115: 0 | AN115: 0 | AO115: 0 | AP115: FALSE | AQ115: 0 | AR115: 0 | AS115: 0 | AV115: 0 | AW115: 0 | AX115: 0 | AY115: 0 | AZ115: 0 | BA115: 0 | BB115: 0 | BC115: 0 | BD115: 0 | BE115: 0 | BF115: 0 | BG115: 0 | BO115: 0 | BP115: 0 | BQ115: 0
AI116: 71 | AJ116: 0 | AK116: None | AL116: 0 | AM116: 0 | AN116: 0 | AO116: 0 | AP116: FALSE | AQ116: 0 | AR116: 0 | AS116: 0 | AV116: 0 | AW116: 0 | AX116: 0 | AY116: 0 | AZ116: 0 | BA116: 0 | BB116: 0 | BC116: 0 | BD116: 0 | BE116: 0 | BF116: 0 | BG116: 0 | BO116: 0 | BP116: 0 | BQ116: 0
AI117: 72 | AJ117: 0 | AK117: None | AL117: 0 | AM117: 0 | AN117: 0 | AO117: 0 | AP117: FALSE | AQ117: 0 | AR117: 0 | AS117: 0 | AV117: 0 | AW117: 0 | AX117: 0 | AY117: 0 | AZ117: 0 | BA117: 0 | BB117: 0 | BC117: 0 | BD117: 0 | BE117: 0 | BF117: 0 | BG117: 0 | BO117: 0 | BP117: 0 | BQ117: 0
AI118: 73 | AJ118: 0 | AK118: None | AL118: 0 | AM118: 0 | AN118: 0 | AO118: 0 | AP118: FALSE | AQ118: 0 | AR118: 0 | AS118: 0 | AV118: 0 | AW118: 0 | AX118: 0 | AY118: 0 | AZ118: 0 | BA118: 0 | BB118: 0 | BC118: 0 | BD118: 0 | BE118: 0 | BF118: 0 | BG118: 0 | BO118: 0 | BP118: 0 | BQ118: 0
AI119: 74 | AJ119: 0 | AK119: None | AL119: 0 | AM119: 0 | AN119: 0 | AO119: 0 | AP119: FALSE | AQ119: 0 | AR119: 0 | AS119: 0 | AV119: 0 | AW119: 0 | AX119: 0 | AY119: 0 | AZ119: 0 | BA119: 0 | BB119: 0 | BC119: 0 | BD119: 0 | BE119: 0 | BF119: 0 | BG119: 0 | BO119: 0 | BP119: 0 | BQ119: 0
AI120: 75 | AJ120: 0 | AK120: None | AL120: 0 | AM120: 0 | AN120: 0 | AO120: 0 | AP120: FALSE | AQ120: 0 | AR120: 0 | AS120: 0 | AV120: 0 | AW120: 0 | AX120: 0 | AY120: 0 | AZ120: 0 | BA120: 0 | BB120: 0 | BC120: 0 | BD120: 0 | BE120: 0 | BF120: 0 | BG120: 0 | BO120: 0 | BP120: 0 | BQ120: 0
AI121: 76 | AJ121: 0 | AK121: None | AL121: 0 | AM121: 0 | AN121: 0 | AO121: 0 | AP121: FALSE | AQ121: 0 | AR121: 0 | AS121: 0 | AV121: 0 | AW121: 0 | AX121: 0 | AY121: 0 | AZ121: 0 | BA121: 0 | BB121: 0 | BC121: 0 | BD121: 0 | BE121: 0 | BF121: 0 | BG121: 0 | BO121: 0 | BP121: 0 | BQ121: 0
AI122: 77 | AJ122: 0 | AK122: None | AL122: 0 | AM122: 0 | AN122: 0 | AO122: 0 | AP122: FALSE | AQ122: 0 | AR122: 0 | AS122: 0 | AV122: 0 | AW122: 0 | AX122: 0 | AY122: 0 | AZ122: 0 | BA122: 0 | BB122: 0 | BC122: 0 | BD122: 0 | BE122: 0 | BF122: 0 | BG122: 0 | BO122: 0 | BP122: 0 | BQ122: 0
AI123: 78 | AJ123: 0 | AK123: None | AL123: 0 | AM123: 0 | AN123: 0 | AO123: 0 | AP123: FALSE | AQ123: 0 | AR123: 0 | AS123: 0 | AV123: 0 | AW123: 0 | AX123: 0 | AY123: 0 | AZ123: 0 | BA123: 0 | BB123: 0 | BC123: 0 | BD123: 0 | BE123: 0 | BF123: 0 | BG123: 0 | BO123: 0 | BP123: 0 | BQ123: 0
AI124: 79 | AJ124: 0 | AK124: None | AL124: 0 | AM124: 0 | AN124: 0 | AO124: 0 | AP124: FALSE | AQ124: 0 | AR124: 0 | AS124: 0 | AV124: 0 | AW124: 0 | AX124: 0 | AY124: 0 | AZ124: 0 | BA124: 0 | BB124: 0 | BC124: 0 | BD124: 0 | BE124: 0 | BF124: 0 | BG124: 0 | BO124: 0 | BP124: 0 | BQ124: 0
AI125: 80 | AJ125: 0 | AK125: None | AL125: 0 | AM125: 0 | AN125: 0 | AO125: 0 | AP125: FALSE | AQ125: 0 | AR125: 0 | AS125: 0 | AV125: 0 | AW125: 0 | AX125: 0 | AY125: 0 | AZ125: 0 | BA125: 0 | BB125: 0 | BC125: 0 | BD125: 0 | BE125: 0 | BF125: 0 | BG125: 0 | BO125: 0 | BP125: 0 | BQ125: 0
AI126: 81 | AJ126: 0 | AK126: None | AL126: 0 | AM126: 0 | AN126: 0 | AO126: 0 | AP126: FALSE | AQ126: 0 | AR126: 0 | AS126: 0 | AV126: 0 | AW126: 0 | AX126: 0 | AY126: 0 | AZ126: 0 | BA126: 0 | BB126: 0 | BC126: 0 | BD126: 0 | BE126: 0 | BF126: 0 | BG126: 0 | BO126: 0 | BP126: 0 | BQ126: 0
AI127: 82 | AJ127: 0 | AK127: None | AL127: 0 | AM127: 0 | AN127: 0 | AO127: 0 | AP127: FALSE | AQ127: 0 | AR127: 0 | AS127: 0 | AV127: 0 | AW127: 0 | AX127: 0 | AY127: 0 | AZ127: 0 | BA127: 0 | BB127: 0 | BC127: 0 | BD127: 0 | BE127: 0 | BF127: 0 | BG127: 0 | BO127: 0 | BP127: 0 | BQ127: 0
AI128: 83 | AJ128: 0 | AK128: None | AL128: 0 | AM128: 0 | AN128: 0 | AO128: 0 | AP128: FALSE | AQ128: 0 | AR128: 0 | AS128: 0 | AV128: 0 | AW128: 0 | AX128: 0 | AY128: 0 | AZ128: 0 | BA128: 0 | BB128: 0 | BC128: 0 | BD128: 0 | BE128: 0 | BF128: 0 | BG128: 0 | BO128: 0 | BP128: 0 | BQ128: 0
AI129: 84 | AJ129: 0 | AK129: None | AL129: 0 | AM129: 0 | AN129: 0 | AO129: 0 | AP129: FALSE | AQ129: 0 | AR129: 0 | AS129: 0 | AV129: 0 | AW129: 0 | AX129: 0 | AY129: 0 | AZ129: 0 | BA129: 0 | BB129: 0 | BC129: 0 | BD129: 0 | BE129: 0 | BF129: 0 | BG129: 0 | BO129: 0 | BP129: 0 | BQ129: 0
AI130: 85 | AJ130: 0 | AK130: None | AL130: 0 | AM130: 0 | AN130: 0 | AO130: 0 | AP130: FALSE | AQ130: 0 | AR130: 0 | AS130: 0 | AV130: 0 | AW130: 0 | AX130: 0 | AY130: 0 | AZ130: 0 | BA130: 0 | BB130: 0 | BC130: 0 | BD130: 0 | BE130: 0 | BF130: 0 | BG130: 0 | BO130: 0 | BP130: 0 | BQ130: 0
AI131: 86 | AJ131: 0 | AK131: None | AL131: 0 | AM131: 0 | AN131: 0 | AO131: 0 | AP131: FALSE | AQ131: 0 | AR131: 0 | AS131: 0 | AV131: 0 | AW131: 0 | AX131: 0 | AY131: 0 | AZ131: 0 | BA131: 0 | BB131: 0 | BC131: 0 | BD131: 0 | BE131: 0 | BF131: 0 | BG131: 0 | BO131: 0 | BP131: 0 | BQ131: 0
AI132: 87 | AJ132: 0 | AK132: None | AL132: 0 | AM132: 0 | AN132: 0 | AO132: 0 | AP132: FALSE | AQ132: 0 | AR132: 0 | AS132: 0 | AV132: 0 | AW132: 0 | AX132: 0 | AY132: 0 | AZ132: 0 | BA132: 0 | BB132: 0 | BC132: 0 | BD132: 0 | BE132: 0 | BF132: 0 | BG132: 0 | BO132: 0 | BP132: 0 | BQ132: 0
AI133: 88 | AJ133: 0 | AK133: None | AL133: 0 | AM133: 0 | AN133: 0 | AO133: 0 | AP133: FALSE | AQ133: 0 | AR133: 0 | AS133: 0 | AV133: 0 | AW133: 0 | AX133: 0 | AY133: 0 | AZ133: 0 | BA133: 0 | BB133: 0 | BC133: 0 | BD133: 0 | BE133: 0 | BF133: 0 | BG133: 0 | BO133: 0 | BP133: 0 | BQ133: 0
AI134: 89 | AJ134: 0 | AK134: None | AL134: 0 | AM134: 0 | AN134: 0 | AO134: 0 | AP134: FALSE | AQ134: 0 | AR134: 0 | AS134: 0 | AV134: 0 | AW134: 0 | AX134: 0 | AY134: 0 | AZ134: 0 | BA134: 0 | BB134: 0 | BC134: 0 | BD134: 0 | BE134: 0 | BF134: 0 | BG134: 0 | BO134: 0 | BP134: 0 | BQ134: 0
AI135: 90 | AJ135: 0 | AK135: None | AL135: 0 | AM135: 0 | AN135: 0 | AO135: 0 | AP135: FALSE | AQ135: 0 | AR135: 0 | AS135: 0 | AV135: 0 | AW135: 0 | AX135: 0 | AY135: 0 | AZ135: 0 | BA135: 0 | BB135: 0 | BC135: 0 | BD135: 0 | BE135: 0 | BF135: 0 | BG135: 0 | BO135: 0 | BP135: 0 | BQ135: 0
AI136: 91 | AJ136: 0 | AK136: None | AL136: 0 | AM136: 0 | AN136: 0 | AO136: 0 | AP136: FALSE | AQ136: 0 | AR136: 0 | AS136: 0 | AV136: 0 | AW136: 0 | AX136: 0 | AY136: 0 | AZ136: 0 | BA136: 0 | BB136: 0 | BC136: 0 | BD136: 0 | BE136: 0 | BF136: 0 | BG136: 0 | BO136: 0 | BP136: 0 | BQ136: 0
AI137: 92 | AJ137: 0 | AK137: None | AL137: 0 | AM137: 0 | AN137: 0 | AO137: 0 | AP137: FALSE | AQ137: 0 | AR137: 0 | AS137: 0 | AV137: 0 | AW137: 0 | AX137: 0 | AY137: 0 | AZ137: 0 | BA137: 0 | BB137: 0 | BC137: 0 | BD137: 0 | BE137: 0 | BF137: 0 | BG137: 0 | BO137: 0 | BP137: 0 | BQ137: 0
AI138: 93 | AJ138: 0 | AK138: None | AL138: 0 | AM138: 0 | AN138: 0 | AO138: 0 | AP138: FALSE | AQ138: 0 | AR138: 0 | AS138: 0 | AV138: 0 | AW138: 0 | AX138: 0 | AY138: 0 | AZ138: 0 | BA138: 0 | BB138: 0 | BC138: 0 | BD138: 0 | BE138: 0 | BF138: 0 | BG138: 0 | BO138: 0 | BP138: 0 | BQ138: 0
AI139: 94 | AJ139: 0 | AK139: None | AL139: 0 | AM139: 0 | AN139: 0 | AO139: 0 | AP139: FALSE | AQ139: 0 | AR139: 0 | AS139: 0 | AV139: 0 | AW139: 0 | AX139: 0 | AY139: 0 | AZ139: 0 | BA139: 0 | BB139: 0 | BC139: 0 | BD139: 0 | BE139: 0 | BF139: 0 | BG139: 0 | BO139: 0 | BP139: 0 | BQ139: 0
AI140: 95 | AJ140: 0 | AK140: None | AL140: 0 | AM140: 0 | AN140: 0 | AO140: 0 | AP140: FALSE | AQ140: 0 | AR140: 0 | AS140: 0 | AV140: 0 | AW140: 0 | AX140: 0 | AY140: 0 | AZ140: 0 | BA140: 0 | BB140: 0 | BC140: 0 | BD140: 0 | BE140: 0 | BF140: 0 | BG140: 0 | BO140: 0 | BP140: 0 | BQ140: 0
AI141: 96 | AJ141: 0 | AK141: None | AL141: 0 | AM141: 0 | AN141: 0 | AO141: 0 | AP141: FALSE | AQ141: 0 | AR141: 0 | AS141: 0 | AV141: 0 | AW141: 0 | AX141: 0 | AY141: 0 | AZ141: 0 | BA141: 0 | BB141: 0 | BC141: 0 | BD141: 0 | BE141: 0 | BF141: 0 | BG141: 0 | BO141: 0 | BP141: 0 | BQ141: 0
AI142: 97 | AJ142: 0 | AK142: None | AL142: =$AL$45+ABS(AJ142*$M$19*$M$17) -> 0 | AM142: 0 | AN142: =$AN$45+ABS(AJ142*$M$19*$M$17) -> 0 | AO142: 0 | AP142: FALSE | AQ142: 0 | AR142: 0 | AS142: 0 | AV142: 0 | AW142: 0 | AX142: 0 | AY142: 0 | AZ142: 0 | BA142: 0 | BB142: 0 | BC142: 0 | BD142: 0 | BE142: 0 | BF142: 0 | BG142: 0 | BO142: 0 | BP142: 0 | BQ142: 0
AI143: 98 | AJ143: 0 | AK143: None | AL143: 0 | AM143: 0 | AN143: 0 | AO143: 0 | AP143: FALSE | AQ143: 0 | AR143: 0 | AS143: 0 | AV143: 0 | AW143: 0 | AX143: 0 | AY143: 0 | AZ143: 0 | BA143: 0 | BB143: 0 | BC143: 0 | BD143: 0 | BE143: 0 | BF143: 0 | BG143: 0 | BO143: 0 | BP143: 0 | BQ143: 0
AI144: 99 | AJ144: 0 | AK144: None | AL144: 0 | AM144: 0 | AN144: 0 | AO144: 0 | AP144: FALSE | AQ144: 0 | AR144: 0 | AS144: 0 | AV144: 0 | AW144: 0 | AX144: 0 | AY144: 0 | AZ144: 0 | BA144: 0 | BB144: 0 | BC144: 0 | BD144: 0 | BE144: 0 | BF144: 0 | BG144: 0 | BO144: 0 | BP144: 0 | BQ144: 0
AI145: 100 | AJ145: 0 | AK145: None | AL145: 0 | AM145: 0 | AN145: 0 | AO145: 0 | AP145: FALSE | AQ145: 0 | AR145: 0 | AS145: 0 | AV145: 0 | AW145: 0 | AX145: 0 | AY145: 0 | AZ145: 0 | BA145: 0 | BB145: 0 | BC145: 0 | BD145: 0 | BE145: 0 | BF145: 0 | BG145: 0 | BO145: 0 | BP145: 0 | BQ145: 0
AI146: 101 | AJ146: 0 | AK146: None | AL146: 0 | AM146: 0 | AN146: 0 | AO146: 0 | AP146: FALSE | AQ146: 0 | AR146: 0 | AS146: 0 | AV146: 0 | AW146: 0 | AX146: 0 | AY146: 0 | AZ146: 0 | BA146: 0 | BB146: 0 | BC146: 0 | BD146: 0 | BE146: 0 | BF146: 0 | BG146: 0 | BO146: 0 | BP146: 0 | BQ146: 0
AI147: 102 | AJ147: 0 | AK147: None | AL147: 0 | AM147: 0 | AN147: 0 | AO147: 0 | AP147: FALSE | AQ147: 0 | AR147: 0 | AS147: 0 | AV147: 0 | AW147: 0 | AX147: 0 | AY147: 0 | AZ147: 0 | BA147: 0 | BB147: 0 | BC147: 0 | BD147: 0 | BE147: 0 | BF147: 0 | BG147: 0 | BO147: 0 | BP147: 0 | BQ147: 0
AI148: 103 | AJ148: 0 | AK148: None | AL148: 0 | AM148: 0 | AN148: 0 | AO148: 0 | AP148: FALSE | AQ148: 0 | AR148: 0 | AS148: 0 | AV148: 0 | AW148: 0 | AX148: 0 | AY148: 0 | AZ148: 0 | BA148: 0 | BB148: 0 | BC148: 0 | BD148: 0 | BE148: 0 | BF148: 0 | BG148: 0 | BO148: 0 | BP148: 0 | BQ148: 0
AI149: 104 | AJ149: 0 | AK149: None | AL149: 0 | AM149: 0 | AN149: 0 | AO149: 0 | AP149: FALSE | AQ149: 0 | AR149: 0 | AS149: 0 | AV149: 0 | AW149: 0 | AX149: 0 | AY149: 0 | AZ149: 0 | BA149: 0 | BB149: 0 | BC149: 0 | BD149: 0 | BE149: 0 | BF149: 0 | BG149: 0 | BO149: 0 | BP149: 0 | BQ149: 0
AI150: 105 | AJ150: 0 | AK150: None | AL150: 0 | AM150: 0 | AN150: 0 | AO150: 0 | AP150: FALSE | AQ150: 0 | AR150: 0 | AS150: 0 | AV150: 0 | AW150: 0 | AX150: 0 | AY150: 0 | AZ150: 0 | BA150: 0 | BB150: 0 | BC150: 0 | BD150: 0 | BE150: 0 | BF150: 0 | BG150: 0 | BO150: 0 | BP150: 0 | BQ150: 0
AI151: 106 | AJ151: 0 | AK151: None | AL151: 0 | AM151: 0 | AN151: 0 | AO151: 0 | AP151: FALSE | AQ151: 0 | AR151: 0 | AS151: 0 | AV151: 0 | AW151: 0 | AX151: 0 | AY151: 0 | AZ151: 0 | BA151: 0 | BB151: 0 | BC151: 0 | BD151: 0 | BE151: 0 | BF151: 0 | BG151: 0 | BO151: 0 | BP151: 0 | BQ151: 0
AI152: 107 | AJ152: 0 | AK152: None | AL152: 0 | AM152: 0 | AN152: 0 | AO152: 0 | AP152: FALSE | AQ152: 0 | AR152: 0 | AS152: 0 | AV152: 0 | AW152: 0 | AX152: 0 | AY152: 0 | AZ152: 0 | BA152: 0 | BB152: 0 | BC152: 0 | BD152: 0 | BE152: 0 | BF152: 0 | BG152: 0 | BO152: 0 | BP152: 0 | BQ152: 0
AI153: 108 | AJ153: 0 | AK153: None | AL153: 0 | AM153: 0 | AN153: 0 | AO153: 0 | AP153: FALSE | AQ153: 0 | AR153: 0 | AS153: 0 | AV153: 0 | AW153: 0 | AX153: 0 | AY153: 0 | AZ153: 0 | BA153: 0 | BB153: 0 | BC153: 0 | BD153: 0 | BE153: 0 | BF153: 0 | BG153: 0 | BO153: 0 | BP153: 0 | BQ153: 0
AI154: 109 | AJ154: 0 | AK154: None | AL154: 0 | AM154: 0 | AN154: 0 | AO154: 0 | AP154: FALSE | AQ154: 0 | AR154: 0 | AS154: 0 | AV154: 0 | AW154: 0 | AX154: 0 | AY154: 0 | AZ154: 0 | BA154: 0 | BB154: 0 | BC154: 0 | BD154: 0 | BE154: 0 | BF154: 0 | BG154: 0 | BO154: 0 | BP154: 0 | BQ154: 0
AI155: 110 | AJ155: 0 | AK155: None | AL155: 0 | AM155: 0 | AN155: 0 | AO155: 0 | AP155: FALSE | AQ155: 0 | AR155: 0 | AS155: 0 | AV155: 0 | AW155: 0 | AX155: 0 | AY155: 0 | AZ155: 0 | BA155: 0 | BB155: 0 | BC155: 0 | BD155: 0 | BE155: 0 | BF155: 0 | BG155: 0 | BO155: 0 | BP155: 0 | BQ155: 0
AI156: 111 | AJ156: 0 | AK156: None | AL156: 0 | AM156: 0 | AN156: 0 | AO156: 0 | AP156: FALSE | AQ156: 0 | AR156: 0 | AS156: 0 | AV156: 0 | AW156: 0 | AX156: 0 | AY156: 0 | AZ156: 0 | BA156: 0 | BB156: 0 | BC156: 0 | BD156: 0 | BE156: 0 | BF156: 0 | BG156: 0 | BO156: 0 | BP156: 0 | BQ156: 0
AI157: 112 | AJ157: 0 | AK157: None | AL157: 0 | AM157: 0 | AN157: 0 | AO157: 0 | AP157: FALSE | AQ157: 0 | AR157: 0 | AS157: 0 | AV157: 0 | AW157: 0 | AX157: 0 | AY157: 0 | AZ157: 0 | BA157: 0 | BB157: 0 | BC157: 0 | BD157: 0 | BE157: 0 | BF157: 0 | BG157: 0 | BO157: 0 | BP157: 0 | BQ157: 0
AI158: 113 | AJ158: 0 | AK158: None | AL158: 0 | AM158: 0 | AN158: 0 | AO158: 0 | AP158: FALSE | AQ158: 0 | AR158: 0 | AS158: 0 | AV158: 0 | AW158: 0 | AX158: 0 | AY158: 0 | AZ158: 0 | BA158: 0 | BB158: 0 | BC158: 0 | BD158: 0 | BE158: 0 | BF158: 0 | BG158: 0 | BO158: 0 | BP158: 0 | BQ158: 0
AI159: 114 | AJ159: 0 | AK159: None | AL159: 0 | AM159: 0 | AN159: 0 | AO159: 0 | AP159: FALSE | AQ159: 0 | AR159: 0 | AS159: 0 | AV159: 0 | AW159: 0 | AX159: 0 | AY159: 0 | AZ159: 0 | BA159: 0 | BB159: 0 | BC159: 0 | BD159: 0 | BE159: 0 | BF159: 0 | BG159: 0 | BO159: 0 | BP159: 0 | BQ159: 0
AI160: 115 | AJ160: 0 | AK160: None | AL160: 0 | AM160: 0 | AN160: 0 | AO160: 0 | AP160: FALSE | AQ160: 0 | AR160: 0 | AS160: 0 | AV160: 0 | AW160: 0 | AX160: 0 | AY160: 0 | AZ160: 0 | BA160: 0 | BB160: 0 | BC160: 0 | BD160: 0 | BE160: 0 | BF160: 0 | BG160: 0 | BO160: 0 | BP160: 0 | BQ160: 0
AI161: 116 | AJ161: 0 | AK161: None | AL161: 0 | AM161: 0 | AN161: 0 | AO161: 0 | AP161: FALSE | AQ161: 0 | AR161: 0 | AS161: 0 | AV161: 0 | AW161: 0 | AX161: 0 | AY161: 0 | AZ161: 0 | BA161: 0 | BB161: 0 | BC161: 0 | BD161: 0 | BE161: 0 | BF161: 0 | BG161: 0 | BO161: 0 | BP161: 0 | BQ161: 0
AI162: 117 | AJ162: 0 | AK162: None | AL162: 0 | AM162: 0 | AN162: 0 | AO162: 0 | AP162: FALSE | AQ162: 0 | AR162: 0 | AS162: 0 | AV162: 0 | AW162: 0 | AX162: 0 | AY162: 0 | AZ162: 0 | BA162: 0 | BB162: 0 | BC162: 0 | BD162: 0 | BE162: 0 | BF162: 0 | BG162: 0 | BO162: 0 | BP162: 0 | BQ162: 0
AI163: 118 | AJ163: 0 | AK163: None | AL163: 0 | AM163: 0 | AN163: 0 | AO163: 0 | AP163: FALSE | AQ163: 0 | AR163: 0 | AS163: 0 | AV163: 0 | AW163: 0 | AX163: 0 | AY163: 0 | AZ163: 0 | BA163: 0 | BB163: 0 | BC163: 0 | BD163: 0 | BE163: 0 | BF163: 0 | BG163: 0 | BO163: 0 | BP163: 0 | BQ163: 0
AI164: 119 | AJ164: 0 | AK164: None | AL164: 0 | AM164: 0 | AN164: 0 | AO164: 0 | AP164: FALSE | AQ164: 0 | AR164: 0 | AS164: 0 | AV164: 0 | AW164: 0 | AX164: 0 | AY164: 0 | AZ164: 0 | BA164: 0 | BB164: 0 | BC164: 0 | BD164: 0 | BE164: 0 | BF164: 0 | BG164: 0 | BO164: 0 | BP164: 0 | BQ164: 0
AI165: 120 | AJ165: 0 | AK165: None | AL165: 0 | AM165: 0 | AN165: 0 | AO165: 0 | AP165: FALSE | AQ165: 0 | AR165: 0 | AS165: 0 | AV165: 0 | AW165: 0 | AX165: 0 | AY165: 0 | AZ165: 0 | BA165: 0 | BB165: 0 | BC165: 0 | BD165: 0 | BE165: 0 | BF165: 0 | BG165: 0 | BO165: 0 | BP165: 0 | BQ165: 0
AI166: 121 | AJ166: 0 | AK166: None | AL166: 0 | AM166: 0 | AN166: 0 | AO166: 0 | AP166: FALSE | AQ166: 0 | AR166: 0 | AS166: 0 | AV166: 0 | AW166: 0 | AX166: 0 | AY166: 0 | AZ166: 0 | BA166: 0 | BB166: 0 | BC166: 0 | BD166: 0 | BE166: 0 | BF166: 0 | BG166: 0 | BO166: 0 | BP166: 0 | BQ166: 0
AI167: 122 | AJ167: 0 | AK167: None | AL167: 0 | AM167: 0 | AN167: 0 | AO167: 0 | AP167: FALSE | AQ167: 0 | AR167: 0 | AS167: 0 | AV167: 0 | AW167: 0 | AX167: 0 | AY167: 0 | AZ167: 0 | BA167: 0 | BB167: 0 | BC167: 0 | BD167: 0 | BE167: 0 | BF167: 0 | BG167: 0 | BO167: 0 | BP167: 0 | BQ167: 0
AI168: 123 | AJ168: 0 | AK168: None | AL168: 0 | AM168: 0 | AN168: 0 | AO168: 0 | AP168: FALSE | AQ168: 0 | AR168: 0 | AS168: 0 | AV168: 0 | AW168: 0 | AX168: 0 | AY168: 0 | AZ168: 0 | BA168: 0 | BB168: 0 | BC168: 0 | BD168: 0 | BE168: 0 | BF168: 0 | BG168: 0 | BO168: 0 | BP168: 0 | BQ168: 0
AI169: 124 | AJ169: 0 | AK169: None | AL169: 0 | AM169: 0 | AN169: 0 | AO169: 0 | AP169: FALSE | AQ169: 0 | AR169: 0 | AS169: 0 | AV169: 0 | AW169: 0 | AX169: 0 | AY169: 0 | AZ169: 0 | BA169: 0 | BB169: 0 | BC169: 0 | BD169: 0 | BE169: 0 | BF169: 0 | BG169: 0 | BO169: 0 | BP169: 0 | BQ169: 0
AI170: 125 | AJ170: 0 | AK170: None | AL170: 0 | AM170: 0 | AN170: 0 | AO170: 0 | AP170: FALSE | AQ170: 0 | AR170: 0 | AS170: 0 | AV170: 0 | AW170: 0 | AX170: 0 | AY170: 0 | AZ170: 0 | BA170: 0 | BB170: 0 | BC170: 0 | BD170: 0 | BE170: 0 | BF170: 0 | BG170: 0 | BO170: 0 | BP170: 0 | BQ170: 0
AI171: 126 | AJ171: 0 | AK171: None | AL171: 0 | AM171: 0 | AN171: 0 | AO171: 0 | AP171: FALSE | AQ171: 0 | AR171: 0 | AS171: 0 | AV171: 0 | AW171: 0 | AX171: 0 | AY171: 0 | AZ171: 0 | BA171: 0 | BB171: 0 | BC171: 0 | BD171: 0 | BE171: 0 | BF171: 0 | BG171: 0 | BO171: 0 | BP171: 0 | BQ171: 0
AI172: 127 | AJ172: 0 | AK172: None | AL172: 0 | AM172: 0 | AN172: 0 | AO172: 0 | AP172: FALSE | AQ172: 0 | AR172: 0 | AS172: 0 | AV172: 0 | AW172: 0 | AX172: 0 | AY172: 0 | AZ172: 0 | BA172: 0 | BB172: 0 | BC172: 0 | BD172: 0 | BE172: 0 | BF172: 0 | BG172: 0 | BO172: 0 | BP172: 0 | BQ172: 0
AI173: 128 | AJ173: =($AI173/$AI$245)*$AJ$245 -> 0 | AK173: =IF(OR($C$19="",$F$25="",$G$25=""),"None",IF(AL173<$B$14,"Left Floodplain",IF(AL173<$B$15,"Left Bank",IF(AL173<$B$16,"Left Stream Bed",IF(AL173<$B$17,"Right Stream Bed",IF(AL173<$B$18,"Right Bank","Right Floodplain")))))) -> None | AL173: 0 | AM173: 0 | AN173: 0 | AO173: 0 | AP173: =IF($AL173<$B$14,(($AL173-$B$13)*$AB$31)+$C$13,IF($AL173<$B$15,(($AL173-$B$14)*$AB$32)+$C$14,IF($AL173<$B$16,(($AL173-$B$15)*$AB$33)+$C$15,IF($AL173<$B$17,(($AL173-$B$16)*$AB$34)+$C$16,IF($AL173<$B$18,(($AL173-$B$17)*$AB$35)+$C$17,IF($AL173<$B$19,(($AL173-$B$18)*$AB$36)+$C$18)))))) -> FALSE | AQ173: =IF(OR($AP173<$AE$12,$AP173<=$AM173),0,IF(OR($AP173>=$AE$12,$AM173>=$AE$12),$AP173-$AM173-$AR173,$AP173-$AE$12)) -> 0 | AR173: =IF($AP173<=$AM173,0,IF($AM173>=$AE$12,0,IF($AP173<=$AE$12,$AP173-$AM173,$AE$12-$AM173))) -> 0 | AS173: =IF(AP173<=AM173,0,AP173-AM173) -> 0 | AV173: 0 | AW173: =IF($AP173<=$AO173,0,IF($AO173>=$AE$12,0,IF($AP173<=$AE$12,$AP173-$AO173,$AE$12-$AO173))) -> 0 | AX173: =IF(AP173<=AO173,0,AP173-AO173) -> 0 | AY173: =IF($AS173=0,0,IF(OR($AJ173=0,$AJ173=$E$22),$AJ$46/2,$AJ$46)) -> 0 | AZ173: =IF(OR($AK173="Left Stream Bed",$AK173="Right Stream Bed"),$F$22*$AQ173*$AY173,0) -> 0 | BA173: =IF(OR($AK173="Left Stream Bed",$AK173="Right Stream Bed"),$F$22*$AR173*$AY173,0) -> 0 | BB173: =IF(OR($AK173="Left Floodplain",$AK173="Left Bank",$AK173="Right Bank",$AK173="Right Floodplain"),$F$22*$AQ173*$AY173,0) -> 0 | BC173: =IF(OR($AK173="Left Floodplain",$AK173="Left Bank",$AK173="Right Bank",$AK173="Right Floodplain"),$F$22*$AR173*$AY173,0) -> 0 | BD173: =AX173-AS173 -> 0 | BE173: 0 | BF173: =AV173-AQ173 -> 0 | BG173: =IF(OR($AJ173=0,$AJ173=$E$22),($BF173*$AJ$46/2)*ABS($M$17),$BF173*$AJ$46*ABS($M$17)) -> 0 | BH173: =IF(OR($AM173<$AP173,$AO173>$AE$8),"",IF(OR($AJ173=0,$AJ173=$E$22),$AJ$46/2,$AJ$46)) ->  | BK173: =IF($BJ173="","",IF(OR($BJ173>($F$22/2),$BJ173=0),0,0.45-($BJ173*0.45/($F$22/2)))) ->  | BL173: =IF($BK173="","",IF($BK173>0,$AJ173,"")) ->  | BO173: =IF($AO173=0,0,IF($AO173>$AP173,0,IF(OR($AJ173=0,$AJ173=$E$22),$AJ$46/2,$AJ$46))) -> 0 | BP173: =IF(AND($BO173>0,OR($AK173="Left Stream Bed",$AK173="Right Stream Bed")),$BO173,0) -> 0 | BQ173: =IF(AND($BO173>0,OR($AK173="Left Floodplain",$AK173="Left Bank",$AK173="Right Bank",$AK173="Right Floodplain")),$BO173,0) -> 0 | BR173: =IF($BO173>0,$AJ173,"") -> 
AI174: 129 | AJ174: 0 | AK174: None | AL174: =$AL$45+ABS(AJ174*$M$19*$M$17) -> 0 | AM174: 0 | AN174: =$AN$45+ABS(AJ174*$M$19*$M$17) -> 0 | AO174: 0 | AP174: FALSE | AQ174: 0 | AR174: 0 | AS174: 0 | AT174: =IF(OR($AS174="",$AS174=0),"",IF(OR($AK174="Left Stream Bed",$AK174="Right Stream Bed"),$AS174,"")) ->  | AU174: =IF(OR($AS174="",$AS174=0),"",IF(OR($AK174="Left Floodplain",$AK174="Left Bank",$AK174="Right Bank",$AK174="Right Floodplain"),$AS174,"")) ->  | AV174: =IF(OR($AP174<$AE$12,$AP174<=$AO174),0,IF($AO174>=$AE$12,$AP174-$AO174,$AP174-$AE$12)) -> 0 | AW174: 0 | AX174: 0 | AY174: 0 | AZ174: 0 | BA174: 0 | BB174: 0 | BC174: 0 | BD174: 0 | BE174: =$BD174*$AJ$46*ABS($M$17) -> 0 | BF174: 0 | BG174: 0 | BI174: =IF($BH174="","",IF($BH174>0,$AJ174,"")) ->  | BJ174: =IF($BH174="","",IF(OR(($AO174-$AP174)<0,$AO$45>=$AE$8),0,($AO174-$AP174))) ->  | BM174: =IF($BH174="","",IF(OR(($AM174-$AP174)<0,$AM174>=$AE$8),"",($AE$8-($AM174-(($F$22/2)/$M$19))))) ->  | BO174: 0 | BP174: 0 | BQ174: 0 | BS174: =IF($AY174>0,$AJ174,"") -> 
AI175: 130 | AJ175: 0 | AK175: None | AL175: 0 | AM175: =AM174+((AL175-AL174)*$AA$40) -> 0 | AN175: 0 | AO175: =AO174+((AN175-AN174)*$AA$40) -> 0 | AP175: FALSE | AQ175: 0 | AR175: 0 | AS175: 0 | AV175: 0 | AW175: 0 | AX175: 0 | AY175: 0 | AZ175: 0 | BA175: 0 | BB175: 0 | BC175: 0 | BD175: 0 | BE175: 0 | BF175: 0 | BG175: 0 | BN175: =IF($BM175="","",(((PI()^2)/32)*($B$66^-6)*EXP(-($BM175/$F$22)/(2*($B$66^2))))) ->  | BO175: 0 | BP175: 0 | BQ175: 0
AI176: 131 | AJ176: 0 | AK176: None | AL176: 0 | AM176: 0 | AN176: 0 | AO176: 0 | AP176: FALSE | AQ176: 0 | AR176: 0 | AS176: 0 | AV176: 0 | AW176: 0 | AX176: 0 | AY176: 0 | AZ176: 0 | BA176: 0 | BB176: 0 | BC176: 0 | BD176: 0 | BE176: 0 | BF176: 0 | BG176: 0 | BO176: 0 | BP176: 0 | BQ176: 0
AI177: 132 | AJ177: 0 | AK177: None | AL177: 0 | AM177: 0 | AN177: 0 | AO177: 0 | AP177: FALSE | AQ177: 0 | AR177: 0 | AS177: 0 | AV177: 0 | AW177: 0 | AX177: 0 | AY177: 0 | AZ177: 0 | BA177: 0 | BB177: 0 | BC177: 0 | BD177: 0 | BE177: 0 | BF177: 0 | BG177: 0 | BO177: 0 | BP177: 0 | BQ177: 0
AI178: 133 | AJ178: 0 | AK178: None | AL178: 0 | AM178: 0 | AN178: 0 | AO178: 0 | AP178: FALSE | AQ178: 0 | AR178: 0 | AS178: 0 | AV178: 0 | AW178: 0 | AX178: 0 | AY178: 0 | AZ178: 0 | BA178: 0 | BB178: 0 | BC178: 0 | BD178: 0 | BE178: 0 | BF178: 0 | BG178: 0 | BO178: 0 | BP178: 0 | BQ178: 0
AI179: 134 | AJ179: 0 | AK179: None | AL179: 0 | AM179: 0 | AN179: 0 | AO179: 0 | AP179: FALSE | AQ179: 0 | AR179: 0 | AS179: 0 | AV179: 0 | AW179: 0 | AX179: 0 | AY179: 0 | AZ179: 0 | BA179: 0 | BB179: 0 | BC179: 0 | BD179: 0 | BE179: 0 | BF179: 0 | BG179: 0 | BO179: 0 | BP179: 0 | BQ179: 0
AI180: 135 | AJ180: 0 | AK180: None | AL180: 0 | AM180: 0 | AN180: 0 | AO180: 0 | AP180: FALSE | AQ180: 0 | AR180: 0 | AS180: 0 | AV180: 0 | AW180: 0 | AX180: 0 | AY180: 0 | AZ180: 0 | BA180: 0 | BB180: 0 | BC180: 0 | BD180: 0 | BE180: 0 | BF180: 0 | BG180: 0 | BO180: 0 | BP180: 0 | BQ180: 0
AI181: 136 | AJ181: 0 | AK181: None | AL181: 0 | AM181: 0 | AN181: 0 | AO181: 0 | AP181: FALSE | AQ181: 0 | AR181: 0 | AS181: 0 | AV181: 0 | AW181: 0 | AX181: 0 | AY181: 0 | AZ181: 0 | BA181: 0 | BB181: 0 | BC181: 0 | BD181: 0 | BE181: 0 | BF181: 0 | BG181: 0 | BO181: 0 | BP181: 0 | BQ181: 0
AI182: 137 | AJ182: 0 | AK182: None | AL182: 0 | AM182: 0 | AN182: 0 | AO182: 0 | AP182: FALSE | AQ182: 0 | AR182: 0 | AS182: 0 | AV182: 0 | AW182: 0 | AX182: 0 | AY182: 0 | AZ182: 0 | BA182: 0 | BB182: 0 | BC182: 0 | BD182: 0 | BE182: 0 | BF182: 0 | BG182: 0 | BO182: 0 | BP182: 0 | BQ182: 0
AI183: 138 | AJ183: 0 | AK183: None | AL183: 0 | AM183: 0 | AN183: 0 | AO183: 0 | AP183: FALSE | AQ183: 0 | AR183: 0 | AS183: 0 | AV183: 0 | AW183: 0 | AX183: 0 | AY183: 0 | AZ183: 0 | BA183: 0 | BB183: 0 | BC183: 0 | BD183: 0 | BE183: 0 | BF183: 0 | BG183: 0 | BO183: 0 | BP183: 0 | BQ183: 0
AI184: 139 | AJ184: 0 | AK184: None | AL184: 0 | AM184: 0 | AN184: 0 | AO184: 0 | AP184: FALSE | AQ184: 0 | AR184: 0 | AS184: 0 | AV184: 0 | AW184: 0 | AX184: 0 | AY184: 0 | AZ184: 0 | BA184: 0 | BB184: 0 | BC184: 0 | BD184: 0 | BE184: 0 | BF184: 0 | BG184: 0 | BO184: 0 | BP184: 0 | BQ184: 0
AI185: 140 | AJ185: 0 | AK185: None | AL185: 0 | AM185: 0 | AN185: 0 | AO185: 0 | AP185: FALSE | AQ185: 0 | AR185: 0 | AS185: 0 | AV185: 0 | AW185: 0 | AX185: 0 | AY185: 0 | AZ185: 0 | BA185: 0 | BB185: 0 | BC185: 0 | BD185: 0 | BE185: 0 | BF185: 0 | BG185: 0 | BO185: 0 | BP185: 0 | BQ185: 0
AI186: 141 | AJ186: 0 | AK186: None | AL186: 0 | AM186: 0 | AN186: 0 | AO186: 0 | AP186: FALSE | AQ186: 0 | AR186: 0 | AS186: 0 | AV186: 0 | AW186: 0 | AX186: 0 | AY186: 0 | AZ186: 0 | BA186: 0 | BB186: 0 | BC186: 0 | BD186: 0 | BE186: 0 | BF186: 0 | BG186: 0 | BO186: 0 | BP186: 0 | BQ186: 0
AI187: 142 | AJ187: 0 | AK187: None | AL187: 0 | AM187: 0 | AN187: 0 | AO187: 0 | AP187: FALSE | AQ187: 0 | AR187: 0 | AS187: 0 | AV187: 0 | AW187: 0 | AX187: 0 | AY187: 0 | AZ187: 0 | BA187: 0 | BB187: 0 | BC187: 0 | BD187: 0 | BE187: 0 | BF187: 0 | BG187: 0 | BO187: 0 | BP187: 0 | BQ187: 0
AI188: 143 | AJ188: 0 | AK188: None | AL188: 0 | AM188: 0 | AN188: 0 | AO188: 0 | AP188: FALSE | AQ188: 0 | AR188: 0 | AS188: 0 | AV188: 0 | AW188: 0 | AX188: 0 | AY188: 0 | AZ188: 0 | BA188: 0 | BB188: 0 | BC188: 0 | BD188: 0 | BE188: 0 | BF188: 0 | BG188: 0 | BO188: 0 | BP188: 0 | BQ188: 0
AI189: 144 | AJ189: 0 | AK189: None | AL189: 0 | AM189: 0 | AN189: 0 | AO189: 0 | AP189: FALSE | AQ189: 0 | AR189: 0 | AS189: 0 | AV189: 0 | AW189: 0 | AX189: 0 | AY189: 0 | AZ189: 0 | BA189: 0 | BB189: 0 | BC189: 0 | BD189: 0 | BE189: 0 | BF189: 0 | BG189: 0 | BO189: 0 | BP189: 0 | BQ189: 0
AI190: 145 | AJ190: 0 | AK190: None | AL190: 0 | AM190: 0 | AN190: 0 | AO190: 0 | AP190: FALSE | AQ190: 0 | AR190: 0 | AS190: 0 | AV190: 0 | AW190: 0 | AX190: 0 | AY190: 0 | AZ190: 0 | BA190: 0 | BB190: 0 | BC190: 0 | BD190: 0 | BE190: 0 | BF190: 0 | BG190: 0 | BO190: 0 | BP190: 0 | BQ190: 0
AI191: 146 | AJ191: 0 | AK191: None | AL191: 0 | AM191: 0 | AN191: 0 | AO191: 0 | AP191: FALSE | AQ191: 0 | AR191: 0 | AS191: 0 | AV191: 0 | AW191: 0 | AX191: 0 | AY191: 0 | AZ191: 0 | BA191: 0 | BB191: 0 | BC191: 0 | BD191: 0 | BE191: 0 | BF191: 0 | BG191: 0 | BO191: 0 | BP191: 0 | BQ191: 0
AI192: 147 | AJ192: 0 | AK192: None | AL192: 0 | AM192: 0 | AN192: 0 | AO192: 0 | AP192: FALSE | AQ192: 0 | AR192: 0 | AS192: 0 | AV192: 0 | AW192: 0 | AX192: 0 | AY192: 0 | AZ192: 0 | BA192: 0 | BB192: 0 | BC192: 0 | BD192: 0 | BE192: 0 | BF192: 0 | BG192: 0 | BO192: 0 | BP192: 0 | BQ192: 0
AI193: 148 | AJ193: 0 | AK193: None | AL193: 0 | AM193: 0 | AN193: 0 | AO193: 0 | AP193: FALSE | AQ193: 0 | AR193: 0 | AS193: 0 | AV193: 0 | AW193: 0 | AX193: 0 | AY193: 0 | AZ193: 0 | BA193: 0 | BB193: 0 | BC193: 0 | BD193: 0 | BE193: 0 | BF193: 0 | BG193: 0 | BO193: 0 | BP193: 0 | BQ193: 0
AI194: 149 | AJ194: 0 | AK194: None | AL194: 0 | AM194: 0 | AN194: 0 | AO194: 0 | AP194: FALSE | AQ194: 0 | AR194: 0 | AS194: 0 | AV194: 0 | AW194: 0 | AX194: 0 | AY194: 0 | AZ194: 0 | BA194: 0 | BB194: 0 | BC194: 0 | BD194: 0 | BE194: 0 | BF194: 0 | BG194: 0 | BO194: 0 | BP194: 0 | BQ194: 0
AI195: 150 | AJ195: 0 | AK195: None | AL195: 0 | AM195: 0 | AN195: 0 | AO195: 0 | AP195: FALSE | AQ195: 0 | AR195: 0 | AS195: 0 | AV195: 0 | AW195: 0 | AX195: 0 | AY195: 0 | AZ195: 0 | BA195: 0 | BB195: 0 | BC195: 0 | BD195: 0 | BE195: 0 | BF195: 0 | BG195: 0 | BO195: 0 | BP195: 0 | BQ195: 0
AI196: 151 | AJ196: 0 | AK196: None | AL196: 0 | AM196: 0 | AN196: 0 | AO196: 0 | AP196: FALSE | AQ196: 0 | AR196: 0 | AS196: 0 | AV196: 0 | AW196: 0 | AX196: 0 | AY196: 0 | AZ196: 0 | BA196: 0 | BB196: 0 | BC196: 0 | BD196: 0 | BE196: 0 | BF196: 0 | BG196: 0 | BO196: 0 | BP196: 0 | BQ196: 0
AI197: 152 | AJ197: 0 | AK197: None | AL197: 0 | AM197: 0 | AN197: 0 | AO197: 0 | AP197: FALSE | AQ197: 0 | AR197: 0 | AS197: 0 | AV197: 0 | AW197: 0 | AX197: 0 | AY197: 0 | AZ197: 0 | BA197: 0 | BB197: 0 | BC197: 0 | BD197: 0 | BE197: 0 | BF197: 0 | BG197: 0 | BO197: 0 | BP197: 0 | BQ197: 0
AI198: 153 | AJ198: 0 | AK198: None | AL198: 0 | AM198: 0 | AN198: 0 | AO198: 0 | AP198: FALSE | AQ198: 0 | AR198: 0 | AS198: 0 | AV198: 0 | AW198: 0 | AX198: 0 | AY198: 0 | AZ198: 0 | BA198: 0 | BB198: 0 | BC198: 0 | BD198: 0 | BE198: 0 | BF198: 0 | BG198: 0 | BO198: 0 | BP198: 0 | BQ198: 0
AI199: 154 | AJ199: 0 | AK199: None | AL199: 0 | AM199: 0 | AN199: 0 | AO199: 0 | AP199: FALSE | AQ199: 0 | AR199: 0 | AS199: 0 | AV199: 0 | AW199: 0 | AX199: 0 | AY199: 0 | AZ199: 0 | BA199: 0 | BB199: 0 | BC199: 0 | BD199: 0 | BE199: 0 | BF199: 0 | BG199: 0 | BO199: 0 | BP199: 0 | BQ199: 0
AI200: 155 | AJ200: 0 | AK200: None | AL200: 0 | AM200: 0 | AN200: 0 | AO200: 0 | AP200: FALSE | AQ200: 0 | AR200: 0 | AS200: 0 | AV200: 0 | AW200: 0 | AX200: 0 | AY200: 0 | AZ200: 0 | BA200: 0 | BB200: 0 | BC200: 0 | BD200: 0 | BE200: 0 | BF200: 0 | BG200: 0 | BO200: 0 | BP200: 0 | BQ200: 0
AI201: 156 | AJ201: 0 | AK201: None | AL201: 0 | AM201: 0 | AN201: 0 | AO201: 0 | AP201: FALSE | AQ201: 0 | AR201: 0 | AS201: 0 | AV201: 0 | AW201: 0 | AX201: 0 | AY201: 0 | AZ201: 0 | BA201: 0 | BB201: 0 | BC201: 0 | BD201: 0 | BE201: 0 | BF201: 0 | BG201: 0 | BO201: 0 | BP201: 0 | BQ201: 0
AI202: 157 | AJ202: 0 | AK202: None | AL202: 0 | AM202: 0 | AN202: 0 | AO202: 0 | AP202: FALSE | AQ202: 0 | AR202: 0 | AS202: 0 | AV202: 0 | AW202: 0 | AX202: 0 | AY202: 0 | AZ202: 0 | BA202: 0 | BB202: 0 | BC202: 0 | BD202: 0 | BE202: 0 | BF202: 0 | BG202: 0 | BO202: 0 | BP202: 0 | BQ202: 0
... 43 more rows

Sheet 7-Notation
A1: ='1-Cover'!A1 -> Project Name
A2: Notation, Units, and List of Symbols
A4: Notation | E4: Notation (continued)
A5: Symbol | B5: Description | C5: Unit | E5: Symbol | F5: Description | G5: Unit
A6: AW | B6: Wetted area of channel at design discharge | C6: ft2 | E6: FV | F6: Resultant vertical force applied to log | G6: lbf
A7: ATp | B7: Projected area of wood in plane perpendicular to flow | C7: ft2 | E7: FrL | F7: Log Froude number | G7: -
A8: cD | B8: Centroid of the drag force along log axis | C8: ft | E8: FSV | F8: Factor of Safety for Vertical Force Balance | G8: -
A9: cAm | B9: Centroid of a mechanical anchor along log axis | C9: ft | E9: FSH | F9: Factor of Safety for Horizontal Force Balance | G9: -
A10: cAr | B10: Centroid of a ballast boulder along log axis | C10: ft | E10: FSM | F10: Factor of Safety for Moment Force Balance | G10: -
A11: cAsoil | B11: Centroid of the added ballast soil along log axis | C11: ft | E11: g | F11: Gravitational acceleration constant | G11: ft/s2
A12: cF&N | B12: Centroid of friction and normal forces along log axis | C12: ft | E12: KP | F12: Coefficient of Passive Earth Pressure | G12: -
A13: cL | B13: Centroid of the lift force along log axis | C13: ft | E13: LT,em | F13: Total embedded length of log | G13: ft
A14: cP | B14: Centroid of the passive soil force along log axis | C14: ft | E14: LRW | F14: Assumed length of rootwad | G14: ft
A15: csoil | B15: Centroid of the vertical soil forces along log axis | C15: ft | E15: LT | F15: Total length of tree (including rootwad) | G15: ft
A16: cT,B | B16: Centroid of the buoyancy force along log axis | C16: ft | E16: LTf | F16: Length of log in contact with bed or banks | G16: ft
A17: cT,W | B17: Centroid of the log volume along log axis | C17: ft | E17: LTS | F17: Length of tree stem (not including rootwad) | G17: ft
A18: cWI | B18: Centroid of a wood interaction force along log axis | C18: ft | E18: LTS,ex | F18: Exposed length of tree stem | G18: ft
A19: CLrock | B19: Coefficient of lift for submerged boulder | C19: - | E19: LFRW | F19: Length factor for rootwad (LFRW = LRW/DTS) | G19: -
A20: CLT | B20: Effective coefficient of lift for submerged tree | C20: - | E20: Md | F20: Driving moment about embedded tip | G20: lbf
A21: CDi | B21: Base coefficient of drag for tree, before adjustments | C21: - | E21: Mr | F21: Driving moment about embedded tip | G21: lbf
A22: CD* | B22: Effective coefficient of drag for submerged tree | C22: - | E22: N | F22: Blow count of standard penetration test | G22: -
A23: CDi | B23: Base coefficient of drag for tree, before adjustments | C23: - | E23: po | F23: Porosity of soil volume | G23: -
A24: CW | B24: Wave drag coefficient of submerged tree | C24: - | E24: Qdes | F24: Design discharge | G24: cfs
A25: db,avg | B25: Average buried depth of log | C25: ft | E25: R | F25: Radius | G25: ft
A26: db,max | B26: Maximum buried depth of log | C26: ft | E26: Rc | F26: Radius of curvature at channel centerline | G26: ft
A27: dw | B27: Maximum flow depth at design discharge in reach | C27: ft | E27: SGr | F27: Specific gravity of quartz particles | G27: -
A28: D50 | B28: Median grain size in millimeters (SI units) | C28: mm | E28: SGT | F28: Specific gravity of tree | G28: -
A29: Dr | B29: Equivalent diameter of boulder | C29: ft | E29: uavg | F29: Average velocity of cross section in reach | G29: ft/s
A30: DRW | B30: Assumed diameter of rootwad | C30: ft | E30: udes | F30: Design velocity | G30: ft/s
A31: DTS | B31: Nominal diameter of tree stem (DBH) | C31: ft | E31: um | F31: Adjusted velocity at outer meander bend | G31: ft/s
A32: DFRW | B32: Diameter factor for rootwad (DFRW = DRW/DTS) | C32: - | E32: Vdry | F32: Volume of soils above stage level of design flow | G32: ft3
A33: e | B33: Void ratio of soils | C33: - | E33: Vsat | F33: Volume of soils below stage level of design flow | G33: ft3
A34: FA,H | B34: Total horizontal load capacity of anchor techniques | C34: lbf | E34: Vsoil | F34: Total volume of soils over log | G34: ft3
A35: FA,HP | B35: Passive soil pressure applied to log from soil ballast | C35: lbf | E35: VRW | F35: Volume of rootwad | G35: ft3
A36: FA,Hr | B36: Horizontal resisting force on log from boulder | C36: lbf | E36: VS | F36: Volume of solids in soil (void ratio calculation) | G36: ft3
A37: FAm | B37: Load capacity of mechanical anchor | C37: lbf | E37: VT | F37: Total volume of log | G37: ft3
A38: FA,V | B38: Total vertical load capacity of anchor techniques | C38: lbf | E38: VTS | F38: Total volume of tree | G38: ft3
A39: FA,Vr | B39: Vertical resisting force on log from boulder | C39: lbf | E39: VV | F39: Volume of voids in soil | G39: ft3
A40: FA,Vsoil | B40: Vertical soil loading on log from added ballast soil | C40: lbf | E40: VAdry | F40: Volume of ballast above stage of design flow | G40: ft3
A41: FB | B41: Buoyant force applied to log | C41: lbf | E41: VAwet | F41: Volume of ballast below stage of design flow | G41: ft3
A42: FD | B42: Drag forces applied to log | C42: lbf | E42: Vr,dry | F42: Volume of boulder above stage of design flow | G42: ft3
A43: FD,r | B43: Drag forces applied to boulder | C43: lbf | E43: Vr,wet | F43: Volume of boulder below stage of design flow | G43: ft3
A44: FF | B44: Friction force applied to log | C44: lbf | E44: WBF | F44: Bankfull width at structure site | G44: ft
A45: FH | B45: Resultant horizontal force applied to log | C45: lbf | E45: Wr | F45: Effective weight of boulder | G45: lbf
A46: FL | B46: Lift force applied to log | C46: lbf | E46: WT | F46: Total log weight | G46: lbf
A47: FL,r | B47: Lift force applied to boulder | C47: lbf | E47: x | F47: Horizontal coordinate (distance) | G47: ft
A48: FP | B48: Passive soil pressure force applied to log | C48: lbf | E48: y | F48: Vertical coordinate (elevation) | G48: ft
A49: Fsoil | B49: Vertical soil loading on log | C49: lbf | E49: yT,max | F49: Minimum elevation of log | G49: ft
A50: FW,H | B50: Horizontal forces from interactions with other logs | C50: lbf | E50: yT,min | F50: Maximum elevation of log | G50: ft
A51: FW,V | B51: Vertical forces from interactions with other logs | C51: lbf
A53: Greek Symbols | E53: Abbreviations
A54: Symbol | B54: Description | C54: Unit | E54: Notation | F54: Description
A55: b | B55: Tilt angle from stem tip to vertical | C55: deg | E55: ARI | F55: Average return interval
A56: gbank | B56: Dry specific weight of bank soils | C56: lb/ft3 | E56: Avg | F56: Average
A57: gbank,sat | B57: Saturated unit weight of bank soils | C57: lb/ft3 | E57: DBH | F57: Diameter at breast height
A58: g'bank | B58: Effective buoyant unit weight of bank soils | C58: lb/ft3 | E58: deg | F58: Degrees
A59: gbed | B59: Dry specific weight of stream bed substrate | C59: lb/ft3 | E59: Dia | F59: Diameter
A60: g'bed | B60: Effective buoyant unit weight of stream bed substrate | C60: lb/ft3 | E60: Dist | F60: Distance
A61: grock | B61: Dry unit weight of boulders | C61: lb/ft3 | E61: D/S | F61: Downstream
A62: gs | B62: Dry specific weight of soil | C62: lb/ft3 | E62: ELJ | F62: Engineered log jam
A63: g's | B63: Effective buoyant unit weight of soil | C63: lb/ft3 | E63: Ex | F63: Example
A64: gTd | B64: Air-dried unit weight of tree (12% MC basis) | C64: lb/ft3 | E64: Fldpln | F64: Floodplain
A65: gTgr | B65: Green unit weight of tree | C65: lb/ft3 | E65: H&H | F65: Hydrologic and hydraulic
A66: gw | B66: Specific weight of water at 50⁰F | C66: lb/ft3 | E66: ID | F66: Identification
A67: h | B67: Rootwad porosity | C67: - | E67: i.e. | F67: That is
A68: q | B68: Rootwad (or large end of log) orientation to flow | C68: deg | E68: LB | F68: Left bank
A69: m | B69: Coefficient of friction | C69: - | E69: LW | F69: Large wood
A70: n | B70: Kinematic viscosity of water at 50⁰F | C70: ft/s2 | E70: Max | F70: Maximum
A71: S | B71: Sum of forces | C71: - | E71: MC | F71: Moisture content
A72: fbank | B72: Internal friction angle of bank soils | C72: deg | E72: Min | F72: Minimum
A73: fbed | B73: Internal friction angle of stream bed substrate | C73: deg | E73: ML | F73: Multi-log
E74: SL | F74: Single log
E75: N/A | F75: Not applicable
E76: no | F76: Number
A77: Units | E77: Pt | F77: Point
A78: Notation | B78: Description | E78: rad | F78: Radians
A79: cfs | B79: Cubic feet per second | E79: RB | F79: Right bank
A80: ft | B80: Feet | E80: RW | F80: Rootwad
A81: lb | B81: Pound | E81: SL | F81: Single log
A82: lbf | B82: Pounds force | E82: Thw | F82: Thalweg (lowest elevation in channel bed)
A83: kg | B83: Kilograms | E83: Typ | F83: Typical
A84: m | B84: Meters | E84: U.S. | F84: United States
A85: mm | B85: Millimeters | E85: WS | F85: Water surface
A86: s | B86: Seconds | E86: WSE | F86: Water surface elevation
A87: yr | B87: Year | E87: ↑ | F87: Above
E88: ↓ | F88: Below

Sheet Anchors
A1: Reference Sheet - Anchoring Techniques
A3: Anchor Technique Lookup Table (average holding capacities) | D3: Manta Ray | G3: Stingray | J3: Duckbill | N3: Platipus Stealth | R3: Platipus Bat | W3: Custom (User Selection)
A4: Soil Class | B4: Soil Description | C4: Blow Count (N) | D4: MR-1 | E4: MR-2 | F4: MR-SR | G4: SR-1 | H4: SR-2 | I4: SR-3 | J4: DB-40 | K4: DB-68 | L4: DB-88 | M4: DB-138 | N4: P-S02 | O4: P-S04 | P4: P-S06 | Q4: P-S08 | R4: P-B04T | S4: P-B06T | T4: P-B08T | U4: P-B10T | V4: P-B12T | W4: Custom#1 | X4: Custom#2 | Y4: Custom#3
D5: Capacity (lb) | E5: Capacity (lb) | F5: Capacity (lb) | G5: Capacity (lb) | H5: Capacity (lb) | I5: Capacity (lb) | J5: Capacity (lb) | K5: Capacity (lb) | L5: Capacity (lb) | M5: Capacity (lb) | N5: Capacity (lb) | O5: Capacity (lb) | P5: Capacity (lb) | Q5: Capacity (lb) | R5: Capacity (lb) | S5: Capacity (lb) | T5: Capacity (lb) | U5: Capacity (lb) | V5: Capacity (lb) | W5: Capacity (lb) | X5: Capacity (lb) | Y5: Capacity (lb)
A6: 4 | B6: Dense gravels; gravel/cobble; very hard silts and clays | C6: 40-100+ | D6: 24000 | E6: 15000 | F6: 32000 | G6: 39000 | H6: 62000 | I6: 85000 | J6: user input | K6: user input | L6: user input | M6: user input | N6: 300 | O6: 1000 | P6: 3500 | Q6: 4500 | R6: 6000 | S6: 11000 | T6: 16500 | U6: 22000 | V6: 33000 | W6: (user input) | X6: (user input) | Y6: (user input)
A7: 5 | B7: Dense coarse sand; gravel/sand; loose gravels; stiff slits and clays | C7: 14-40 | D7: 15000 | E7: 9000 | F7: 18000 | G7: 24000 | H7: 31000 | I7: 48000 | J7: 300 | K7: 1100 | L7: 3000 | M7: 5000 | N7: 150 | O7: 600 | P7: 2000 | Q7: 2500 | R7: 3500 | S7: 6500 | T7: 9000 | U7: 14000 | V7: 20000 | W7: (user input) | X7: (user input) | Y7: (user input)
A8: 6 | B8: Loose coarse sand; dense fine sand; firm silts and clays | C8: 7-14 | D8: 10000 | E8: 7000 | F8: 14000 | G8: 16000 | H8: 27000 | I8: 37000 | J8: user input | K8: user input | L8: user input | M8: user input | N8: 50 | O8: 300 | P8: 800 | Q8: 1500 | R8: 2500 | S8: 4000 | T8: 6500 | U8: 11000 | V8: 16000 | W8: (user input) | X8: (user input) | Y8: (user input)
A9: 7 | B9: Loose fine sand; alluvium; soft silts and clays; silty sand | C9: 4-8 | D9: 8000 | E9: 5000 | F9: 9000 | G9: 13000 | H9: 19000 | I9: 24000 | J9: user input | K9: user input | L9: user input | M9: user input | N9: N/A | O9: 200 | P9: 400 | Q9: 1000 | R9: 2000 | S9: 3500 | T9: 5500 | U9: 9000 | V9: 13000 | W9: (user input) | X9: (user input) | Y9: (user input)
A10: Notes: | B10: 1. All types -- Use this chart for estimation only. Values shown reflect the manufacturer's minimum expected holding capacity for a given condition. User is responsible for verifying load capacities. The true capacity must be tested by proof-loading. Minimum 2:1 Safety Factor is recommended.
B12: 2. Installation may be difficult. Pilot hole may be required.
B13: 3. Holding capacity limited by working load of anchors.
B14: 4. Holding capacity limited by soil failure.
B15: 5. Wide variation in soil properties reduces prediction accuracy. Pre-constructed field test recommended.
B16: 6. Duckbill anchors are rated in an average (class 5) soil condition. Proof-loading is the only way to insure the exact capacity of each installation. Anchor holding capacity will vary in different soils. Increased capacities can be expected in harder soil classes (numerically higher blow count classifications) and lower capacity can be expected in the softer soil classes (numerically lower blow count).
B19: 7. Platipus Stealth and Bat anchors are given a wide range for holding capacities. The high manufacturer's rating was applied to class 4 soils, while the low value was assigned to class 7 soils. Holding capacities for class 5 and 6 soils were interpolated as a guide only. User is responsible for verifying all rating capacities.
A24: Anchor/Ballast Technique Lookup Table
A25: Technique | B25: Description
A26: Added Soil Ballast | B26: Add coarse material soil lifts on top of structure to increase burial depth
A27: Boulder Ballast | B27: Place boulder on top of structure. Alternatively, secure structure to boulder located beside or beneath structure.
A29: Wood Pile (In development) | B29: Drive or bury vertical wood piles into the bed or banks to brace structure. Alternatively, brace structure against existing large tree.
A31: Mechanical Anchor | B31: Secure structure to soil anchor which uses overlying soil to resist pullout. Alternatively, secure the structure to bedrock using a rock anchor.
A34: Four common alternatives exist for securing or stabilizing placements of large wood in water. In order of preference for habitat formation, they are:
A36: 1. No added stability -- where wood is supplied to the stream and allowed to be stable without manipulation or, as conditions develop, moved by the flow.
A38: 2. Passive stability -- where the weight and shape of the structure is the anchor, and movement at some flow level is acceptable (includes ballast).
A40: 3. Flexible stability -- such as tethering the structure so some degree of movement is allowed with varying flows.
A42: 4. Rigid stability -- holding the logs permanently in place with no movement allowed.
A43: (Source: 2012 WA Stream Habitat Restoration Guidelines)
